Workbook

Sheet Carátula
C15: ESTADO DE RENDIMIENTO ECONÓMICO 2024
C33: Departamento Financiero - Contable
C34: Unidad Contabilidad General
C35: Contabilidad del Activo Fijo y Costos

Sheet Índice
A2: ESTADO DE RENDIMIENTO ECONOMICO -2024
B4: EMPRESA
B6: MONTEVIDEO
B8: AMBITO GEOGRAFICO CENTRO
B9: CANELONES
B10: LAS PIEDRAS
B11: SISTEMA ATLANTIDA
B12: CIUDAD DE LA COSTA
B13: FLORIDA
B14: DURAZNO
B16: AMBITO GEOGRAFICO LITORAL SUR
B17: SAN JOSE
B18: COLONIA
B19: FLORES
B20: SORIANO
B22: AMBITO GEOGRAFICO LITORAL NORTE
B23: PAYSANDU
B24: RIO NEGRO
B25: SALTO
B26: ARTIGAS
B28: AMBITO GEOGRAFICO NORESTE
B29: RIVERA
B30: TACUAREMBO
B31: CERRO LARGO
B33: AMBITO GEOGRAFICO SURESTE
B34: TREINTA Y TRES
B35: ROCHA
B36: LAVALLEJA
B38: U.G.D.

Sheet Nota
B3: INFORME DE ESTADO DE RENDIMIENTO ECONÓMICO
B5: El Informe Estado de Rendimiento Económico consta de los siguientes informes por Sección, Región y Total Empresa a
B6: valores históricos:
B8: −ESTADO DE RENDIMIENTO ECONÓMICO
B10: −COSTOS PROPIOS
B12: −COBERTURAS Y COSTOS PROMEDIOS
B14: ESTADO DE RENDIMIENTO ECONÓMICO
B16: Refleja la gestión de la empresa exponiendo la composición del resultado neto por actividad de producción.
B18: En las columnas se obtienen los totales correspondientes a Agua Potable, Alcantarillado y Otros Ingresos. Dentro de Agua
B19: Potable se analiza el origen de la producción de agua, agrupándose los servicios en Usina (agua superficial), Perforación (agua
B20: subterránea) y Mixto (combinación de las anteriores).
B22: INGRESOS
B24: Se incluyen los recursos generados a través de las operaciones propias del Ente, así como aquellos provenientes de servicios
B25: complementarios.
B27: COSTO DE EXPLOTACIÓN
B29: Se clasifica:
B30: Operativo - incluye el costo asociado a las operaciones de producción y distribución de agua potable y prestación de servicio
B31: de alcantarillado.El costo operativo se abre en fijo y variable según el comportamiento de sus componentes ante variaciones en
B32: los volúmenes de actividad.
B33: No Operativo - gastos de comercialización, administración y fiscales.
B34: Comercialización incluye los gastos de comercialización propios de cada Sección y los gastos centrales de comercialización.
B35: La asignación de los gastos propios a las actividades de agua y alcantarillado, se realiza en base a la cantidad de conexiones
B36: de agua (Usina, Perforación y Mixto)(100%) y alcantarillado (50%).Las conexiones utilizadas son las promedio anual.Los
B37: gastos centrales se asignan en base a ingresos operativos del ejercicio.
B38: Administración incluye los gastos administrativos propios de cada Sección (Jefatura Administrativa, Contabilidad, Caja), y
B39: los gastos de Administración Central.Se asignan con el mismo criterio que los gastos de Comercialización
B40: Fiscales incluye las cargas impositivas que gravan la actividad del Organismo, con excepción del I.R.A.E. que se muestra en
B41: un item independiente.
B43: Las amortizaciones de los Bienes de Propiedad, Planta y Equipo, están consideradas dentro del Costo de Explotación, deducida la cuota parte de las amortizaciones de los bienes que han sido afectados a las Obras en Proceso y en consecuencia fueron activadas.
B46: RESULTADOS DIVERSOS Y EXTRAORDINARIOS
B47: Ingresos incluye ingresos ajenos a la explotación, ingresos diversos, ingresos extraordinarios.
B48: Gastos incluye donaciones, indemnizaciones por litigios (variación anual en los montos previsionados por tal concepto), faltantes por hurto y egresos diversos.
B50: RESULTADOS FINANCIEROS
B51: Ingresos incluye los ingresos por intereses, multas a clientes por atraso en los pagos y diferencia de cotización.
B52: Gastos incluye intereses, comisiones y gastos bancarios, recargos sobres deudas fiscales, multas por atraso en los pagos y dife-
B53: rencia de cotización.
B55: Los Resultados Diversos y Extraordinarios, Resultados Financieros, e IRAE, se asignan en base a los Ingresos de Explotación del Ejercicio.
B57: COSTOS PROPIOS
B58: Refleja la estructura de los Costos Propios, Costo Operativo (agua y alcantarillado) y el Costo Administrativo-Comercial por
B59: concepto de gasto.
B61: COBERTURAS Y COSTOS PROMEDIOS
B63: En éste informe se incluyen los siguientes conceptos:
B65: COMPOSICIÓN DEL COSTO PROPIO POR CONEXIÓN
B67: Representa la estructura por concepto del gasto ,del costo propio por conexión ,según la actividad: Agua , Alcantarillado y
B68: Administrativo-Comercial.
B70: COBERTURAS COSTO - INGRESO
B72: VARIABLE
B73: Representa la proporción del costo variable operativo respecto al ingreso por cargo variable.
B74: FIJO
B75: Representa la proporción del costo fijo de explotación ( total costo explotación menos costo variable operativo) respecto al in-
B76: greso por cargo fijo.
B77: EXPLOTACIÓN
B78: Representa la proporción entre el costo de explotación y los ingresos de explotación.
B79: FINANCIERO
B80: Representa la proporción entre los gastos financieros y los ingresos financieros.
B81: TOTAL
B82: Representa la proporción entre el gasto total (suma de costo de explotación, gastos diversos y extraordinarios, gastos financieros,
B83: e I.R.A.E) y el ingreso total (suma de ingreso de explotación, ingresos diversos y extraordinarios, e ingresos financieros)
B85: M3 ELEVADOS
B87: Corresponde al total de metros cúbicos elevados en el ejercicio, según información proporcionada por el sistema R.A.N.C .
B88: Permite el cálculo del costo variable por metro cúbico elevado.
B90: M3 FACTURADOS
B92: Corresponde al total de metros cúbicos facturados en el ejercicio, información proporcionada por el sistema R.A.N.C.
B93: Permite el cálculo de costos e ingresos unitarios por metro cúbico facturado.
B95: CONEXIONES
B97: Incluye las conexiones de agua y alcantarillado en funcionamiento promedio anual.
B99: COSTO PROMEDIO
B101: •VARIABLE POR M3 ELEVADO
B102: Es la proporción entre el costo operativo variable y el volumen de agua elevada.
B103: •VARIABLE POR M3 FACTURADO
B104: Es la proporción entre el costo operativo variable y el volumen de agua facturada.
B105: •COSTO FIJO POR CONEXIÓN
B106: Es la relación entre el costo fijo de explotación ( total costo explotación menos costo variable operativo) y la cantidad de cone-
B107: xiones en funcionamiento promedio anual.
B108: •COSTO DE EXPLOTACIÓN POR M3 FACTURADO
B109: Es la proporción entre el costo de explotación y el volumen de agua facturada.
B110: •COSTO TOTAL POR M3 FACTURADO
B111: Es la relación entre el costo total (suma de costo de explotación, gastos diversos y extraordinarios, gastos financieros, e I.R.A.E)
B112: y el volumen de agua facturada.
B114: INGRESOS PROMEDIO
B116: •VARIABLE POR M3 FACTURADO
B117: Es la proporción entre el ingreso por cargo variable y el volumen de agua facturada.
B118: •INGRESO FIJO POR CONEXION
B119: Es la proporción entre el ingreso por cargo fijo y la cantidad de conexiones en funcionamiento promedio anual
B120: •INGRESO DE EXPLOTACIÓN POR M3 FACTURADO
B121: Es la proporción entre el ingreso de explotación y el volumen de agua facturada.
B122: •INGRESO TOTAL POR M3 FACTURADO
B123: Es la relación entre el ingreso total (suma de ingreso de explotación, ingresos diversos y extraordinarios, e ingresos financieros)
B124: y el volumen de agua facturada.

Sheet A-OSE-ACT
B3: EMPRESA | C3: ESTADO DE RENDIMIENTO ECONÓMICO (a valores históricos) | H3: PERÍODO ENERO-DICIEMBRE-2024
C5: AGUA POTABLE | D5: PERFORACIÓN | E5: MIXTO | F5: SUB-TOTAL
B6: CONCEPTOS | C6: USINA | D6: PERFORACIÓN | E6: MIXTO | F6: SUB-TOTAL | G6: ALCANTARILLADO | H6: OTROS INGRESOS | I6: TOTAL
B7: INGRESOS
B8: Ingresos Variables | C8: 8004972839 | D8: 404757119.6 | E8: 1241628772 | F8: 9651358731 | I8: 9651358731
B9: Ingresos Fijos | C9: 5379329672 | D9: 380419482.7 | E9: 1141818262 | F9: 6901567417 | I9: 6901567417
B10: INGRESOS DE EXPLOTACION | C10: 1.338430251e+10 | D10: 785176602.3 | E10: 2383447034 | F10: 1.655292615e+10 | I10: 1.655292615e+10
B11: Ingresos Alcantarillado | G11: 3373950320 | I11: 3373950320
B12: Ingresos Upas | H12: 11295183.88 | I12: 11295183.88
B13: Otros Ingresos | C13: 805819283.9 | D13: 78482474.05 | E13: 252488107.6 | F13: 1136789866 | G13: 51604853.61 | H13: -627826.38 | I13: 1187766893
B14: TOTAL ING. DE EXPLOTACION | C14: 1.419012179e+10 | D14: 863659076.3 | F14: 1.768971601e+10 | G14: 3425555173 | H14: 10667357.5 | I14: 21125938544
B15: COSTOS DE EXPLOTACION
B16: OPERATIVO
B17: Costo Operativo Var | C17: 2186912908 | D17: 83632921.11 | E17: 411538506.8 | F17: 2682084336 | G17: 435292420.8 | I17: 3117376757
B18: Costo Operativo Fijo | C18: 2880722840 | D18: 311409734.8 | E18: 1119635762 | F18: 4311768337 | G18: 1805280144 | I18: 6117048481
B19: TOTAL OPERATIVO | C19: 5067635748 | D19: 395042655.9 | E19: 1531174269 | F19: 6993852673 | G19: 2240572565 | I19: 9234425238
B20: NO OPERATIVO
B21: COMERCIALIZACION
B22: Comercial Propios | C22: 2265927130 | D22: 227512260.9 | E22: 764474550.8 | F22: 3257913941 | G22: 520835480.1 | I22: 3778749422
B23: Comercial Asignados | C23: 1168358501 | D23: 83684449.64 | E23: 255409555.2 | F23: 1507452506 | G23: 254775720.3 | I23: 1762228226
B24: Comercialización Upas
B25: TOTAL COMERCIALIZACION | C25: 3434285631 | D25: 311196710.6 | E25: 1019884106 | F25: 4765366448 | G25: 775611200.5 | I25: 5540977648
B26: ADMINISTRACION
B27: Administración Propios | C27: 333861948.8 | D27: 41822073.14 | E27: 140728720.9 | F27: 516412742.9 | G27: 119153523.4 | I27: 635566266.3
B28: Administ. Asignados | C28: 1304236057 | D28: 91419073.12 | E28: 279016053 | F28: 1674671183 | G28: 286720815.4 | I28: 1961391999
B29: Gastos Fiscales | C29: 668036843.1 | D29: 38166418.71 | E29: 116486015.4 | F29: 822689277.2 | G29: 167090507.6 | I29: 989779784.8
B30: TOTAL ADMINISTRACION | C30: 2306134849 | D30: 171407565 | E30: 536230789.3 | F30: 3013773204 | G30: 572964846.4 | I30: 3586738050
B31: TOTAL NO OPERATIVO | C31: 5740420480 | D31: 482604275.5 | E31: 1556114895 | F31: 7779139651 | G31: 1348576047 | I31: 9127715698
B32: COSTO DE EXPLOTACION | C32: 1.080805623e+10 | D32: 877646931.4 | E32: 3087289164 | F32: 1.477299232e+10 | G32: 3589148612 | I32: 1.836214094e+10
B33: RESULTADO DE EXPLOTACION | C33: 3382065567 | D33: -13987855.11 | E33: -451354022.4 | F33: 2916723690 | G33: -163593438.6 | H33: 10667357.5 | I33: 2763797608
B34: DIVERSOS Y EXTRAORDINARIOS
B35: Ingresos Div. y Extr | C35: 428636397.9 | D35: 10958269.53 | E35: 33445248.7 | F35: 473039916.2 | G35: 154288596.7 | I35: 627328512.9
B36: Gtos. Div. y Extraor | C36: 16521262.37 | D36: 1167002.15 | E36: 3561754.79 | F36: 21250019.31 | G36: 3608888.13 | I36: 24858907.44
B37: RESULTADOS DIV. Y EXTRAORDINARIOS | C37: 412115135.6 | D37: 9791267.38 | E37: 29883493.91 | F37: 451789896.9 | G37: 150679708.6 | I37: 602469605.5
B38: FINANCIEROS
B39: Ingresos Financieros | C39: 482969396.9 | D39: 30178666.88 | E39: 92106956.24 | F39: 605255020.1 | G39: 114760278.6 | I39: 720015298.7
B40: Gastos Financieros | C40: 1790120809 | D40: 126950651.3 | E40: 387460391 | F40: 2304531851 | G40: 390093010.5 | I40: 2694624862
B41: RESULTADO FINANCIERO | C41: -1307151412 | D41: -96771984.4 | E41: -295353434.8 | F41: -1699276831 | G41: -275332731.8 | I41: -1974609563
B42: I.R.A.E. | C42: 469071494.8 | D42: 26974301.89 | E42: 82327057.39 | F42: 578372854.1 | G42: 97369086.93 | I42: 675741941
B43: RESULTADO NETO | C43: 2956100785 | D43: -73994270.24 | E43: -634496905.9 | F43: 2247609609 | G43: -190877374.9 | H43: 10667357.5 | I43: 2067399592

Sheet B-OSE-ACT
B4: E M P R E S A
D6: C O S T O S T O T A L E S
C10: C O N C E P T O | D10: C O S T O S O P E R A T I V O S
D13: AGUA | E13: ALCANTARILLADO | F13: TOTAL
C15: RETRIBUCIONES AL PERSONAL | D15: 1893154375 | E15: 374047009.3 | F15: 2267201384
C17: MATERIALES Y SUMINISTROS | D17: 1418156209 | E17: 119278370.1 | F17: 1537434579
C19: ENERGÍA Y FLUÍDOS | D19: 1255318771 | E19: 211236225.3 | F19: 1466554996
C21: SERVICIOS CONTRATADOS | D21: 1283551676 | E21: 892043317.6 | F21: 2175594993
C23: GASTOS VARIOS | D23: 174924002.6 | E23: 306763.7534 | F23: 175230766.4
C25: AMORTIZACIÓN | D25: 968747640.2 | E25: 643660878.8 | F25: 1612408519
C28: TOTAL | D28: 6993852673 | E28: 2240572565 | F28: 9234425238
C33: C O N C E P T O | D33: C O S T O D E A D M I N I S T R A T I V O - C O M E R C I A L
D36: COMERCIALIZACIÓN | E36: ADMINISTRACIÓN | F36: ADM.ASIGNADOS | G36: COM.ASIGNADOS | H36: TOTAL
C38: RETRIBUCIONES AL PERSONAL | D38: 1373645907 | E38: 259297789.1 | F38: 1284491573 | G38: 337175492.1 | H38: 3254610761
C40: MATERIALES Y SUMINISTROS | D40: 124491671.7 | E40: 16152686.6 | F40: 38403158.91 | G40: 12499268 | H40: 191546785.3
C42: ENERGÍA Y FLUÍDOS | D42: 7349176.079 | E42: 106989608.4 | F42: 50603690.22 | G42: 3263307.645 | H42: 168205782.4
C44: SERVICIOS CONTRATADOS | D44: 2001104515 | E44: 178941748.6 | F44: 532737483.9 | G44: 806030802.9 | H44: 3518814550
C46: GASTOS VARIOS | D46: 18808225.73 | E46: 12792959.83 | F46: 19079731.42 | G46: 573871039 | H46: 624551956
C48: AMORTIZACIÓN | D48: 253349926.8 | E48: 61391473.67 | F48: 36076361.19 | G48: 29388316.68 | H48: 380206078.3
C52: TOTAL | D52: 3778749422 | E52: 635566266.3 | F52: 1961391999 | G52: 1762228226 | H52: 8137935913
C55: FISCALES
H56: 989779785
B59: C O S T O D E E X P L O T A C I Ó N | H59: 1.836214094e+10

Sheet C-OSE-ACT
B4: COBERTURAS, COSTOS E INGRESOS PROMEDIO
B6: E M P R E S A
C10: 1. COMPOSICIÓN DEL COSTO PROPIO POR CONEXIÓN | D10: OPERATIVOS | E10: 0 | F10: ADMINISTRATIVO-COMERCIAL
D12: AGUA | E12: ALCANTARILLADO
D13: ($/conex.agua) | E13: ($/conex.desagüe) | F13: ($/conex.agua)
C15: RETRIBUCIONES AL PERSONAL | D15: ='B-OSE-ACT '!D15/'C-OSE-ACT'!D32 -> 1494.209424 | E15: ='B-OSE-ACT '!E15/'C-OSE-ACT'!E32 -> 955.644773 | F15: =+('B-OSE-ACT '!D38+'B-OSE-ACT '!E38)/'C-OSE-ACT'!D32 -> 1288.833014
C17: MATERIALES Y SUMINISTROS | D17: ='B-OSE-ACT '!D17/'C-OSE-ACT'!D32 -> 1119.307754 | E17: ='B-OSE-ACT '!E17/'C-OSE-ACT'!E32 -> 304.7417787 | F17: =+('B-OSE-ACT '!D40+'B-OSE-ACT '!E40)/'C-OSE-ACT'!D32 -> 111.0063334
C19: ENERGÍA Y FLUÍDOS | D19: ='B-OSE-ACT '!D19/'C-OSE-ACT'!D32 -> 990.7850954 | E19: ='B-OSE-ACT '!E19/'C-OSE-ACT'!E32 -> 539.6829531 | F19: =+('B-OSE-ACT '!D42+'B-OSE-ACT '!E42)/'C-OSE-ACT'!D32 -> 90.24414046
C21: SERVICIOS CONTRATADOS | D21: ='B-OSE-ACT '!D21/'C-OSE-ACT'!D32 -> 1013.068472 | E21: ='B-OSE-ACT '!E21/'C-OSE-ACT'!E32 -> 2279.062558 | F21: =+('B-OSE-ACT '!D44+'B-OSE-ACT '!E44)/'C-OSE-ACT'!D32 -> 1720.644505
C23: GASTOS VARIOS | D23: ='B-OSE-ACT '!D23/'C-OSE-ACT'!D32 -> 138.0622186 | E23: ='B-OSE-ACT '!E23/'C-OSE-ACT'!E32 -> 0.7837442091 | F23: =+('B-OSE-ACT '!D46+'B-OSE-ACT '!E46)/'C-OSE-ACT'!D32 -> 24.94185888
C25: AMORTIZACIÓN | D25: ='B-OSE-ACT '!D25/'C-OSE-ACT'!D32 -> 764.603179 | E25: ='B-OSE-ACT '!E25/'C-OSE-ACT'!E32 -> 1644.475531 | F25: =+('B-OSE-ACT '!D48+'B-OSE-ACT '!E48)/'C-OSE-ACT'!D32 -> 248.4158571
C29: TOTAL | D29: =SUM(D15:D27) -> 5520.036143 | E29: =SUM(E15:E27) -> 5724.391338 | F29: =SUM(F15:F27) -> 3484.085708
C32: 2.CONEXIONES (promedio anual) | D32: 1266994 | E32: 391408
C35: 3.COBERTURAS COSTO/INGRESO
C37: 3.1 COSTO DE EXPLOTACIÓN/ INGRESO DE EXPLOT. | D37: =+'A-OSE-ACT'!F32/'A-OSE-ACT'!F14 -> 0.8351175515 | E37: =+'A-OSE-ACT'!G32/'A-OSE-ACT'!G14 -> 1.047756767
C39: 3.2 FINANCIERO | D39: =+'A-OSE-ACT'!I40/'A-OSE-ACT'!I39 -> 3.74245501
C41: 3.3 TOTAL | D41: =('A-OSE-ACT'!F32+'A-OSE-ACT'!F36+'A-OSE-ACT'!F40-'A-OSE-ACT'!F42)/('A-OSE-ACT'!F14+'A-OSE-ACT'!F35+'A-OSE-ACT'!F39) -> 0.8802425246 | E41: =('A-OSE-ACT'!G32+'A-OSE-ACT'!G36+'A-OSE-ACT'!G40-'A-OSE-ACT'!G42)/('A-OSE-ACT'!G14+'A-OSE-ACT'!G35+'A-OSE-ACT'!G39) -> 1.051663824
C44: 4.M3 ELEVADOS | D44: 346742870
C46: 5.M3 FACTURADOS | D46: 170757460
C49: 6. COSTO PROMEDIO
C51: 6.1 COSTO VARIABLE/ M3 ELEVADOS | D51: =+'A-OSE-ACT'!F17/'C-OSE-ACT'!D44 -> 7.735081433
C53: 6.2 COSTO VARIABLE / M3 FACTURADOS | D53: =+'A-OSE-ACT'!F17/'C-OSE-ACT'!D46 -> 15.70698191
C55: 6.3 COSTO EXPLOTACIÓN/ M3 FACTURADOS | D55: =+'A-OSE-ACT'!F32/'C-OSE-ACT'!D46 -> 86.51447687
C57: 6.4 COSTO EXPLOTACIÓN/ M3 ELEVADOS | D57: =+'A-OSE-ACT'!F32/'C-OSE-ACT'!D44 -> 42.60503561
C59: 6.5 TOTAL/ M3 FACTURADOS | D59: =(+'A-OSE-ACT'!F32+'A-OSE-ACT'!F36+'A-OSE-ACT'!F40-'A-OSE-ACT'!F42)/D46 -> 96.74775755
C61: 6.6 TOTAL /M3 ELEVADO | D61: =(+'A-OSE-ACT'!F32+'A-OSE-ACT'!F36+'A-OSE-ACT'!F40-'A-OSE-ACT'!F42)/D44 -> 47.64453077
C64: 7. INGRESOS PROMEDIO
C66: 7.1 VARIABLE/ M3 FACTURADOS | D66: ='A-OSE-ACT'!F8/'C-OSE-ACT'!D46 -> 56.52086141
C68: 7.2 FIJO/CONEXIONES | D68: =+'A-OSE-ACT'!F9/12/'C-OSE-ACT'!D32 -> 453.9331821
C70: 7.3 INGRESO EXPLOTACIÓN/ M3 FACTURADOS | D70: =+'A-OSE-ACT'!F14/'C-OSE-ACT'!D46 -> 103.5955677
C72: 7.4 TOTAL/ M3 FACTURADOS | D72: =+('A-OSE-ACT'!F14+'A-OSE-ACT'!F35+'A-OSE-ACT'!F39)/'C-OSE-ACT'!D46 -> 109.9103427

Sheet A-MDEO-600
B3: MONTEVIDEO | C3: ESTADO DE RENDIMIENTO ECONÓMICO (a valores históricos) | H3: PERÍODO ENERO-DICIEMBRE-2024
C5: USINA | D5: PERFORACIÓN | E5: MIXTO | F5: SUB-TOTAL
B6: CONCEPTOS | C6: USINA | D6: PERFORACIÓN | E6: MIXTO | F6: SUB-TOTAL | G6: ALCANTARILLADO | H6: OTROS INGRESOS | I6: TOTAL
B7: INGRESOS
B8: Ingresos Variables | C8: 4475770178 | F8: 4475770178 | I8: 4475770178
B9: Ingresos Fijos | C9: 2613431885 | F9: 2613431885 | I9: 2613431885
B10: INGRESOS DE EXPLOTACION | C10: 7089202063 | F10: 7089202063 | I10: 7089202063
B11: Ingresos Alcantarillado
B12: Ingresos Upas | H12: 11295183.88 | I12: 11295183.88
B13: Otros Ingresos | C13: 259344562.8 | F13: 259344562.8 | H13: -627826.38 | I13: 258716736.4
B14: TOTAL ING. DE EXPLOTACION | C14: 7348546626 | F14: 7348546626 | H14: 10667357.5 | I14: 7359213983
B15: COSTOS DE EXPLOTACION
B16: OPERATIVO
B17: Costo Operativo Var | C17: 920727640.2 | F17: 920727640.2 | I17: 920727640.2
B18: Costo Operativo Fijo | C18: 1235153655 | F18: 1235153655 | I18: 1235153655
B19: TOTAL OPERATIVO | C19: 2155881295 | F19: 2155881295 | I19: 2155881295
B20: NO OPERATIVO
B21: COMERCIALIZACION
B22: Comercial Propios | C22: 864980350.3 | F22: 864980350.3 | I22: 864980350.3
B23: Comercial Asignados | C23: 669469103.7 | F23: 669469103.7 | I23: 669469103.7
B24: TOTAL COMERCIALIZACION | C24: 1534449454 | F24: 1534449454 | I24: 1534449454
B25: ADMINISTRACION
B26: Administración Propios | C26: 8267906.06 | F26: 8267906.06 | I26: 8267906.06
B27: Administ. Asignados | C27: 644629924.4 | F27: 644629924.4 | I27: 644629924.4
B28: Gastos Fiscales | C28: 324743542 | F28: 324743542 | I28: 324743542
B29: TOTAL ADMINISTRACION | C29: 977641372.5 | F29: 977641372.5 | I29: 977641372.5
B30: TOTAL NO OPERATIVO | C30: 2512090827 | F30: 2512090827 | I30: 2512090827
B31: COSTO DE EXPLOTACION | C31: 4667972122 | F31: 4667972122 | I31: 4667972122
B32: RESULTADO DE EXPLOTACION | C32: 2680574504 | F32: 2680574504 | H32: 10667357.5 | I32: 2691241861
B33: DIVERSOS Y EXTRAORDINARIOS
B34: Ingresos Div. y Extr | C34: 93239772.4 | F34: 93239772.4 | I34: 93239772.4
B35: Gtos. Div. y Extraor | C35: 9929576.68 | F35: 9929576.68 | I35: 9929576.68
B36: RESULTADOS DIV. Y EXTRAORDINARIOS | C36: 83310195.72 | F36: 83310195.72 | I36: 83310195.72
B37: FINANCIEROS
B38: Ingresos Financieros | C38: 256778799.8 | F38: 256778799.8 | I38: 256778799.8
B39: Gastos Financieros | C39: 1080174812 | F39: 1080174812 | I39: 1080174812
B40: RESULTADO FINANCIERO | C40: -823396012.4 | F40: -823396012.4 | I40: -823396012.4
B41: I.R.A.E. | C41: 229514076.3 | F41: 229514076.3 | I41: 229514076.3
B42: RESULTADO NETO | C42: 2170002763 | F42: 2170002763 | H42: 10667357.5 | I42: 2180670121

Sheet B-MDEO-600
B4: MONTEVIDEO
D6: C O S T O S T O T A L E S
C10: C O N C E P T O | D10: C O S T O S O P E R A T I V O S
D13: AGUA | E13: ALCANTARILLADO | F13: TOTAL
C15: RETRIBUCIONES AL PERSONAL | D15: 515668487.2 | F15: 515668487.2
C17: MATERIALES Y SUMINISTROS | D17: 274214255.2 | F17: 274214255.2
C19: ENERGÍA Y FLUÍDOS | D19: 686572563.4 | F19: 686572563.4
C21: SERVICIOS CONTRATADOS | D21: 498765291.9 | F21: 498765291.9
C23: GASTOS VARIOS | D23: 62142337.08 | F23: 62142337.08
C25: AMORTIZACIÓN | D25: 118518360.6 | F25: 118518360.6
C28: TOTAL | D28: 2155881295 | F28: 2155881295 | H28: 0.7117164381
C33: C O N C E P T O | D33: C O S T O D E A D M I N I S T R A T I V O - C O M E R C I A L
D36: COMERCIALIZACIÓN | E36: ADMINISTRACIÓN | F36: TOTAL
C38: RETRIBUCIONES AL PERSONAL | D38: 286652105.2 | E38: 5880946.84 | F38: 292533052
C40: MATERIALES Y SUMINISTROS | D40: 25376468.29 | E40: 403100.95 | F40: 25779569.24
C42: ENERGÍA Y FLUÍDOS | D42: 2498315.64 | F42: 2498315.64
C44: SERVICIOS CONTRATADOS | D44: 415599212 | E44: 1887901.38 | F44: 417487113.3
C46: GASTOS VARIOS | D46: 1319080.19 | E46: 50529.85 | F46: 1369610.04
C48: AMORTIZACIÓN | D48: 133535169.6 | E48: 45427.04 | F48: 133580596.6
C52: TOTAL | D52: 864980350.8 | E52: 8267906.06 | F52: 873248256.9 | H52: 0.2882835619
B57: C O S T O D E E X P L O T A C I Ó N | H57: 3029129552

Sheet C-MDEO-600
B4: COBERTURAS, COSTOS E INGRESOS PROMEDIO
B6: M O N T E V I D E O
C10: 1. COMPOSICIÓN DEL COSTO PROPIO POR CONEXIÓN | D10: OPERATIVOS | F10: ADMINISTRATIVO-COMERCIAL
D12: AGUA | E12: ALCANTARILLADO
D13: ($/conex.agua) | E13: ($/conex.desagüe) | F13: ($/conex.agua)
C15: RETRIBUCIONES AL PERSONAL | D15: =+'B-MDEO-600'!D15/'C-MDEO-600'!$D$32 -> 1327.130467 | F15: =+('B-MDEO-600'!D38+'B-MDEO-600'!E38)/$D$32 -> 752.8664939
C17: MATERIALES Y SUMINISTROS | D17: =+'B-MDEO-600'!D17/'C-MDEO-600'!$D$32 -> 705.7210237 | F17: =+('B-MDEO-600'!D40+'B-MDEO-600'!E40)/$D$32 -> 66.34660178
C19: ENERGÍA Y FLUÍDOS | D19: =+'B-MDEO-600'!D19/'C-MDEO-600'!$D$32 -> 1766.971202 | F19: =+('B-MDEO-600'!D42+'B-MDEO-600'!E42)/$D$32 -> 6.429694435
C21: SERVICIOS CONTRATADOS | D21: =+'B-MDEO-600'!D21/'C-MDEO-600'!$D$32 -> 1283.628206 | F21: =+('B-MDEO-600'!D44+'B-MDEO-600'!E44)/$D$32 -> 1074.449732
C23: GASTOS VARIOS | D23: =+'B-MDEO-600'!D23/'C-MDEO-600'!$D$32 -> 159.9302476 | F23: =+('B-MDEO-600'!D46+'B-MDEO-600'!E46)/$D$32 -> 3.524844464
C25: AMORTIZACIÓN | D25: =+'B-MDEO-600'!D25/'C-MDEO-600'!$D$32 -> 305.0202431 | F25: =+('B-MDEO-600'!D48+'B-MDEO-600'!E48)/$D$32 -> 343.7845903
C29: TOTAL | D29: =SUM(D15:D25) -> 5548.401389 | F29: =SUM(F15:F25) -> 2247.401957
C32: 2.CONEXIONES (promedio anual) | D32: 388559
C35: 3.COBERTURAS COSTO/INGRESO
C37: 3.1 COSTO DE EXPLOTACIÓN/ INGRESO DE EXPLOT. | D37: =+'A-MDEO-600'!F31/'A-MDEO-600'!F14 -> 0.6352238558 | F37: 0
C39: 3.3 TOTAL | D39: =+('A-MDEO-600'!F31+'A-MDEO-600'!F35+'A-MDEO-600'!F39-'A-MDEO-600'!F41)/('A-MDEO-600'!F14+'A-MDEO-600'!F34+'A-MDEO-600'!F38) -> 0.718128936
C42: 4.M3 ELEVADOS | D42: 162055270
C44: 5.M3 FACTURADOS | D44: 73019650
C47: 6. COSTO PROMEDIO
C49: 6.1 COSTO VARIABLE/ M3ELEVADOS | D49: =+'A-MDEO-600'!F17/'C-MDEO-600'!D42 -> 5.681565556
C51: 6.2 COSTO VARIABLE / M3FACTURADOS | D51: =+'A-MDEO-600'!F17/'C-MDEO-600'!D44 -> 12.60931325
C53: 6.3 COSTO EXPLOTACIÓN/M3FACT | D53: =+'A-MDEO-600'!F31/'C-MDEO-600'!D44 -> 63.92761567
C55: 6.4 TOTAL/M3FACT | D55: =(+'A-MDEO-600'!F31+'A-MDEO-600'!F35+'A-MDEO-600'!F39-'A-MDEO-600'!F41)/'C-MDEO-600'!D44 -> 75.7133516
C58: 7. INGRESOS PROMEDIO
C60: 7.1 VARIABLE/M3 FACT | D60: =+'A-MDEO-600'!F8/'C-MDEO-600'!D44 -> 61.29542086
C62: 7.2 FIJO/CONEXIONES | D62: =(+'A-MDEO-600'!F9/12)/'C-MDEO-600'!D32 -> 560.4965794
C64: 7.3 INGRESO EXPLOTACIÓN/M3FACT | D64: =+'A-MDEO-600'!F14/'C-MDEO-600'!D44 -> 100.6379327
C66: 7.4 TOTAL/M3FACT | D66: =+('A-MDEO-600'!F14+'A-MDEO-600'!F34+'A-MDEO-600'!F38)/D44 -> 105.4314174

Sheet A-400-AG-CENTRO
B2: ÁMBITO GEOGRÁFICO CENTRO | C2: ESTADO DE RENDIMIENTO ECONÓMICO (a valores históricos) | H2: PERÍODO ENERO-DICIEMBRE-2024
C4: AGUA POTABLE
B5: CONCEPTOS | C5: USINA | D5: PERFORACIÓN | E5: MIXTO | F5: SUB-TOTAL | G5: ALCANTARILLADO | H5: OTROS INGRESOS | I5: TOTAL
B6: INGRESOS
B7: Ingresos Variables | C7: 1291359062 | D7: 12840096.13 | E7: 302236630 | F7: 1606435789 | I7: 1606435789
B8: Ingresos Fijos | C8: 953670925.4 | D8: 11849250.17 | E8: 369009972.5 | F8: 1334530148 | I8: 1334530148
B9: INGRESOS DE EXPLOTACION | C9: 2245029988 | D9: 24689346.3 | E9: 671246602.5 | F9: 2940965937 | I9: 2940965937
B10: Ingresos Alcantarillado | G10: 640669455 | I10: 640669455
B11: Otros Ingresos | C11: 178995065.1 | D11: 2355376.06 | E11: 70136333.45 | F11: 251486774.6 | G11: 14973099.7 | I11: 266459874.3
B12: TOTAL ING. DE EXPLOTACION | C12: 2424025053 | D12: 27044722.36 | E12: 741382935.9 | F12: 3192452711 | G12: 655642554.7 | I12: 3848095266
B13: COSTOS DE EXPLOTACION
B14: OPERATIVO
B15: Costo Operativo Var | C15: 610364625.3 | D15: 1678923.32 | E15: 78315629.75 | F15: 690359178.4 | G15: 90613132.38 | I15: 780972310.7
B16: Costo Operativo Fijo | C16: 432115125.3 | D16: 21114432.56 | E16: 433347196.4 | F16: 886576754.3 | G16: 460135765.2 | I16: 1346712520
B17: TOTAL OPERATIVO | C17: 1042479751 | D17: 22793355.88 | E17: 511662826.2 | F17: 1576935933 | G17: 550748897.6 | I17: 2127684830
B18: NO OPERATIVO
B19: COMERCIALIZACION
B20: Comercial Propios | C20: 682392780.4 | D20: 10150045.07 | E20: 239874126.6 | F20: 932416952 | G20: 141825428.2 | I20: 1074242380
B21: Comercial Asignados | C21: 234876477.6 | D21: 2620504.81 | E21: 71836473.87 | F21: 309333456.3 | G21: 63528639.45 | I21: 372862095.8
B22: TOTAL COMERCIALIZACION | C22: 917269258 | D22: 12770549.88 | E22: 311710600.4 | F22: 1241750408 | G22: 205354067.7 | I22: 1447104476
B23: ADMINISTRACION
B24: Administración Propios | C24: 68350352.18 | D24: 1221084.11 | E24: 37160342.85 | F24: 106731779.1 | G24: 15243050.96 | I24: 121974830.1
B25: Administ. Asignados | C25: 256585184.6 | D25: 2862707.45 | E25: 78476035.84 | F25: 337923927.9 | G25: 69400341.41 | I25: 407324269.3
B26: Gastos Fiscales | C26: 107121383.5 | D26: 1195147.74 | E26: 32762848.64 | F26: 141079379.9 | G26: 28973849.71 | I26: 170053229.6
B27: TOTAL ADMINISTRACION | C27: 432056920.3 | D27: 5278939.3 | E27: 148399227.3 | F27: 585735087 | G27: 113617242.1 | I27: 699352329
B28: TOTAL NO OPERATIVO | C28: 1349326178 | D28: 18049489.18 | E28: 460109827.8 | F28: 1827485495 | G28: 318971309.8 | I28: 2146456805
B29: COSTO DE EXPLOTACION | C29: 2391805929 | D29: 40842845.06 | E29: 971772654 | F29: 3404421428 | G29: 869720207.3 | I29: 4274141635
B30: RESULTADO DE EXPLOTACION | C30: 32219124.04 | D30: -13798122.7 | E30: -230389718.1 | F30: -211968716.7 | G30: -214077652.6 | I30: -426046369.3
B31: DIVERSOS Y EXTRAORDINARIOS
B32: Ingresos Div. y Extr | C32: 30756494.9 | D32: 343148.25 | E32: 9406808.71 | F32: 40506451.86 | G32: 12052911.13 | I32: 52559362.99
B33: Gtos. Div. y Extraor | C33: 3275415.45 | D33: 36543.58 | E33: 1001778.91 | F33: 4313737.94 | G33: 885923.87 | I33: 5199661.81
B34: RESULTADOS DIV. Y EXTRAORDINARIOS | C34: 27481079.45 | D34: 306604.67 | E34: 8405029.8 | F34: 36192713.92 | G34: 11166987.26 | I34: 47359701.18
B35: FINANCIEROS
B36: Ingresos Financieros | C36: 84702224.15 | D36: 945018.31 | E36: 25905996.18 | F36: 111553238.6 | G36: 22909987.14 | I36: 134463225.8
B37: Gastos Financieros | C37: 356311382.3 | D37: 3975347.62 | E37: 108977082.9 | F37: 469263812.8 | G37: 96373964.8 | I37: 565637777.6
B38: RESULTADO FINANCIERO | C38: -271609158.2 | D38: -3030329.31 | E38: -83071086.69 | F38: -357710574.2 | G38: -73463977.66 | I38: -431174551.9
B39: I.R.A.E. | C39: 75708558.37 | D39: 844676.46 | E39: 23155302.49 | F39: 99708537.32 | G39: 20477409.08 | I39: 120185946.4
B40: RESULTADO NETO | C40: -136200396.3 | D40: 15677170.88 | E40: 281900472.5 | F40: -433778039.7 | G40: -255897233.9 | I40: -689675273.6

Sheet B-400-AG-CENTRO
B4: ÁMBITO GEOGRÁFICO CENTRO
D6: C O S T O S T O T A L E S
C10: C O N C E P T O | D10: C O S T O S O P E R A T I V O S
D13: AGUA | E13: ALCANTARILLADO | F13: TOTAL
C15: RETRIBUCIONES AL PERSONAL | D15: 339407829.7 | E15: 110252623.2 | F15: 449660453
C17: MATERIALES Y SUMINISTROS | D17: 645097975.6 | E17: 26423713.53 | F17: 671521689.1
C19: ENERGÍA Y FLUÍDOS | D19: 108773297.1 | E19: 47405774.75 | F19: 156179071.8
C21: SERVICIOS CONTRATADOS | D21: 221184434.4 | E21: 167405783.9 | F21: 388590218.3
C23: GASTOS VARIOS | D23: 50013431.31 | E23: 1258038.775 | F23: 51271470.09
C25: AMORTIZACIÓN | D25: 212458964.6 | E25: 198002965.2 | F25: 410461929.7
C28: TOTAL | D28: 1576935933 | E28: 550748899.4 | F28: 2127684832 | H28: 0.6401165872
C33: C O N C E P T O | D33: C O S T O D E A D M I N I S T R A T I V O - C O M E R C I A L
D36: COMERCIALIZACIÓN | E36: ADMINISTRACIÓN | F36: TOTAL
C38: RETRIBUCIONES AL PERSONAL | D38: 386435818.7 | E38: 63352840.82 | F38: 449788659.5
C40: MATERIALES Y SUMINISTROS | D40: 39955634.22 | E40: 1750326.685 | F40: 41705960.91
C42: ENERGÍA Y FLUÍDOS | D42: 1846659.88 | E42: 24546358.42 | F42: 26393018.3
C44: SERVICIOS CONTRATADOS | D44: 599831834.8 | E44: 25461861.82 | F44: 625293696.7
C46: GASTOS VARIOS | D46: -221042.9424 | E46: 1410092.323 | F46: 1189049.381
C48: AMORTIZACIÓN | D48: 46393476.43 | E48: 5453350.036 | F48: 51846826.47
C52: TOTAL | D52: 1074242381 | E52: 121974830.1 | F52: 1196217211 | H52: 0.3598834128
B57: C O S T O D E E X P L O T A C I Ó N | H57: 3323902043

Sheet C-400-AG-CENTRO
B4: COBERTURAS, COSTOS E INGRESOS PROMEDIO
B6: Á M B I T O G E O G R Á F I C O C E N T R O
C10: 1. COMPOSICIÓN DEL COSTO PROPIO POR CONEXIÓN | D10: OPERATIVOS | F10: ADMINISTRATIVO-COMERCIAL
D12: AGUA | E12: ALCANTARILLADO
D13: ($/conex.agua) | E13: ($/conex.desagüe) | F13: ($/conex.agua)
C15: RETRIBUCIONES AL PERSONAL | D15: =+'B-400-AG-CENTRO'!D15/'C-400-AG-CENTRO'!$D$32 -> 1223.056019 | E15: =+'B-400-AG-CENTRO'!E15/'C-400-AG-CENTRO'!$E$32 -> 1411.793777 | F15: =(+'B-400-AG-CENTRO'!D38+'B-400-AG-CENTRO'!E38)/'C-400-AG-CENTRO'!$D$32 -> 1620.813308
C17: MATERIALES Y SUMINISTROS | D17: =+'B-400-AG-CENTRO'!D17/'C-400-AG-CENTRO'!$D$32 -> 2324.610374 | E17: =+'B-400-AG-CENTRO'!E17/'C-400-AG-CENTRO'!$E$32 -> 338.3577936 | F17: =(+'B-400-AG-CENTRO'!D40+'B-400-AG-CENTRO'!E40)/'C-400-AG-CENTRO'!$D$32 -> 150.2874184
C19: ENERGÍA Y FLUÍDOS | D19: =+'B-400-AG-CENTRO'!D19/'C-400-AG-CENTRO'!$D$32 -> 391.9645455 | E19: =+'B-400-AG-CENTRO'!E19/'C-400-AG-CENTRO'!$E$32 -> 607.0347882 | F19: =(+'B-400-AG-CENTRO'!D42+'B-400-AG-CENTRO'!E42)/'C-400-AG-CENTRO'!$D$32 -> 95.10723401
C21: SERVICIOS CONTRATADOS | D21: =+'B-400-AG-CENTRO'!D21/'C-400-AG-CENTRO'!$D$32 -> 797.0380472 | E21: =+'B-400-AG-CENTRO'!E21/'C-400-AG-CENTRO'!$E$32 -> 2143.644632 | F21: =(+'B-400-AG-CENTRO'!D44+'B-400-AG-CENTRO'!E44)/'C-400-AG-CENTRO'!$D$32 -> 2253.24566
C23: GASTOS VARIOS | D23: =+'B-400-AG-CENTRO'!D23/'C-400-AG-CENTRO'!$D$32 -> 180.2233857 | E23: =+'B-400-AG-CENTRO'!E23/'C-400-AG-CENTRO'!$E$32 -> 16.10928849 | F23: =(+'B-400-AG-CENTRO'!D46+'B-400-AG-CENTRO'!E46)/'C-400-AG-CENTRO'!$D$32 -> 4.284739109
C25: AMORTIZACIÓN | D25: =+'B-400-AG-CENTRO'!D25/'C-400-AG-CENTRO'!$D$32 -> 765.5958191 | E25: =+'B-400-AG-CENTRO'!E25/'C-400-AG-CENTRO'!$E$32 -> 2535.444018 | F25: =(+'B-400-AG-CENTRO'!D48+'B-400-AG-CENTRO'!E48)/'C-400-AG-CENTRO'!$D$32 -> 186.8300246
C29: TOTAL | D29: =SUM(D15:D25) -> 5682.48819 | E29: =SUM(E15:E25) -> 7052.384298 | F29: =SUM(F15:F25) -> 4310.568384
C32: 2.CONEXIONES (promedio anual) | D32: 277508 | E32: 78094
C35: 3.COBERTURAS COSTO/INGRESO
C37: 3.1 COSTO DE EXPLOTACIÓN/ INGRESO DE EXPLOT. | D37: =+'A-400-AG-CENTRO'!F29/'A-400-AG-CENTRO'!F12 -> 1.066396823 | E37: =+'A-400-AG-CENTRO'!G29/'A-400-AG-CENTRO'!G12 -> 1.326515799
C39: 3.3 TOTAL | D39: =+('A-400-AG-CENTRO'!F29+'A-400-AG-CENTRO'!F33+'A-400-AG-CENTRO'!F37-'A-400-AG-CENTRO'!F39)/('A-400-AG-CENTRO'!F12+'A-400-AG-CENTRO'!F32+'A-400-AG-CENTRO'!F36) -> 1.12969844 | E39: =+('A-400-AG-CENTRO'!G29+'A-400-AG-CENTRO'!G33+'A-400-AG-CENTRO'!G37-'A-400-AG-CENTRO'!G39)/('A-400-AG-CENTRO'!G12+'A-400-AG-CENTRO'!G32+'A-400-AG-CENTRO'!G36) -> 1.370540419
C42: 4.M3 ELEVADOS | D42: 61578580
C44: 5.M3 FACTURADOS | D44: 30351200
C47: 6. COSTO PROMEDIO
C49: 6.1 COSTO VARIABLE/ M3ELEVADOS | D49: =+'A-400-AG-CENTRO'!F15/'C-400-AG-CENTRO'!D42 -> 11.2110279
C51: 6.2 COSTO VARIABLE / M3FACTURADOS | D51: =+'A-400-AG-CENTRO'!F15/D44 -> 22.74569633
C53: 6.3 COSTO EXPLOTACIÓN/M3FACT | D53: =+'A-400-AG-CENTRO'!F29/'C-400-AG-CENTRO'!D44 -> 112.1676055
C55: 6.4 TOTAL/M3FACT | D55: =+('A-400-AG-CENTRO'!F29+'A-400-AG-CENTRO'!F33+'A-400-AG-CENTRO'!F37-'A-400-AG-CENTRO'!F39)/'C-400-AG-CENTRO'!D44 -> 124.4857021
C58: 7. INGRESOS PROMEDIO
C60: 7.1 VARIABLE/M3 FACT | D60: =+'A-400-AG-CENTRO'!F7/'C-400-AG-CENTRO'!D44 -> 52.92824628
C62: 7.2 FIJO/CONEXIONES | D62: =(+'A-400-AG-CENTRO'!F8/12)/'C-400-AG-CENTRO'!D32 -> 400.7482511
C64: 7.3 INGRESO EXPLOTACIÓN/M3FACT | D64: =+'A-400-AG-CENTRO'!F12/'C-400-AG-CENTRO'!D44 -> 105.1837394
C66: 7.4 TOTAL/M3FACT | D66: =+('A-400-AG-CENTRO'!F12+'A-400-AG-CENTRO'!F32+'A-400-AG-CENTRO'!F36)/D44 -> 110.1937453

Sheet A-CAN-401
B2: CANELONES | C2: ESTADO DE RENDIMIENTO ECONÓMICO (a valores históricos) | H2: PERÍODO ENERO-DICIEMBRE-2024
C4: AGUA POTABLE
B5: CONCEPTOS | C5: USINA | D5: PERFORACIÓN | E5: MIXTO | F5: SUB-TOTAL | G5: ALCANTARILLADO | H5: OTROS INGRESOS | I5: TOTAL
B6: INGRESOS
B7: Ingresos Variables | C7: 167298060 | E7: 67717649.27 | F7: 235015709.3 | I7: 235015709.3
B8: Ingresos Fijos | C8: 108408247.3 | E8: 60144990.37 | F8: 168553237.7 | I8: 168553237.7
B9: INGRESOS DE EXPLOTACIÓN | C9: 275706307.3 | E9: 127862639.6 | F9: 403568947 | I9: 403568947
B10: Ingresos Alcantarillado | G10: 108754466.8 | I10: 108754466.8
B11: Otros Ingresos | C11: 22472063.97 | E11: 14359602.09 | F11: 36831666.06 | G11: 2362051.68 | I11: 39193717.74
B12: TOTAL ING. DE EXPLOTACIÓN | C12: 298178371.3 | E12: 142222241.7 | F12: 440400613 | G12: 111116518.5 | I12: 551517131.5
B13: COSTOS DE EXPLOTACIÓN
B14: OPERATIVO
B15: Costo Operativo Var | C15: 90638651.06 | E15: 11723682.87 | F15: 102362333.9 | G15: 12698311.62 | I15: 115060645.5
B16: Costo Operativo Fijo | C16: 133007905.2 | E16: 282511426.4 | F16: 415519331.6 | G16: 162701339.6 | I16: 578220671.1
B17: TOTAL OPERATIVO | C17: 223646556.3 | E17: 294235109.3 | F17: 517881665.5 | G17: 175399651.2 | I17: 693281316.7
B18: NO OPERATIVO
B19: COMERCIALIZACIÓN
B20: Comercial Propios | C20: 119205991.9 | E20: 62969876.14 | F20: 182175868.1 | G20: 32531875.27 | I20: 214707743.3
B21: Comercial Asignados | C21: 28892063.47 | E21: 13780657.56 | F21: 42672721.03 | G21: 10766661.04 | I21: 53439382.07
B22: TOTAL COMERCIALIZACIÓN | C22: 148098055.4 | E22: 76750533.7 | F22: 224848589.1 | G22: 43298536.31 | I22: 268147125.4
B23: ADMINISTRACIÓN
B24: Administración Propios | C24: 13681363.56 | E24: 7227101.13 | F24: 20908464.69 | G24: 3733708.49 | I24: 24642173.18
B25: Administ. Asignados | C25: 31562443.04 | E25: 15054349.26 | F25: 46616792.3 | G25: 11761781.17 | I25: 58378573.47
B26: Gastos Fiscales | C26: 13176959.38 | E26: 6285018.92 | F26: 19461978.3 | G26: 4910409.3 | I26: 24372387.6
B27: TOTAL ADMINISTRACIÓN | C27: 58420765.98 | E27: 28566469.31 | F27: 86987235.29 | G27: 20405898.96 | I27: 107393134.2
B28: TOTAL NO OPERATIVO | C28: 206518821.4 | E28: 105317003 | F28: 311835824.4 | G28: 63704435.27 | I28: 375540259.7
B29: COSTO DE EXPLOTACIÓN | C29: 430165377.6 | E29: 399552112.3 | F29: 829717489.9 | G29: 239104086.4 | I29: 1068821576
B30: RESULTADO DE EXPLOTACIÓN | C30: -131987006.3 | E30: -257329870.5 | F30: -389316876.9 | G30: -127987568 | I30: -517304444.8
B31: DIVERSOS Y EXTRAORDINARIOS
B32: Ingresos Div. y Extr | C32: 3783344.46 | E32: 1804542.98 | F32: 5587887.44 | G32: 2042694.6 | I32: 7630582.04
B33: Gtos. Div. y Extraor | C33: 402907.53 | E33: 192174.98 | F33: 595082.51 | G33: 150143.98 | I33: 745226.49
B34: RESULTADOS DIV. Y EXTRAORDINARIOS | C34: 3380436.93 | E34: 1612368 | F34: 4992804.93 | G34: 1892550.62 | I34: 6885355.55
B35: FINANCIEROS
B36: Ingresos Financieros | C36: 10419187.36 | E36: 4969643.46 | F36: 15388830.82 | G36: 3882722.34 | I36: 19271553.16
B37: Gastos Financieros | C37: 43829723.4 | E37: 20905478.51 | F37: 64735201.91 | G37: 16333197.56 | I37: 81068399.47
B38: RESULTADO FINANCIERO | C38: -33410536.04 | E38: -15935835.05 | F38: -49346371.09 | G38: -12450475.22 | I38: -61796846.31
B39: I.R.A.E. | C39: 9312880.07 | E39: 4441967.66 | F39: 13754847.73 | G39: 3470455.63 | I39: 17225303.36
B40: RESULTADO NETO | C40: -152704225.4 | E40: -267211369.9 | F40: -419915595.3 | G40: -135075036.9 | I40: -554990632.2

Sheet B-CAN-401
B4: C A N E L O N E S
D6: C O S T O S T O T A L E S
C10: C O N C E P T O | D10: C O S T O S O P E R A T I V O S
D13: AGUA | E13: ALCANTARILLADO | F13: TOTAL
C15: RETRIBUCIONES AL PERSONAL | D15: 188924615.4 | E15: 35926480.49 | F15: 224851095.9
C17: MATERIALES Y SUMINISTROS | D17: 131362874.8 | E17: 2378465.07 | F17: 133741339.8
C19: ENERGÍA Y FLUÍDOS | D19: 33851778.68 | E19: 6876331.033 | F19: 40728109.72
C21: SERVICIOS CONTRATADOS | D21: 84731170.59 | E21: 48560210.04 | F21: 133291380.6
C23: GASTOS VARIOS | D23: 6052827.747 | E23: -1799700.12 | F23: 4253127.627
C25: AMORTIZACIÓN | D25: 72958398.27 | E25: 83457866.47 | F25: 156416264.7
C28: TOTAL | D28: 517881665.5 | E28: 175399653 | F28: 693281318.5 | H28: 0.7433606043
C33: C O N C E P T O | D33: C O S T O D E A D M I N I S T R A T I V O - C O M E R C I A L
D36: COMERCIALIZACIÓN | E36: ADMINISTRACIÓN | F36: TOTAL
C38: RETRIBUCIONES AL PERSONAL | D38: 72558558.38 | E38: 8063211.607 | F38: 80621769.99
C40: MATERIALES Y SUMINISTROS | D40: 8710719.503 | E40: 960455.0316 | F40: 9671174.534
C42: ENERGÍA Y FLUÍDOS | D42: 327799.6087 | E42: 9123077.981 | F42: 9450877.589
C44: SERVICIOS CONTRATADOS | D44: 128441072.5 | E44: 5866413.378 | F44: 134307485.9
C46: GASTOS VARIOS | D46: 1202503.619 | E46: 167283.73 | F46: 1369787.349
C48: AMORTIZACIÓN | D48: 3467089.722 | E48: 461731.4525 | F48: 3928821.175
C52: TOTAL | D52: 214707743.3 | E52: 24642173.18 | F52: 239349916.5 | H52: =+F52/H57 -> 0.2566393957
B57: C O S T O D E E X P L O T A C I Ó N | H57: 932631235

Sheet C-CAN-401
B4: COBERTURAS, COSTOS E INGRESOS PROMEDIO
B6: C A N E L O N E S
C10: 1. COMPOSICIÓN DEL COSTO PROPIO POR CONEXIÓN | D10: OPERATIVOS | F10: ADMINISTRATIVO-COMERCIAL
D12: AGUA | E12: ALCANTARILLADO
D13: ($/conex.agua) | E13: ($/conex.desagüe) | F13: ($/conex.agua)
C15: RETRIBUCIONES AL PERSONAL | D15: =+'B-CAN-401'!D15/'C-CAN-401'!$D$32 -> 4552.290678 | E15: =+'B-CAN-401'!E15/'C-CAN-401'!$E$32 -> 2423.86186 | F15: =(+'B-CAN-401'!D38+'B-CAN-401'!E38)/$D$32 -> 1942.646442
C17: MATERIALES Y SUMINISTROS | D17: =+'B-CAN-401'!D17/'C-CAN-401'!$D$32 -> 3165.294204 | E17: =+'B-CAN-401'!E17/'C-CAN-401'!$E$32 -> 160.4685649 | F17: =(+'B-CAN-401'!D40+'B-CAN-401'!E40)/$D$32 -> 233.0347349
C19: ENERGÍA Y FLUÍDOS | D19: =+'B-CAN-401'!D19/'C-CAN-401'!$D$32 -> 815.6858554 | E19: =+'B-CAN-401'!E19/'C-CAN-401'!$E$32 -> 463.92734 | F19: =(+'B-CAN-401'!D42+'B-CAN-401'!E42)/$D$32 -> 227.7265027
C21: SERVICIOS CONTRATADOS | D21: =+'B-CAN-401'!D21/'C-CAN-401'!$D$32 -> 2041.665757 | E21: =+'B-CAN-401'!E21/'C-CAN-401'!$E$32 -> 3276.225208 | F21: =(+'B-CAN-401'!D44+'B-CAN-401'!E44)/$D$32 -> 3236.246979
C23: GASTOS VARIOS | D23: =+'B-CAN-401'!D23/'C-CAN-401'!$D$32 -> 145.8477566 | E23: =+'B-CAN-401'!E23/'C-CAN-401'!$E$32 -> -121.420869 | F23: =(+'B-CAN-401'!D46+'B-CAN-401'!E46)/$D$32 -> 33.00612873
C25: AMORTIZACIÓN | D25: =+'B-CAN-401'!D25/'C-CAN-401'!$D$32 -> 1757.991332 | E25: =+'B-CAN-401'!E25/'C-CAN-401'!$E$32 -> 5630.67511 | F25: =(+'B-CAN-401'!D48+'B-CAN-401'!E48)/$D$32 -> 94.6681086
C29: TOTAL | D29: =SUM(D15:D25) -> 12478.77558 | E29: =SUM(E15:E25) -> 11833.73721 | F29: =SUM(F15:F25) -> 5767.328896
C32: 2.CONEXIONES (promedio anual) | D32: 41501 | E32: 14822
C35: 3.COBERTURAS COSTO/INGRESO
C37: 3.1 COSTO DE EXPLOTACIÓN/ INGRESO DE EXPLOT. | D37: =+'A-CAN-401'!F29/'A-CAN-401'!F12 -> 1.88400621 | E37: =+'A-CAN-401'!G29/'A-CAN-401'!G12 -> 2.151832056
C39: 3.3 TOTAL | D39: =(+'A-CAN-401'!F29+'A-CAN-401'!F33+'A-CAN-401'!F37-'A-CAN-401'!F39)/('A-CAN-401'!F12+'A-CAN-401'!F32+'A-CAN-401'!F36) -> 1.910134865 | E39: =(+'A-CAN-401'!G29+'A-CAN-401'!G33+'A-CAN-401'!G37-'A-CAN-401'!G39)/('A-CAN-401'!G12+'A-CAN-401'!G32+'A-CAN-401'!G36) -> 2.154073849
C42: 4.M3 ELEVADOS | D42: 7910080
C44: 5.M3 FACTURADOS | D44: 4185660
C47: 6. COSTO PROMEDIO
C49: 6.1 COSTO VARIABLE/ M3ELEVADOS | D49: =+'A-CAN-401'!F15/'C-CAN-401'!D42 -> 12.94074572
C51: 6.2 COSTO VARIABLE / M3FACTURADOS | D51: =+'A-CAN-401'!F15/'C-CAN-401'!D44 -> 24.45548227
C53: 6.3 COSTO EXPLOTACIÓN/M3FACT | D53: =+'A-CAN-401'!F29/'C-CAN-401'!D44 -> 198.2285924
C55: 6.4 TOTAL/M3FACT | D55: =(+'A-CAN-401'!F29+'A-CAN-401'!F33+'A-CAN-401'!F37-'A-CAN-401'!F39)/'C-CAN-401'!D44 -> 210.5505289
C58: 7. INGRESOS PROMEDIO
C60: 7.1 VARIABLE/M3 FACT | D60: =+'A-CAN-401'!F7/'C-CAN-401'!D44 -> 56.14782598
C62: 7.2 FIJO/CONEXIONES | D62: =(+'A-CAN-401'!F8/12)/'C-CAN-401'!D32 -> 338.4521612
C64: 7.3 INGRESO EXPLOTACIÓN/M3FACT | D64: =+'A-CAN-401'!F12/'C-CAN-401'!D44 -> 105.2165281
C66: 7.4 TOTAL/M3FACT | D66: =(+'A-CAN-401'!F12+'A-CAN-401'!F32+'A-CAN-401'!F36)/'C-CAN-401'!D44 -> 110.2280958

Sheet A-LP-402
B2: LAS PIEDRAS | C2: ESTADO DE RENDIMIENTO ECONÓMICO (a valores históricos) | H2: PERÍODO ENERO-DICIEMBRE-2024
C4: AGUA POTABLE
B5: CONCEPTOS | C5: USINA | D5: PERFORACIÓN | E5: MIXTO | F5: SUB-TOTAL | G5: ALCANTARILLADO | H5: OTROS INGRESOS | I5: TOTAL
B6: INGRESOS
B7: Ingresos Variables | C7: 305517362.7 | F7: 305517362.7 | I7: 305517362.7
B8: Ingresos Fijos | C8: 238428076.4 | F8: 238428076.4 | I8: 238428076.4
B9: INGRESOS DE EXPLOTACIÓN | C9: 543945439.1 | F9: 543945439.1 | I9: 543945439.1
B10: Ingresos Alcantarillado | G10: 80455356.96 | I10: 80455356.96
B11: Otros Ingresos | C11: 45771057.22 | F11: 45771057.22 | G11: 2470091.63 | I11: 48241148.85
B12: TOTAL ING. DE EXPLOTACIÓN | C12: 589716496.3 | F12: 589716496.3 | G12: 82925448.59 | I12: 672641944.9
B13: COSTOS DE EXPLOTACIÓN
B14: OPERATIVO
B15: Costo Operativo Var | C15: 59154803.46 | F15: 59154803.46 | G15: 2957690.3 | I15: 62112493.76
B16: Costo Operativo Fijo | C16: 70741610.48 | F16: 70741610.48 | G16: 29859847.11 | I16: 100601457.6
B17: TOTAL OPERATIVO | C17: 129896413.9 | F17: 129896413.9 | G17: 32817537.41 | I17: 162713951.3
B18: NO OPERATIVO
B19: COMERCIALIZACIÓN
B20: Comercial Propios | C20: 184061216.3 | F20: 184061216.3 | G20: 13817279.22 | I20: 197878495.5
B21: Comercial Asignados | C21: 57140718.55 | F21: 57140718.55 | G21: 8035080.79 | I21: 65175799.34
B22: TOTAL COMERCIALIZACIÓN | C22: 241201934.9 | F22: 241201934.9 | G22: 21852360.01 | I22: 263054294.9
B23: ADMINISTRACIÓN
B24: Administración Propios | C24: 9228549.56 | F24: 9228549.56 | G24: 692777.41 | I24: 9921326.97
B25: Administ. Asignados | C25: 62422010.28 | F25: 62422010.28 | G25: 8777731.77 | I25: 71199742.05
B26: Gastos Fiscales | C26: 26060476.1 | F26: 26060476.1 | G26: 3664602.73 | I26: 29725078.83
B27: TOTAL ADMINISTRACIÓN | C27: 97711035.94 | F27: 97711035.94 | G27: 13135111.91 | I27: 110846147.8
B28: TOTAL NO OPERATIVO | C28: 338912970.8 | F28: 338912970.8 | G28: 34987471.92 | I28: 373900442.7
B29: COSTO DE EXPLOTACIÓN | C29: 468809384.8 | F29: 468809384.8 | G29: 67805009.33 | I29: 536614394.1
B30: RESULTADO DE EXPLOTACIÓN | C30: 120907111.6 | F30: 120907111.6 | G30: 15120439.26 | I30: 136027550.8
B31: DIVERSOS Y EXTRAORDINARIOS
B32: Ingresos Div. y Extr | C32: 7482435.98 | F32: 7482435.98 | G32: 1524447.95 | I32: 9006883.93
B33: Gtos. Div. y Extraor | C33: 796842.67 | F33: 796842.67 | G33: 112051.35 | I33: 908894.02
B34: RESULTADOS DIV. Y EXTRAORDINARIOS | C34: 6685593.31 | F34: 6685593.31 | G34: 1412396.6 | I34: 8097989.91
B35: FINANCIEROS
B36: Ingresos Financieros | C36: 20606345.94 | F36: 20606345.94 | G36: 2897647.45 | I36: 23503993.39
B37: Gastos Financieros | C37: 86683386.23 | F37: 86683386.23 | G37: 12189346.52 | I37: 98872732.75
B38: RESULTADO FINANCIERO | C38: -66077040.29 | F38: -66077040.29 | G38: -9291699.07 | I38: -75368739.36
B39: I.R.A.E. | C39: 18418368.12 | F39: 18418368.12 | G39: 2589975.79 | I39: 21008343.91
B40: RESULTADO NETO | C40: 79934032.73 | F40: 79934032.73 | G40: 9831112.58 | I40: 89765145.31

Sheet B-LP-402
B4: L A S P I E D R A S
D6: C O S T O S T O T A L E S
C10: C O N C E P T O | D10: C O S T O S O P E R A T I V O S
D13: AGUA | E13: ALCANTARILLADO | F13: TOTAL
C15: RETRIBUCIONES AL PERSONAL | D15: 1756681.1 | E15: 6439387.799 | F15: 8196068.899
C17: MATERIALES Y SUMINISTROS | D17: 48728794.64 | E17: 858355.2589 | F17: 49587149.9
C19: ENERGÍA Y FLUÍDOS | D19: 9814449.23 | E19: 1279590.579 | F19: 11094039.81
C21: SERVICIOS CONTRATADOS | D21: 27737489.29 | E21: 18874369.01 | F21: 46611858.3
C23: GASTOS VARIOS | D23: 13301661.03 | E23: 54986.40558 | F23: 13356647.44
C25: AMORTIZACIÓN | D25: 28557338.65 | E25: 5310848.359 | F25: 33868187.01
C28: TOTAL | D28: 129896413.9 | E28: 32817537.41 | F28: 162713951.3 | H28: 0.4391576315
C33: C O N C E P T O | D33: C O S T O D E A D M I N I S T R A T I V O - C O M E R C I A L
D36: COMERCIALIZACIÓN | E36: ADMINISTRACIÓN | F36: TOTAL
C38: RETRIBUCIONES AL PERSONAL | D38: 71463398.45 | E38: 6243009.91 | F38: 77706408.36
C40: MATERIALES Y SUMINISTROS | D40: 6764894.746 | E40: 63450.01647 | F40: 6828344.763
C42: ENERGÍA Y FLUÍDOS | D42: 209065.5234 | E42: 973148.341 | F42: 1182213.864
C44: SERVICIOS CONTRATADOS | D44: 111633621.9 | E44: 1584691.669 | F44: 113218313.5
C46: GASTOS VARIOS | D46: 1003274.198 | E46: 177731.94 | F46: 1181006.138
C48: AMORTIZACIÓN | D48: 6804240.771 | E48: 879295.0935 | F48: 7683535.864
C52: TOTAL | D52: 197878495.5 | E52: 9921326.97 | F52: 207799822.5 | H52: 0.5608423685
B57: C O S T O D E E X P L O T A C I Ó N | H57: 370513773.9

Sheet C-LP-402
B4: COBERTURAS, COSTOS E INGRESOS PROMEDIO
B6: L A S P I E D R A S
C10: 1. COMPOSICIÓN DEL COSTO PROPIO POR CONEXIÓN | D10: OPERATIVOS | F10: ADMINISTRATIVO-COMERCIAL
D12: AGUA | E12: ALCANTARILLADO
D13: ($/conex.agua) | E13: ($/conex.desagüe) | F13: ($/conex.agua)
C15: RETRIBUCIONES AL PERSONAL | D15: =+'B-LP-402'!D15/'C-LP-402'!$D$32 -> 32.07788288 | E15: =+'B-LP-402'!E15/'C-LP-402'!$E$32 -> 783.1899537 | F15: =(+'B-LP-402'!D38+'B-LP-402'!E38)/$D$32 -> 1418.958208
C17: MATERIALES Y SUMINISTROS | D17: =+'B-LP-402'!D17/'C-LP-402'!$D$32 -> 889.8123667 | E17: =+'B-LP-402'!E17/'C-LP-402'!$E$32 -> 104.3973801 | F17: =(+'B-LP-402'!D40+'B-LP-402'!E40)/$D$32 -> 124.6890193
C19: ENERGÍA Y FLUÍDOS | D19: =+'B-LP-402'!D19/'C-LP-402'!$D$32 -> 179.2167929 | E19: =+'B-LP-402'!E19/'C-LP-402'!$E$32 -> 155.6300874 | F19: =(+'B-LP-402'!D42+'B-LP-402'!E42)/$D$32 -> 21.58782142
C21: SERVICIOS CONTRATADOS | D21: =+'B-LP-402'!D21/'C-LP-402'!$D$32 -> 506.500544 | E21: =+'B-LP-402'!E21/'C-LP-402'!$E$32 -> 2295.593409 | F21: =(+'B-LP-402'!D44+'B-LP-402'!E44)/$D$32 -> 2067.423507
C23: GASTOS VARIOS | D23: =+'B-LP-402'!D23/'C-LP-402'!$D$32 -> 242.8950392 | E23: =+'B-LP-402'!E23/'C-LP-402'!$E$32 -> 6.687716563 | F23: =(+'B-LP-402'!D46+'B-LP-402'!E46)/$D$32 -> 21.56576773
C25: AMORTIZACIÓN | D25: =+'B-LP-402'!D25/'C-LP-402'!$D$32 -> 521.4714068 | E25: =+'B-LP-402'!E25/'C-LP-402'!$E$32 -> 645.9314473 | F25: =(+'B-LP-402'!D48+'B-LP-402'!E48)/$D$32 -> 140.3052401
C29: TOTAL | D29: =SUM(D15:D25) -> 2371.974032 | E29: =SUM(E15:E25) -> 3991.429994 | F29: =SUM(F15:F25) -> 3794.529564
C32: 2.CONEXIONES (promedio anual) | D32: 54763 | E32: 8222
C35: 3.COBERTURAS COSTO/INGRESO
C37: 3.1 COSTO DE EXPLOTACIÓN/ INGRESO DE EXPLOT. | D37: =+'A-LP-402'!F29/'A-LP-402'!F12 -> 0.7949741743 | E37: =+'A-LP-402'!G29/'A-LP-402'!G12 -> 0.8176622555
C39: 3.3 TOTAL | D39: =(+'A-LP-402'!F29+'A-LP-402'!F33+'A-LP-402'!F37-'A-LP-402'!F39)/('A-LP-402'!F12+'A-LP-402'!F32+'A-LP-402'!F36) -> 0.8706161382 | E39: =(+'A-LP-402'!G29+'A-LP-402'!G33+'A-LP-402'!G37-'A-LP-402'!G39)/('A-LP-402'!G12+'A-LP-402'!G32+'A-LP-402'!G36) -> 0.8874483227
C42: 4.M3 ELEVADOS | D42: 17568280
C44: 5.M3 FACTURADOS | D44: 5964660
C47: 6. COSTO PROMEDIO
C49: 6.1 COSTO VARIABLE/ M3ELEVADOS | D49: =+'A-LP-402'!F15/D42 -> 3.367136877
C51: 6.2 COSTO VARIABLE / M3FACTURADOS | D51: =+'A-LP-402'!F15/D44 -> 9.917548269
C53: 6.3 COSTO EXPLOTACIÓN/M3FACT | D53: =+'A-LP-402'!F29/'C-LP-402'!D44 -> 78.59783873
C55: 6.4 TOTAL/M3FACT | D55: =(+'A-LP-402'!F29+'A-LP-402'!F33+'A-LP-402'!F37-'A-LP-402'!F39)/'C-LP-402'!D44 -> 90.17634627
C58: 7. INGRESOS PROMEDIO
C60: 7.1 VARIABLE/M3 FACT | D60: =+'A-LP-402'!F7/'C-LP-402'!D44 -> 51.22125364
C62: 7.2 FIJO/CONEXIONES | D62: =(+'A-LP-402'!F8/12)/'C-LP-402'!D32 -> 362.8180773
C64: 7.3 INGRESO EXPLOTACIÓN/M3FACT | D64: =+'A-LP-402'!F12/'C-LP-402'!D44 -> 98.8684177
C66: 7.4 TOTAL/M3FACT | D66: =(+'A-LP-402'!F12+'A-LP-402'!F32+'A-LP-402'!F36)/'C-LP-402'!D44 -> 103.5776185

Sheet A-SAT-403
B2: SISTEMA ATLÁNTIDA | C2: ESTADO DE RENDIMIENTO ECONÓMICO (a valores históricos) | H2: PERÍODO ENERO-DICIEMBRE-2024
C4: AGUA POTABLE
B5: CONCEPTOS | C5: USINA | D5: PERFORACIÓN | E5: MIXTO | F5: SUB-TOTAL | G5: ALCANTARILLADO | H5: OTROS INGRESOS | I5: TOTAL
B6: INGRESOS
B7: Ingresos Variables | C7: 183098992.5 | E7: 212026502.7 | F7: 395125495.2 | I7: 395125495.2
B8: Ingresos Fijos | C8: 115828376.5 | E8: 285794133.5 | F8: 401622509.9 | I8: 401622509.9
B9: INGRESOS DE EXPLOTACIÓN | C9: 298927368.9 | E9: 497820636.2 | F9: 796748005.1 | I9: 796748005.1
B10: Ingresos Alcantarillado | G10: 59176188.66 | I10: 59176188.66
B11: Otros Ingresos | C11: 32673837.97 | E11: 52754578.39 | F11: 85428416.36 | G11: 879616.9 | I11: 86308033.26
B12: TOTAL ING. DE EXPLOTACIÓN | C12: 331601206.9 | E12: 550575214.6 | F12: 882176421.5 | G12: 60055805.56 | I12: 942232227.1
B13: COSTOS DE EXPLOTACIÓN
B14: OPERATIVO
B15: Costo Operativo Var | C15: 156663126.7 | E15: 59615285.95 | F15: 216278412.7 | G15: 4475109.78 | I15: 220753522.5
B16: Costo Operativo Fijo | C16: 29223302.54 | E16: 111830029.4 | F16: 141053331.9 | G16: 7856323.75 | I16: 148909655.7
B17: TOTAL OPERATIVO | C17: 185886429.3 | E17: 171445315.3 | F17: 357331744.6 | G17: 12331433.53 | I17: 369663178.1
B18: NO OPERATIVO
B19: COMERCIALIZACIÓN
B20: Comercial Propios | C20: 76187289.06 | E20: 155802734 | F20: 231990023.1 | G20: 10988841.95 | I20: 242978865
B21: Comercial Asignados | C21: 32130576.94 | E21: 53348114.87 | F21: 85478691.81 | G21: 5819121.57 | I21: 91297813.38
B22: TOTAL COMERCIALIZACIÓN | C22: 108317866 | E22: 209150848.9 | F22: 317468714.9 | G22: 16807963.52 | I22: 334276678.4
B23: ADMINISTRACIÓN
B24: Administración Propios | C24: 13395944.71 | E24: 27394659.14 | F24: 40790603.85 | G24: 1932158.54 | I24: 42722762.39
B25: Administ. Asignados | C25: 35100279.46 | E25: 58278870.9 | F25: 93379150.36 | G25: 6356959.94 | I25: 99736110.3
B26: Gastos Fiscales | C26: 14653965.74 | E26: 24330762.88 | F26: 38984728.62 | G26: 2653958.13 | I26: 41638686.75
B27: TOTAL ADMINISTRACIÓN | C27: 63150189.91 | E27: 110004292.9 | F27: 173154482.8 | G27: 10943076.61 | I27: 184097559.4
B28: TOTAL NO OPERATIVO | C28: 171468055.9 | E28: 319155141.8 | F28: 490623197.7 | G28: 27751040.13 | I28: 518374237.9
B29: COSTO DE EXPLOTACIÓN | C29: 357354485.2 | E29: 490600457.2 | F29: 847954942.3 | G29: 40082473.66 | I29: 888037416
B30: RESULTADO DE EXPLOTACIÓN | C30: -25753278.27 | E30: 59974757.43 | F30: 34221479.16 | G30: 19973331.9 | I30: 54194811.06
B31: DIVERSOS Y EXTRAORDINARIOS
B32: Ingresos Div. y Extr | C32: 4207419.73 | E32: 6985804.03 | F32: 11193223.76 | G32: 1104027.23 | I32: 12297250.99
B33: Gtos. Div. y Extraor | C33: 448069.48 | E33: 743953.75 | F33: 1192023.23 | G33: 81149.22 | I33: 1273172.45
B34: RESULTADOS DIV. Y EXTRAORDINARIOS | C34: 3759350.25 | E34: 6241850.28 | F34: 10001200.53 | G34: 1022878.01 | I34: 11024078.54
B35: FINANCIEROS
B36: Ingresos Financieros | C36: 11587074.86 | E36: 19238639.98 | F36: 30825714.84 | G36: 2098518.08 | I36: 32924232.92
B37: Gastos Financieros | C37: 48742600.37 | E37: 80929945.71 | F37: 129672546.1 | G37: 8827700.56 | I37: 138500246.6
B38: RESULTADO FINANCIERO | C38: -37155525.51 | E38: -61691305.73 | F38: -98846831.24 | G38: -6729182.48 | I38: -105576013.7
B39: I.R.A.E. | C39: 10356761.5 | E39: 17195884.9 | F39: 27552646.4 | G39: 1875697.81 | I39: 29428344.21
B40: RESULTADO NETO | C40: -48792692.03 | E40: 21721186.88 | F40: -27071505.15 | G40: 16142725.24 | I40: -10928779.91

Sheet B-SAT-403
B4: S I S T E M A A T L Á N T I D A
D6: C O S T O S T O T A L E S
C10: C O N C E P T O | D10: C O S T O S O P E R A T I V O S
D13: AGUA | E13: ALCANTARILLADO | F13: TOTAL
C15: RETRIBUCIONES AL PERSONAL | D15: 41986115.14 | E15: 475076.3901 | F15: 42461191.53
C17: MATERIALES Y SUMINISTROS | D17: 182837412.6 | E17: 706958.9327 | F17: 183544371.5
C19: ENERGÍA Y FLUÍDOS | D19: 27815332.47 | E19: 3787896.838 | F19: 31603229.31
C21: SERVICIOS CONTRATADOS | D21: 43205578.05 | E21: 2461053.345 | F21: 45666631.4
C23: GASTOS VARIOS | D23: 22319610.67 | E23: 2461.385378 | F23: 22322072.05
C25: AMORTIZACIÓN | D25: 39167695.68 | E25: 4897986.634 | F25: 44065682.32
C28: TOTAL | D28: 357331744.6 | E28: 12331433.53 | F28: 369663178.1 | H28: 0.5640571099
C33: C O N C E P T O | D33: C O S T O D E A D M I N I S T R A T I V O - C O M E R C I A L
D36: COMERCIALIZACIÓN | E36: ADMINISTRACIÓN | F36: TOTAL
C38: RETRIBUCIONES AL PERSONAL | D38: 82416678.03 | E38: 30887279.59 | F38: 113303957.6
C40: MATERIALES Y SUMINISTROS | D40: 8089097.557 | E40: 202424.2082 | F40: 8291521.765
C42: ENERGÍA Y FLUÍDOS | D42: 609823.7612 | E42: 4530755.814 | F42: 5140579.575
C44: SERVICIOS CONTRATADOS | D44: 140060186.8 | E44: 5271147.074 | F44: 145331333.9
C46: GASTOS VARIOS | D46: 1188267.523 | E46: 337471.3722 | F46: 1525738.895
C48: AMORTIZACIÓN | D48: 10614811.36 | E48: 1493684.33 | F48: 12108495.69
C52: TOTAL | D52: 242978865 | E52: 42722762.39 | F52: 285701627.4 | H52: 0.4359428901
B57: C O S T O D E E X P L O T A C I Ó N | H57: 655364805.6

Sheet C-SAT-403
B4: COBERTURAS, COSTOS E INGRESOS PROMEDIO
B6: S I S T E M A A T L Á N T I D A
C10: 1. COMPOSICIÓN DEL COSTO PROPIO POR CONEXIÓN | D10: OPERATIVOS | F10: ADMINISTRATIVO-COMERCIAL
D12: AGUA | E12: ALCANTARILLADO
D13: ($/conex.agua) | E13: ($/conex.desagüe) | F13: ($/conex.agua)
C15: RETRIBUCIONES AL PERSONAL | D15: =+'B-SAT-403'!D15/'C-SAT-403'!$D$32 -> 547.1216463 | E15: =+'B-SAT-403'!E15/'C-SAT-403'!$E$32 -> 65.34750895 | F15: =(+'B-SAT-403'!D38+'B-SAT-403'!E38)/$D$32 -> 1476.465437
C17: MATERIALES Y SUMINISTROS | D17: =+'B-SAT-403'!D17/'C-SAT-403'!$D$32 -> 2382.556849 | E17: =+'B-SAT-403'!E17/'C-SAT-403'!$E$32 -> 97.24331949 | F17: =(+'B-SAT-403'!D40+'B-SAT-403'!E40)/$D$32 -> 108.0469347
C19: ENERGÍA Y FLUÍDOS | D19: =+'B-SAT-403'!D19/'C-SAT-403'!$D$32 -> 362.4619817 | E19: =+'B-SAT-403'!E19/'C-SAT-403'!$E$32 -> 521.031202 | F19: =(+'B-SAT-403'!D42+'B-SAT-403'!E42)/$D$32 -> 66.98696345
C21: SERVICIOS CONTRATADOS | D21: =+'B-SAT-403'!D21/'C-SAT-403'!$D$32 -> 563.0124844 | E21: =+'B-SAT-403'!E21/'C-SAT-403'!$E$32 -> 338.5217807 | F21: =(+'B-SAT-403'!D44+'B-SAT-403'!E44)/$D$32 -> 1893.814619
C23: GASTOS VARIOS | D23: =+'B-SAT-403'!D23/'C-SAT-403'!$D$32 -> 290.8471549 | E23: =+'B-SAT-403'!E23/'C-SAT-403'!$E$32 -> 0.3385674522 | F23: =(+'B-SAT-403'!D46+'B-SAT-403'!E46)/$D$32 -> 19.88192462
C25: AMORTIZACIÓN | D25: =+'B-SAT-403'!D25/'C-SAT-403'!$D$32 -> 510.3947835 | E25: =+'B-SAT-403'!E25/'C-SAT-403'!$E$32 -> 673.7258094 | F25: =(+'B-SAT-403'!D48+'B-SAT-403'!E48)/$D$32 -> 157.7859746
C29: TOTAL | D29: =SUM(D15:D25) -> 4656.3949 | E29: =SUM(E15:E25) -> 1696.208188 | F29: =SUM(F15:F25) -> 3722.981853
C32: 2.CONEXIONES (promedio anual) | D32: 76740 | E32: 7270
C35: 3.COBERTURAS COSTO/INGRESO
C37: 3.1 COSTO DE EXPLOTACIÓN/ INGRESO DE EXPLOT. | D37: =+'A-SAT-403'!F29/'A-SAT-403'!F12 -> 0.9612078964 | E37: =+'A-SAT-403'!G29/'A-SAT-403'!G12 -> 0.6674204648
C39: 3.3 TOTAL | D39: =(+'A-SAT-403'!F29+'A-SAT-403'!F33+'A-SAT-403'!F37-'A-SAT-403'!F39)/('A-SAT-403'!F12+'A-SAT-403'!F32+'A-SAT-403'!F36) -> 1.029291973 | E39: =(+'A-SAT-403'!G29+'A-SAT-403'!G33+'A-SAT-403'!G37-'A-SAT-403'!G39)/('A-SAT-403'!G12+'A-SAT-403'!G32+'A-SAT-403'!G36) -> 0.7448127399
C42: 4.M3 ELEVADOS | D42: 15154110
C44: 5.M3 FACTURADOS | D44: 7574450
C47: 6. COSTO PROMEDIO
C49: 6.1 COSTO VARIABLE/ M3ELEVADOS | D49: =+'A-SAT-403'!F15/'C-SAT-403'!D42 -> 14.27193103
C51: 6.2 COSTO VARIABLE / M3FACTURADOS | D51: =+'A-SAT-403'!F15/'C-SAT-403'!D44 -> 28.55367884
C53: 6.3 COSTO EXPLOTACIÓN/M3FACT | D53: =ROUND(+'A-SAT-403'!F29/'C-SAT-403'!D44,2) -> 111.95
C55: 6.4 TOTAL/M3FACT | D55: =(+'A-SAT-403'!F29+'A-SAT-403'!F33+'A-SAT-403'!F37-'A-SAT-403'!F39)/'C-SAT-403'!D44 -> 125.5889029
C58: 7. INGRESOS PROMEDIO
C60: 7.1 VARIABLE/M3 FACT | D60: =+'A-SAT-403'!F7/D44 -> 52.16556914
C62: 7.2 FIJO/CONEXIONES | D62: =+'A-SAT-403'!F8/12/'C-SAT-403'!D32 -> 436.1290396
C64: 7.3 INGRESO EXPLOTACIÓN/M3FACT | D64: =+'A-SAT-403'!F12/'C-SAT-403'!D44 -> 116.4673899
C66: 7.4 TOTAL/M3FACT | D66: =(+'A-SAT-403'!F12+'A-SAT-403'!F32+'A-SAT-403'!F36)/'C-SAT-403'!D44 -> 122.0148473

Sheet A-CC-404
B2: CIUDAD DE LA COSTA | C2: ESTADO DE RENDIMIENTO ECONÓMICO (a valores históricos) | H2: PERÍODO ENERO-DICIEMBRE-2024
C4: AGUA POTABLE
B5: CONCEPTOS | C5: USINA | D5: PERFORACIÓN | E5: MIXTO | F5: SUB-TOTAL | G5: ALCANTARILLADO | H5: OTROS INGRESOS | I5: TOTAL
B6: INGRESOS
B7: Ingresos Variables | C7: 408198988.7 | F7: 408198988.7 | I7: 408198988.7
B8: Ingresos Fijos | C8: 313218650.1 | F8: 313218650.1 | I8: 313218650.1
B9: INGRESOS DE EXPLOTACIÓN | C9: 721417638.8 | F9: 721417638.8 | I9: 721417638.8
B10: Ingresos Alcantarillado | G10: 157232482.8 | I10: 157232482.8
B11: Otros Ingresos | C11: 40115406.99 | F11: 40115406.99 | G11: 4009069.7 | I11: 44124476.69
B12: TOTAL ING. DE EXPLOTACIÓN | C12: 761533045.8 | F12: 761533045.8 | G12: 161241552.5 | I12: 922774598.3
B13: COSTOS DE EXPLOTACIÓN
B14: OPERATIVO
B15: Costo Operativo Var | C15: 218523163.1 | F15: 218523163.1 | G15: 27789883.9 | I15: 246313047
B16: Costo Operativo Fijo | C16: 28646045.34 | F16: 28646045.34 | G16: 109512721 | I16: 138158766.3
B17: TOTAL OPERATIVO | C17: 247169208.5 | F17: 247169208.5 | G17: 137302604.8 | I17: 384471813.3
B18: NO OPERATIVO
B19: COMERCIALIZACIÓN
B20: Comercial Propios | C20: 123727331.9 | F20: 123727331.9 | G20: 16844948.56 | I20: 140572280.4
B21: Comercial Asignados | C21: 73788923.53 | F21: 73788923.53 | G21: 15623538.1 | I21: 89412461.63
B22: TOTAL COMERCIALIZACIÓN | C22: 197516255.4 | F22: 197516255.4 | G22: 32468486.66 | I22: 229984742.1
B23: ADMINISTRACIÓN
B24: Administración Propios | C24: 14356983.34 | F24: 14356983.34 | G24: 1954527.6 | I24: 16311510.94
B25: Administ. Asignados | C25: 80608942.82 | F25: 80608942.82 | G25: 17067560.18 | I25: 97676503
B26: Gastos Fiscales | C26: 33653312.86 | F26: 33653312.86 | G26: 7125511.4 | I26: 40778824.26
B27: TOTAL ADMINISTRACIÓN | C27: 128619239 | F27: 128619239 | G27: 26147599.18 | I27: 154766838.2
B28: TOTAL NO OPERATIVO | C28: 326135494.4 | F28: 326135494.4 | G28: 58616085.84 | I28: 384751580.3
B29: COSTO DE EXPLOTACIÓN | C29: 573304702.9 | F29: 573304702.9 | G29: 195918690.7 | I29: 769223393.6
B30: RESULTADO DE EXPLOTACIÓON | C30: 188228342.9 | F30: 188228342.9 | G30: -34677138.2 | I30: 153551204.7
B31: DIVERSOS Y EXTRAORDINARIOS
B32: Ingresos Div. y Extr | C32: 9662477.48 | F32: 9662477.48 | G32: 2964161.02 | I32: 12626638.5
B33: Gtos. Div. y Extraor | C33: 1029006.36 | F33: 1029006.36 | G33: 217874.43 | I33: 1246880.79
B34: RESULTADOS DIV. Y EXTRAORDINARIOS | C34: 8633471.12 | F34: 8633471.12 | G34: 2746286.59 | I34: 11379757.71
B35: FINANCIEROS
B36: Ingresos Financieros | C36: 26610097.41 | F36: 26610097.41 | G36: 5634231.4 | I36: 32244328.81
B37: Gastos Financieros | C37: 111938980.2 | F37: 111938980.2 | G37: 23701157.79 | I37: 135640137.9
B38: RESULTADO FINANCIERO | C38: -85328882.75 | F38: -85328882.75 | G38: -18066926.39 | I38: -103395809.1
B39: I.R.A.E. | C39: 23784642.4 | F39: 23784642.4 | G39: 5035989.8 | I39: 28820632.2
B40: RESULTADO NETO | C40: 135317573.7 | F40: 135317573.7 | G40: -44961788.2 | I40: 90355785.5

Sheet B-CC-404
B4: C I U D A D D E L A C O S T A
D6: C O S T O S T O T A L E S
C10: C O N C E P T O | D10: C O S T O S O P E R A T I V O S
D13: AGUA | E13: ALCANTARILLADO | F13: TOTAL
C15: RETRIBUCIONES AL PERSONAL | D15: 33139 | E15: 11223388.06 | F15: 11256527.06
C17: MATERIALES Y SUMINISTROS | D17: 218958625.3 | E17: 12482043.32 | F17: 231440668.6
C19: ENERGÍA Y FLUÍDOS | D19: 2590450.85 | E19: 9483083.15 | F19: 12073534
C21: SERVICIOS CONTRATADOS | D21: 116758.88 | E21: 36916884.6 | F21: 37033643.48
C23: GASTOS VARIOS | D23: 3035217.06 | E23: 93821.65 | F23: 3129038.71
C25: AMORTIZACIÓN | D25: 22435017.38 | E25: 67103384.07 | F25: 89538401.45
C28: TOTAL | D28: 247169208.5 | E28: 137302604.9 | F28: 384471813.3 | H28: 0.7102019633
C33: C O N C E P T O | D33: C O S T O D E A D M I N I S T R A T I V O - C O M E R C I A L
D36: COMERCIALIZACIÓN | E36: ADMINISTRACIÓN | F36: TOTAL
C38: RETRIBUCIONES AL PERSONAL | D38: 33163272.89 | E38: 7103539.887 | F38: 40266812.77
C40: MATERIALES Y SUMINISTROS | D40: 7017898.531 | E40: 223685.381 | F40: 7241583.912
C42: ENERGÍIA Y FLUÍDOS | D42: 124294.0501 | E42: 2517232.741 | F42: 2641526.791
C44: SERVICIOS CONTRATADOS | D44: 94139155.41 | E44: 5156545.238 | F44: 99295700.65
C46: GASTOS VARIOS | D46: 580965.8086 | E46: 222021.2929 | F46: 802987.1015
C48: AMORTIZACIÓN | D48: 5546693.763 | E48: 1088486.4 | F48: 6635180.163
C52: TOTAL | D52: 140572280.5 | E52: 16311510.94 | F52: 156883791.4 | H52: 0.2897980367
B57: C O S T O D E E X P L O T A C I Ó N | H57: 541355604.7

Sheet C-CC-404
B4: COBERTURAS, COSTOS E INGRESOS PROMEDIO
B5: C I U D A D D E LA C O S T A
C10: 1. COMPOSICIÓN DEL COSTO PROPIO POR CONEXIÓN | D10: OPERATIVOS | F10: ADMINISTRATIVO-COMERCIAL
D12: AGUA | E12: ALCANTARILLADO
D13: ($/conex.agua) | E13: ($/conex.desagüe) | F13: ($/conex.agua)
C15: RETRIBUCIONES AL PERSONAL | D15: =+'B-CC-404'!D15/'C-CC-404'!$D$32 -> 0.6333664615 | E15: =+'B-CC-404'!E15/'C-CC-404'!$E$32 -> 787.8273242 | F15: =(+'B-CC-404'!D38+'B-CC-404'!E38)/$D$32 -> 769.5962076
C17: MATERIALES Y SUMINISTROS | D17: =+'B-CC-404'!D17/'C-CC-404'!$D$32 -> 4184.829045 | E17: =+'B-CC-404'!E17/'C-CC-404'!$E$32 -> 876.1788095 | F17: =(+'B-CC-404'!D40+'B-CC-404'!E40)/$D$32 -> 138.4041878
C19: ENERGÍA Y FLUÍDOS | D19: =+'B-CC-404'!D19/'C-CC-404'!$D$32 -> 49.50978269 | E19: =+'B-CC-404'!E19/'C-CC-404'!$E$32 -> 665.666373 | F19: =(+'B-CC-404'!D42+'B-CC-404'!E42)/$D$32 -> 50.48596749
C21: SERVICIOS CONTRATADOS | D21: =+'B-CC-404'!D21/'C-CC-404'!$D$32 -> 2.231544666 | E21: =+'B-CC-404'!E21/'C-CC-404'!$E$32 -> 2591.385975 | F21: =(+'B-CC-404'!D44+'B-CC-404'!E44)/$D$32 -> 1897.781061
C23: GASTOS VARIOS | D23: =+'B-CC-404'!D23/'C-CC-404'!$D$32 -> 58.01034097 | E23: =+'B-CC-404'!E23/'C-CC-404'!$E$32 -> 6.585824091 | F23: =(+'B-CC-404'!D46+'B-CC-404'!E46)/$D$32 -> 15.34702614
C25: AMORTIZACIÓN | D25: =+'B-CC-404'!D25/'C-CC-404'!$D$32 -> 428.787458 | E25: =+'B-CC-404'!E25/'C-CC-404'!$E$32 -> 4710.331607 | F25: =(+'B-CC-404'!D48+'B-CC-404'!E48)/$D$32 -> 126.8143451
C29: TOTAL | D29: =SUM(D15:D25) -> 4724.001538 | E29: =SUM(E15:E25) -> 9637.975913 | F29: =SUM(F15:F25) -> 2998.428795
C32: 2.CONEXIONES (promedio anual) | D32: 52322 | E32: 14246
C35: 3.COBERTURAS COSTO/INGRESO
C37: 3.1 COSTO DE EXPLOTACIÓN/ INGRESO DE EXPLOT. | D37: =+'A-CC-404'!F29/'A-CC-404'!F12 -> 0.7528297111 | E37: =+'A-CC-404'!G29/'A-CC-404'!G12 -> 1.215063287
C39: 3.3 TOTAL | D39: =(+'A-CC-404'!F29+'A-CC-404'!F33+'A-CC-404'!F37-'A-CC-404'!F39)/('A-CC-404'!F12+'A-CC-404'!F32+'A-CC-404'!F36) -> 0.830387791 | E39: =(+'A-CC-404'!G29+'A-CC-404'!G33+'A-CC-404'!G37-'A-CC-404'!G39)/('A-CC-404'!G12+'A-CC-404'!G32+'A-CC-404'!G36) -> 1.264730351
C42: 4.M3 ELEVADOS | D42: 12599340
C44: 5.M3 FACTURADOS | D44: 7364180
C47: 6. COSTO PROMEDIO
C49: 6.1 COSTO VARIABLE/ M3ELEVADOS | D49: =+'A-CC-404'!F15/'C-CC-404'!D42 -> 17.34401668
C51: 6.2 COSTO VARIABLE / M3FACTURADOS | D51: =+'A-CC-404'!F15/'C-CC-404'!D44 -> 29.67379438
C53: 6.3 COSTO EXPLOTACIÓN/M3FACT | D53: =+'A-CC-404'!F29/'C-CC-404'!D44 -> 77.85044674
C55: 6.4 TOTAL/M3FACT | D55: =(+'A-CC-404'!F29+'A-CC-404'!F33+'A-CC-404'!F37-'A-CC-404'!F39)/D44 -> 89.960871
C58: 7. INGRESOS PROMEDIO
C60: 7.1 VARIABLE/M3 FACT | D60: =+'A-CC-404'!F7/'C-CC-404'!D44 -> 55.4303383
C62: 7.2 FIJO/CONEXIONES | D62: =(+'A-CC-404'!F8/12)/'C-CC-404'!D32 -> 498.8638465
C64: 7.3 INGRESO EXPLOTACIÓN/M3FACT | D64: =('A-CC-404'!F12)/D44 -> 103.4104335
C66: 7.4 TOTAL/M3FACT | D66: =('A-CC-404'!F12+'A-CC-404'!F32+'A-CC-404'!F36)/D44 -> 108.335975

Sheet A-FDA-405
B2: FLORIDA | C2: ESTADO DE RENDIMIENTO ECONÓMICO (a valores históricos) | G2: PERÍODO ENERO-DICIEMBRE-2024
C4: AGUA POTABLE
B5: CONCEPTOS | C5: USINA | D5: PERFORACIÓN | E5: MIXTO | F5: SUB-TOTAL | G5: ALCANTARILLADO | H5: OTROS INGRESOS | I5: TOTAL
B6: INGRESOS
B7: Ingresos Variables | C7: 98106131.95 | D7: 6428113.74 | E7: 22492477.96 | F7: 127026723.7 | I7: 127026723.7
B8: Ingresos Fijos | C8: 84443286.7 | D8: 6675522.75 | E8: 23070848.65 | F8: 114189658.1 | I8: 114189658.1
B9: INGRESOS DE EXPLOTACIÓN | C9: 182549418.7 | D9: 13103636.49 | E9: 45563326.61 | F9: 241216381.8 | I9: 241216381.8
B10: Ingresos Alcantarillado | G10: 116698364.6 | I10: 116698364.6
B11: Otros Ingresos | C11: 14864820.42 | D11: 1165514.9 | E11: 3022152.97 | F11: 19052488.29 | G11: 2767772.12 | I11: 21820260.41
B12: TOTAL ING. DE EXPLOTACIÓN | C12: 197414239.1 | D12: 14269151.39 | E12: 48585479.58 | F12: 260268870 | G12: 119466136.7 | I12: 379735006.8
B13: COSTOS DE EXPLOTACIÓN
B14: OPERATIVO
B15: Costo Operativo Var | C15: 39075437.88 | D15: 1631591.51 | E15: 6976660.93 | F15: 47683690.32 | G15: 26416424.61 | I15: 74100114.93
B16: Costo Operativo Fijo | C16: 100391408.8 | D16: 13262275.04 | E16: 39005740.64 | F16: 152659424.5 | G16: 115157946.9 | I16: 267817371.3
B17: TOTAL OPERATIVO | C17: 139466846.7 | D17: 14893866.55 | E17: 45982401.57 | F17: 200343114.8 | G17: 141574371.5 | I17: 341917486.3
B18: NO OPERATIVO
B19: COMERCIALIZACIÓN
B20: Comercial Propios | C20: 82323170.68 | D20: 10150045.07 | E20: 21101516.42 | F20: 113574732.2 | G20: 37422951.37 | I20: 150997683.5
B21: Comercial Asignados | C21: 19128499.11 | D21: 1382612.77 | E21: 4707701.44 | F21: 25218813.32 | G21: 11575699.44 | I21: 36794512.76
B22: TOTAL COMERCIALIZACIÓN | C22: 101451669.8 | D22: 11532657.84 | E22: 25809217.86 | F22: 138793545.5 | G22: 48998650.81 | I22: 187792196.3
B23: ADMINISTRACIÓN
B24: Administración Propios | C24: 9903750.87 | D24: 1221084.11 | E24: 2538582.58 | F24: 13663417.56 | G24: 4502105.41 | I24: 18165522.97
B25: Administ. Asignados | C25: 20896470.81 | D25: 1510402.08 | E25: 5142815.68 | F25: 27549688.57 | G25: 12645595.69 | I25: 40195284.26
B26: Gastos Fiscales | C26: 8724037.89 | D26: 630575.66 | E26: 2147066.84 | F26: 11501680.39 | G26: 5279391.76 | I26: 16781072.15
B27: TOTAL ADMINISTRACIÓN | C27: 39524259.57 | D27: 3362061.85 | E27: 9828465.1 | F27: 52714786.52 | G27: 22427092.86 | I27: 75141879.38
B28: TOTAL NO OPERATIVO | C28: 140975929.4 | D28: 14894719.69 | E28: 35637682.96 | F28: 191508332 | G28: 71425743.67 | I28: 262934075.7
B29: COSTO DE EXPLOTACIÓN | C29: 280442776 | D29: 29788586.24 | E29: 81620084.53 | F29: 391851446.8 | G29: 213000115.2 | I29: 604851561.9
B30: RESULTADO DE EXPLOTACIÓN | C30: -83028536.95 | D30: -15519434.85 | E30: -33034604.95 | F30: -131582576.8 | G30: -93533978.43 | I30: -225116555.2
B31: DIVERSOS Y EXTRAORDINARIOS
B32: Ingresos Div. y Extr | C32: 2504829.53 | D32: 181049.44 | E32: 616461.7 | F32: 3302340.67 | G32: 2196188.81 | I32: 5498529.48
B33: Gtos. Div. y Extraor | C33: 266752.06 | D33: 19280.86 | E33: 65650.18 | F33: 351683.1 | G33: 161426.2 | I33: 513109.3
B34: RESULTADOS DIV. Y EXTRAORDINARIOS | C34: 2238077.47 | D34: 161768.58 | E34: 550811.52 | F34: 2950657.57 | G34: 2034762.61 | I34: 4985420.18
B35: FINANCIEROS
B36: Ingresos Financieros | C36: 6898206.4 | D36: 498604.09 | E36: 1697712.74 | F36: 9094523.23 | G36: 4174481.42 | I36: 13269004.65
B37: Gastos Financieros | C37: 29018239.83 | D37: 2097445.66 | E37: 7141658.65 | F37: 38257344.14 | G37: 17560521.65 | I37: 55817865.79
B38: RESULTADO FINANCIERO | C38: -22120033.43 | D38: -1598841.57 | E38: -5443945.91 | F38: -29162820.91 | G38: -13386040.23 | I38: -42548861.14
B39: I.R.A.E. | C39: 6165756.17 | D39: 445662.41 | E39: 1517449.93 | F39: 8128868.51 | G39: 3731235.78 | I39: 11860104.29
B40: RESULTADO NETO | C40: -96744736.74 | D40: -16510845.43 | E40: -36410289.41 | F40: -149665871.6 | G40: -101154020.3 | I40: -250819891.8

Sheet B-FDA-405
B4: F LO R I D A
D6: C O S T O S T O T A L E S
C10: C O N C E P T O | D10: C O S T O S O P E R A T I V O S
D13: AGUA | E13: ALCANTARILLADO | F13: TOTAL
C15: RETRIBUCIONES AL PERSONAL | D15: 71790550.28 | E15: 42470451.48 | F15: 114261001.8
C17: MATERIALES Y SUMINISTROS | D17: 35871953.25 | E17: 4899213.646 | F17: 40771166.89
C19: ENERGÍA Y FLUÍDOS | D19: 16283372.21 | E19: 17837282.56 | F19: 34120654.78
C21: SERVICIOS CONTRATADOS | D21: 48266046.53 | E21: 49622851.61 | F21: 97888898.14
C23: GASTOS VARIOS | D23: 2841168.14 | E23: 1929425.795 | F23: 4770593.935
C25: AMORTIZACIÓN | D25: 25290024.37 | E25: 24815146.39 | F25: 50105170.76
C28: TOTAL | D28: 200343114.8 | E28: 141574371.5 | F28: 341917486.3 | H28: 0.6690088103
C33: C O N C E P T O | D33: C O S T O D E A D M I N I S T R A T I V O - C O M E R C I A L
D36: COMERCIALIZACIÓN | E36: ADMINISTRACIÓN | F36: TOTAL
C38: RETRIBUCIONES AL PERSONAL | D38: 69293504.02 | E38: 6643603.968 | F38: 75937107.99
C40: MATERIALES Y SUMINISTROS | D40: 4680600.822 | E40: 162079.7861 | F40: 4842680.608
C42: ENERGÍA Y FLUÍDOS | D42: 186233.7746 | E42: 3922704.535 | F42: 4108938.31
C44: SERVICIOS CONTRATADOS | D44: 74187620.45 | E44: 5886504.478 | F44: 80074124.92
C46: GASTOS VARIOS | D46: 673015.3362 | E46: 455142.1231 | F46: 1128157.459
C48: AMORTIZACIÓN | D48: 1976709.14 | E48: 1095488.079 | F48: 3072197.22
C52: TOTAL | D52: 150997683.5 | E52: 18165522.97 | F52: 169163206.5 | H52: 0.3309911897
B57: C O S T O D E E X P L O T A C I Ó N | H57: 511080692.8

Sheet C-FDA-405
B4: COBERTURAS, COSTOS E INGRESOS PROMEDIO
B6: F L O R I D A
C10: 1. COMPOSICIÓN DEL COSTO PROPIO POR CONEXIÓN | D10: OPERATIVOS | F10: ADMINISTRATIVO-COMERCIAL
D12: AGUA | E12: ALCANTARILLADO
D13: ($/conex.agua) | E13: ($/conex.desagüe) | F13: ($/conex.agua)
C15: RETRIBUCIONES AL PERSONAL | D15: =+'B-FDA-405'!D15/'C-FDA-405'!$D$32 -> 2571.478984 | E15: =+'B-FDA-405'!E15/'C-FDA-405'!$E$32 -> 2308.427627 | F15: =+('B-FDA-405'!D38+'B-FDA-405'!E38)/'C-FDA-405'!$D$32 -> 2720.005301
C17: MATERIALES Y SUMINISTROS | D17: =+'B-FDA-405'!D17/'C-FDA-405'!$D$32 -> 1284.904121 | E17: =+'B-FDA-405'!E17/'C-FDA-405'!$E$32 -> 266.2905558 | F17: =+('B-FDA-405'!D40+'B-FDA-405'!E40)/'C-FDA-405'!$D$32 -> 173.4608714
C19: ENERGÍA Y FLUÍDOS | D19: =+'B-FDA-405'!D19/'C-FDA-405'!$D$32 -> 583.2571177 | E19: =+'B-FDA-405'!E19/'C-FDA-405'!$E$32 -> 969.5229136 | F19: =+('B-FDA-405'!D42+'B-FDA-405'!E42)/'C-FDA-405'!$D$32 -> 147.1788205
C21: SERVICIOS CONTRATADOS | D21: =+'B-FDA-405'!D21/'C-FDA-405'!$D$32 -> 1728.850438 | E21: =+'B-FDA-405'!E21/'C-FDA-405'!$E$32 -> 2697.187282 | F21: =+('B-FDA-405'!D44+'B-FDA-405'!E44)/'C-FDA-405'!$D$32 -> 2868.189875
C23: GASTOS VARIOS | D23: =+'B-FDA-405'!D23/'C-FDA-405'!$D$32 -> 101.7683265 | E23: =+'B-FDA-405'!E23/'C-FDA-405'!$E$32 -> 104.8714966 | F23: =+('B-FDA-405'!D46+'B-FDA-405'!E46)/'C-FDA-405'!$D$32 -> 40.40968047
C25: AMORTIZACIÓN | D25: =+'B-FDA-405'!D25/'C-FDA-405'!$D$32 -> 905.8680554 | E25: =+'B-FDA-405'!E25/'C-FDA-405'!$E$32 -> 1348.795869 | F25: =+('B-FDA-405'!D48+'B-FDA-405'!E48)/'C-FDA-405'!$D$32 -> 110.0435998
C29: TOTAL | D29: =SUM(D15:D26) -> 7176.127043 | E29: =SUM(E15:E26) -> 7695.095743 | F29: =SUM(F15:F26) -> 6059.288148
C32: 2.CONEXIONES (promedio anual) | D32: 27918 | E32: 18398
C35: 3.COBERTURAS COSTO/INGRESO
C37: 3.1 COSTO DE EXPLOTACIÓN/ INGRESO DE EXPLOT. | D37: =+'A-FDA-405'!F29/'A-FDA-405'!F12 -> 1.505564022 | E37: =+'A-FDA-405'!G29/'A-FDA-405'!G12 -> 1.78293298
C39: 3.3 TOTAL | D39: =(+'A-FDA-405'!F29+'A-FDA-405'!F33+'A-FDA-405'!F37-'A-FDA-405'!F39)/('A-FDA-405'!F12+'A-FDA-405'!F32+'A-FDA-405'!F36) -> 1.548898717 | E39: =(+'A-FDA-405'!G29+'A-FDA-405'!G33+'A-FDA-405'!G37-'A-FDA-405'!G39)/('A-FDA-405'!G12+'A-FDA-405'!G32+'A-FDA-405'!G36) -> 1.803850819
C42: 4.M3 ELEVADOS | D42: 3799120
C44: 5.M3 FACTURADOS | D44: 2687140
C47: 6. COSTO PROMEDIO
C49: 6.1 COSTO VARIABLE/ M3ELEVADOS | D49: =+'A-FDA-405'!F15/'C-FDA-405'!D42 -> 12.55124616
C51: 6.2 COSTO VARIABLE / M3FACTURADOS | D51: =+'A-FDA-405'!F15/'C-FDA-405'!D44 -> 17.74514552
C53: 6.3 COSTO EXPLOTACIÓN/M3FACT | D53: =+'A-FDA-405'!F29/'C-FDA-405'!D44 -> 145.8247232
C55: 6.4 TOTAL/M3FACT | D55: =(+'A-FDA-405'!F29+'A-FDA-405'!F33+'A-FDA-405'!F37-'A-FDA-405'!F39)/'C-FDA-405'!D44 -> 157.1676971
C58: 7. INGRESOS PROMEDIO
C60: 7.1 VARIABLE/M3 FACT | D60: =+'A-FDA-405'!F7/'C-FDA-405'!D44 -> 47.2720899
C62: 7.2 FIJO/CONEXIONES | D62: =(+'A-FDA-405'!F8/12)/'C-FDA-405'!D32 -> 340.8483717
C64: 7.3 INGRESO EXPLOTACIÓN/M3FACT | D64: =+'A-FDA-405'!F12/'C-FDA-405'!D44 -> 96.85720507
C66: 7.4 TOTAL/M3FACT | D66: =(+'A-FDA-405'!F12+'A-FDA-405'!F32+'A-FDA-405'!F36)/D44 -> 101.4706096

Sheet A-DUR-406
B2: DURAZNO | C2: ESTADO DE RENDIMIENTO ECONÓMICO (a valores históricos) | G2: PERÍODO ENERO-DICIEMBRE-2024
C4: AGUA POTABLE
B5: CONCEPTOS | C5: USINA | D5: PERFORACIÓN | E5: MIXTO | F5: SUB-TOTAL | G5: ALCANTARILLADO | H5: OTROS INGRESOS | I5: TOTAL
B6: INGRESOS
B7: Ingresos Variables | C7: 129139526.6 | D7: 6411982.39 | F7: 135551509 | I7: 135551509
B8: Ingresos Fijos | C8: 93344288.41 | D8: 5173727.42 | F8: 98518015.83 | I8: 98518015.83
B9: INGRESOS DE EXPLOTACIÓN | C9: 222483815 | D9: 11585709.81 | F9: 234069524.8 | I9: 234069524.8
B10: Ingresos Alcantarillado | G10: 118352595.2 | I10: 118352595.2
B11: Otros Ingresos | C11: 23097878.48 | D11: 1189861.16 | F11: 24287739.64 | G11: 2484497.67 | I11: 26772237.31
B12: TOTAL ING. DE EXPLOTACIÓN | C12: 245581693.5 | D12: 12775570.97 | F12: 258357264.5 | G12: 120837092.9 | I12: 379194357.4
B13: COSTOS DE EXPLOTACIÓN
B14: OPERATIVO
B15: Costo Operativo Var | C15: 46309443.03 | D15: 47331.81 | F15: 46356774.84 | G15: 16275712.17 | I15: 62632487.01
B16: Costo Operativo Fijo | C16: 70104853 | D16: 7852157.52 | F16: 77957010.52 | G16: 35047586.95 | I16: 113004597.5
B17: TOTAL OPERATIVO | C17: 116414296 | D17: 7899489.33 | F17: 124313785.4 | G17: 51323299.12 | I17: 175637084.5
B18: NO OPERATIVO
B19: COMERCIALIZACIÓN
B20: Comercial Propios | C20: 96887780.48 | F20: 96887780.48 | G20: 30219531.88 | I20: 127107312.4
B21: Comercial Asignados | C21: 23795696.02 | D21: 1237892.04 | F21: 25033588.06 | G21: 11708538.51 | I21: 36742126.57
B22: TOTAL COMERCIALIZACIÓN | C22: 120683476.5 | D22: 1237892.04 | F22: 121921368.5 | G22: 41928070.39 | I22: 163849438.9
B23: ADMINISTRACIÓN
B24: Administración Propios | C24: 7783760.14 | F24: 7783760.14 | G24: 2427773.51 | I24: 10211533.65
B25: Administ. Asignados | C25: 25995038.19 | D25: 1352305.37 | F25: 27347343.56 | G25: 12790712.66 | I25: 40138056.22
B26: Gastos Fiscales | C26: 10852631.57 | D26: 564572.08 | F26: 11417203.65 | G26: 5339976.39 | I26: 16757180.04
B27: TOTAL ADMINISTRACIÓN | C27: 44631429.9 | D27: 1916877.45 | F27: 46548307.35 | G27: 20558462.56 | I27: 67106769.91
B28: TOTAL NO OPERATIVO | C28: 165314906.4 | D28: 3154769.49 | F28: 168469675.9 | G28: 62486532.95 | I28: 230956208.8
B29: COSTO DE EXPLOTACIÓN | C29: 281729202.4 | D29: 11054258.82 | F29: 292783461.2 | G29: 113809832.1 | I29: 406593293.3
B30: RESULTADO DE EXPLOTACIÓN | C30: -36147508.93 | D30: 1721312.15 | F30: -34426196.78 | G30: 7027260.83 | I30: -27398935.95
B31: DIVERSOS Y EXTRAORDINARIOS
B32: Ingresos Div. y Extr | C32: 3115987.72 | D32: 162098.81 | F32: 3278086.53 | G32: 2221391.52 | I32: 5499478.05
B33: Gtos. Div. y Extraor | C33: 331837.35 | D33: 17262.72 | F33: 349100.07 | G33: 163278.69 | I33: 512378.76
B34: RESULTADOS DIV. Y EXTRAORDINARIOS | C34: 2784150.37 | D34: 144836.09 | F34: 2928986.46 | G34: 2058112.83 | I34: 4987099.29
B35: FINANCIEROS
B36: Ingresos Financieros | C36: 8581312.18 | D36: 446414.22 | F36: 9027726.4 | G36: 4222386.45 | I36: 13250112.85
B37: Gastos Financieros | C37: 36098452.35 | D37: 1877901.96 | F37: 37976354.31 | G37: 17762040.72 | I37: 55738395.03
B38: RESULTADO FINANCIERO | C38: -27517140.17 | D38: -1431487.74 | F38: -28948627.91 | G38: -13539654.27 | I38: -42488282.18
B39: I.R.A.E. | C39: 7670150.11 | D39: 399014.05 | F39: 8069164.16 | G39: 3774054.27 | I39: 11843218.43
B40: RESULTADO NETO | C40: -53210348.62 | D40: 833674.55 | F40: -52376674.07 | G40: -680226.34 | I40: -53056900.41

Sheet B-DUR-406
B4: D U R A Z N O
D6: C O S T O S T O T A L E S
C10: C O N C E P T O | D10: C O S T O S O P E R A T I V O S
D13: AGUA | E13: ALCANTARILLADO | F13: TOTAL
C15: RETRIBUCIONES AL PERSONAL | D15: 34916728.77 | E15: 13717839.03 | F15: 48634567.8
C17: MATERIALES Y SUMINISTROS | D17: 27338315.02 | E17: 5098677.303 | F17: 32436992.32
C19: ENERGÍA Y FLUÍDOS | D19: 18417913.63 | E19: 8141590.59 | F19: 26559504.22
C21: SERVICIOS CONTRATADOS | D21: 17127391.06 | E21: 10970415.3 | F21: 28097806.37
C23: GASTOS VARIOS | D23: 2462946.67 | E23: 977043.6591 | F23: 3439990.329
C25: AMORTIZACIÓN | D25: 24050490.2 | E25: 12417733.24 | F25: 36468223.44
C28: TOTAL | D28: 124313785.4 | E28: 51323299.12 | F28: 175637084.5 | H28: 0.5612198631
C33: C O N C E P T O | D33: C O S T O D E A D M I N I S T R A T I V O - C O M E R C I A L
D36: COMERCIALIZACIÓN | E36: ADMINISTRACIÓN | F36: TOTAL
C38: RETRIBUCIONES AL PERSONAL | D38: 53216277.43 | E38: 4412195.855 | F38: 57628473.28
C40: MATERIALES Y SUMINISTROS | D40: 5056105.063 | E40: 138232.2616 | F40: 5194337.324
C42: ENERGÍA Y FLUÍDOS | D42: 130676.1521 | E42: 3479439.003 | F42: 3610115.156
C44: SERVICIOS CONTRATADOS | D44: 64868533.85 | E44: 1696559.985 | F44: 66565093.84
C46: GASTOS VARIOS | D46: 769029.2128 | E46: 50441.86471 | F46: 819471.0776
C48: AMORTIZACIÓN | D48: 3066690.656 | E48: 434664.6799 | F48: 3501355.336
C52: TOTAL | D52: 127107312.4 | E52: 10211533.65 | F52: 137318846 | H52: 0.4387801369
B57: C O S T O D E E X P L O T A C I Ó N | H57: 312955930.5

Sheet C-DUR-406
B4: COBERTURAS, COSTOS E INGRESOS PROMEDIO
B6: D U R A Z N O
C10: 1. COMPOSICIÓN DEL COSTO PROPIO POR CONEXIÓN | D10: OPERATIVOS | F10: ADMINISTRATIVO-COMERCIAL
D12: AGUA | E12: ALCANTARILLADO
D13: ($/conex.agua) | E13: ($/conex.desagüe) | F13: ($/conex.agua)
C15: RETRIBUCIONES AL PERSONAL | D15: =+'B-DUR-406'!D15/'C-DUR-406'!$D$32 -> 1439.034321 | E15: =+'B-DUR-406'!E15/'C-DUR-406'!$E$32 -> 906.3054325 | F15: =(+'B-DUR-406'!D38+'B-DUR-406'!E38)/'C-DUR-406'!$D$32 -> 2375.060719
C17: MATERIALES Y SUMINISTROS | D17: =+'B-DUR-406'!D17/'C-DUR-406'!$D$32 -> 1126.702729 | E17: =+'B-DUR-406'!E17/'C-DUR-406'!$E$32 -> 336.8576442 | F17: =(+'B-DUR-406'!D40+'B-DUR-406'!E40)/'C-DUR-406'!$D$32 -> 214.0758871
C19: ENERGÍA Y FLUÍDOS | D19: =+'B-DUR-406'!D19/'C-DUR-406'!$D$32 -> 759.063371 | E19: =+'B-DUR-406'!E19/'C-DUR-406'!$E$32 -> 537.8957842 | F19: =(+'B-DUR-406'!D42+'B-DUR-406'!E42)/'C-DUR-406'!$D$32 -> 148.7848317
C21: SERVICIOS CONTRATADOS | D21: =+'B-DUR-406'!D21/'C-DUR-406'!$D$32 -> 705.8766512 | E21: =+'B-DUR-406'!E21/'C-DUR-406'!$E$32 -> 724.7895946 | F21: =(+'B-DUR-406'!D44+'B-DUR-406'!E44)/'C-DUR-406'!$D$32 -> 2743.368523
C23: GASTOS VARIOS | D23: =+'B-DUR-406'!D23/'C-DUR-406'!$D$32 -> 101.5062096 | E23: =+'B-DUR-406'!E23/'C-DUR-406'!$E$32 -> 64.55098171 | F23: =(+'B-DUR-406'!D46+'B-DUR-406'!E46)/'C-DUR-406'!$D$32 -> 33.77312387
C25: AMORTIZACIÓN | D25: =+'B-DUR-406'!D25/'C-DUR-406'!$D$32 -> 991.2005523 | E25: =+'B-DUR-406'!E25/'C-DUR-406'!$E$32 -> 820.4104943 | F25: =(+'B-DUR-406'!D48+'B-DUR-406'!E48)/'C-DUR-406'!$D$32 -> 144.3024784
C29: TOTAL | D29: =SUM(D15:D25) -> 5123.383835 | E29: =SUM(E15:E25) -> 3390.809932 | F29: =SUM(F15:F25) -> 5659.365563
C32: 2.CONEXIONES (promedio anual) | D32: 24264 | E32: 15136
C35: 3.COBERTURAS COSTO/INGRESO
C37: 3.1 COSTO DE EXPLOTACIÓN/ INGRESO DE EXPLOT. | D37: =+'A-DUR-406'!F29/'A-DUR-406'!F12 -> 1.133250353 | E37: =+'A-DUR-406'!G29/'A-DUR-406'!G12 -> 0.9418451681
C39: 3.3 TOTAL | D39: =+('A-DUR-406'!F29+'A-DUR-406'!F33+'A-DUR-406'!F37-'A-DUR-406'!F39)/('A-DUR-406'!F12+'A-DUR-406'!F32+'A-DUR-406'!F36) -> 1.193512446 | E39: =+('A-DUR-406'!G29+'A-DUR-406'!G33+'A-DUR-406'!G37-'A-DUR-406'!G39)/('A-DUR-406'!G12+'A-DUR-406'!G32+'A-DUR-406'!G36) -> 1.005344294
C42: 4.M3 ELEVADOS | D42: 4547650
C44: 5.M3 FACTURADOS | D44: 2575110
C47: 6. COSTO PROMEDIO
C49: 6.1 COSTO VARIABLE/ M3ELEVADOS | D49: =+'A-DUR-406'!F15/'C-DUR-406'!D42 -> 10.19356697
C51: 6.2 COSTO VARIABLE / M3FACTURADOS | D51: =+'A-DUR-406'!F15/'C-DUR-406'!D44 -> 18.00186199
C53: 6.3 COSTO EXPLOTACIÓN/M3FACT | D53: =+'A-DUR-406'!F29/'C-DUR-406'!D44 -> 113.6974581
C55: 6.4 TOTAL/M3FACT | D55: =(+'A-DUR-406'!F29+'A-DUR-406'!F33+'A-DUR-406'!F37-'A-DUR-406'!F39)/'C-DUR-406'!D44 -> 125.4469718
C58: 7. INGRESOS PROMEDIO
C60: 7.1 VARIABLE/M3 FACT | D60: =+'A-DUR-406'!F7/'C-DUR-406'!D44 -> 52.63911406
C62: 7.2 FIJO/CONEXIONES | D62: =+'A-DUR-406'!F8/12/'C-DUR-406'!D32 -> 338.3545439
C64: 7.3 INGRESO EXPLOTACIÓN/M3FACT | D64: =+'A-DUR-406'!F12/'C-DUR-406'!D44 -> 100.3286324
C66: 7.4 TOTAL/M3FACT | D66: =(+'A-DUR-406'!F12+'A-DUR-406'!F32+'A-DUR-406'!F36)/'C-DUR-406'!D44 -> 105.1073847

Sheet A-300-AG-LITORAL SUR
A2: ÁMBITO GEOGRÁFICO LITORAL SUR | B2: ESTADO DE RENDIMIENTO ECONÓMICO (a valores históricos) | H2: PERÍODO ENERO-DICIEMBRE-2024
B4: AGUA POTABLE
A5: CONCEPTOS | B5: USINA | C5: PERFORACIÓN | D5: MIXTO | E5: SUB-TOTAL | F5: ALCANTARILLADO | G5: OTROS INGRESOS | H5: TOTAL
A6: INGRESOS
A7: Ingresos Variables | B7: 454284561 | C7: 190876229.6 | D7: 138117040.6 | E7: 783277831.2 | H7: 783277831.2
A8: Ingresos Fijos | B8: 351140170.1 | C8: 160625137.6 | D8: 119445185.3 | E8: 631210493 | H8: 631210493
A9: INGRESOS DE EXPLOTACIÓN | B9: 805424731.1 | C9: 351501367.2 | D9: 257562225.9 | E9: 1414488324 | H9: 1414488324
A10: Ingresos Alcantarillado | F10: 509357858.5 | H10: 509357858.5
A11: Otros Ingresos | B11: 73957594.49 | C11: 39166207.72 | D11: 20978770.91 | E11: 134102573.1 | F11: 7524482.09 | H11: 141627055.2
A12: TOTAL ING. DE EXPLOTACIÓN | B12: 879382325.6 | C12: 390667574.9 | D12: 278540996.9 | E12: 1548590897 | F12: 516882340.6 | H12: 2065473238
A13: COSTOS DE EXPLOTACIÓN
A14: OPERATIVO
A15: Costo Operativo Var | B15: 177697862.3 | C15: 28004521.9 | D15: 48728241.99 | E15: 254430626.2 | F15: 61816028.39 | H15: 316246654.6
A16: Costo Operativo Fijo | B16: 265096034.2 | C16: 79343381.99 | D16: 101765718.8 | E16: 446205135.1 | F16: 238338186.4 | H16: 684543321.4
A17: TOTAL OPERATIVO | B17: 442793896.6 | C17: 107347903.9 | D17: 150493960.8 | E17: 700635761.2 | F17: 300154214.8 | H17: 1000789976
A18: NO OPERATIVO
A19: COMERCIALIZACIÓN
A20: Comercial Propios | B20: 201561074 | C20: 102251851.6 | D20: 68389643.57 | E20: 372202569.2 | F20: 85543382.28 | H20: 457745951.5
A21: Comercial Asignados | B21: 85207957.14 | C21: 37853826.7 | D21: 26989295.49 | E21: 150051079.3 | F21: 50083435.81 | H21: 200134515.1
A22: TOTAL COMERCIALIZACIÓN | B22: 286769031.2 | C22: 140105678.3 | D22: 95378939.06 | E22: 522253648.5 | F22: 135626818.1 | H22: 657880466.6
A23: ADMINISTRACIÓN
A24: Administración Propios | B24: 27678964.53 | C24: 11355513.68 | D24: 8905499.84 | E24: 47939978.05 | F24: 11868096.21 | H24: 59808074.26
A25: Administ. Asignados | B25: 93083392.73 | C25: 41352506.62 | D25: 29483809.35 | E25: 163919708.7 | F25: 54712450.33 | H25: 218632159
A26: Gastos Fiscales | B26: 38861253.19 | C26: 17264199.04 | D26: 12309153.69 | E26: 68434605.92 | F26: 22841823.13 | H26: 91276429.05
A27: TOTAL ADMINISTRACIÓN | B27: 159623610.4 | C27: 69972219.34 | D27: 50698462.88 | E27: 280294292.7 | F27: 89422369.67 | H27: 369716662.3
A28: TOTAL NO OPERATIVO | B28: 446392641.6 | C28: 210077897.6 | D28: 146077401.9 | E28: 802547941.2 | F28: 225049187.8 | H28: 1027597129
A29: COSTO DE EXPLOTACIÓN | B29: 889186538.2 | C29: 317425801.5 | D29: 296571362.8 | E29: 1503183702 | F29: 525203402.5 | H29: 2028387105
A30: RESULTADO DE EXPLOTACIÓN | B30: -9804212.56 | C30: 73241773.37 | D30: -18030365.9 | E30: 45407194.91 | F30: -8321061.93 | H30: 37086132.98
A31: DIVERSOS Y EXTRAORDINARIOS
A32: Ingresos Div. y Extr | B32: 11157770.58 | C32: 4956864.21 | D32: 3534181.13 | E32: 19648815.92 | F32: 9502032.91 | H32: 29150848.83
A33: Gtos. Div. y Extraor | B33: 1188247.73 | C33: 527881.89 | D33: 376372.95 | E33: 2092502.57 | F33: 698426.92 | H33: 2790929.49
A34: RESULTADOS DIV. Y EXTRAORDINARIOS | B34: 9969522.85 | C34: 4428982.32 | D34: 3157808.18 | E34: 17556313.35 | F34: 8803605.99 | H34: 26359919.34
A35: FINANCIEROS
A36: Ingresos Financieros | B36: 30728081.3 | C36: 13651019.13 | D36: 9733002.53 | E36: 54112102.96 | F36: 18061316.57 | H36: 72173419.53
A37: Gastos Financieros | B37: 129261837.2 | C37: 57424861.65 | D37: 40943193.84 | E37: 227629892.7 | F37: 75977375.42 | H37: 303607268.1
A38: RESULTADO FINANCIERO | B38: -98533755.86 | C38: -43773842.52 | D38: -31210191.31 | E38: -173517789.7 | F38: -57916058.85 | H38: -231433848.5
A39: I.R.A.E. | B39: 27465379.55 | C39: 12201556.58 | D39: 8699554.2 | E39: 48366490.33 | F39: 16143569.47 | H39: 64510059.8
A40: RESULTADO NETO | B40: -70903066.02 | C40: 46098469.75 | D40: -37383194.83 | E40: -62187791.1 | F40: -41289945.32 | H40: -103477736.4

Sheet B-300-AG-LITORAL SUR
B4: ÁMBITO GEOGRÁFICO LITORAL SUR
D6: C O S T O S T O T A L E S
C10: C O N C E P T O | D10: C O S T O S O P E R A T I V O S
D13: AGUA | E13: ALCANTARILLADO | F13: TOTAL
C15: RETRIBUCIONES AL PERSONAL | D15: 202946135.7 | E15: 26969857.39 | F15: 229915993.1
C17: MATERIALES Y SUMINISTROS | D17: 121652732.4 | E17: 3275004.302 | F17: 124927736.7
C19: ENERGÍA Y FLUÍDOS | D19: 92226515.33 | E19: 24727539.03 | F19: 116954054.4
C21: SERVICIOS CONTRATADOS | D21: 154698607.3 | E21: 180582050.8 | F21: 335280658.1
C23: GASTOS VARIOS | D23: 11198803.98 | E23: -105510.3274 | F23: 11093293.65
C25: AMORTIZACIÓN | D25: 117912966.2 | E25: 64705273.37 | F25: 182618239.5
C28: TOTAL | D28: 700635760.9 | E28: 300154214.5 | F28: 1000789975 | H28: 0.6591325648
C33: C O N C E P T O | D33: C O S T O D E A D M I N I S T R A T I V O - C O M E R C I A L
D36: COMERCIALIZACIÓN | E36: ADMINISTRACIÓN | F36: TOTAL
C38: RETRIBUCIONES AL PERSONAL | D38: 179585704.1 | E38: 26183039.3 | F38: 205768743.4
C40: MATERIALES Y SUMINISTROS | D40: 13955314.33 | E40: 589699.595 | F40: 14545013.93
C42: ENERGÍA Y FLUÍDOS | D42: 810410.2081 | E42: 15430576.34 | F42: 16240986.55
C44: SERVICIOS CONTRATADOS | D44: 247138712.5 | E44: 14590148.77 | F44: 261728861.3
C46: GASTOS VARIOS | D46: 50530.9884 | E46: 348832.2112 | F46: 399363.1996
C48: AMORTIZACIÓN | D48: 16205278.94 | E48: 2665778.055 | F48: 18871057
C52: TOTAL | D52: 457745951.1 | E52: 59808074.26 | F52: 517554025.3 | H52: 0.3408674352
B57: C O S T O D E E X P L O T A C I Ó N | H57: 1518344001

Sheet C-300-AG-LITORAL SUR
A3: COBERTURAS, COSTOS E INGRESOS PROMEDIO
A4: Á M B I T O G E O G R Á F I C O L I T O R A L S U R
B9: 1. COMPOSICIÓN DEL COSTO PROPIO POR CONEXIÓN | C9: OPERATIVOS | E9: ADMINISTRATIVO-COMERCIAL
C11: AGUA | D11: ALCANTARILLADO
C12: ($/conex.agua) | D12: ($/conex.desagüe) | E12: ($/conex.agua)
B14: RETRIBUCIONES AL PERSONAL | C14: =+'B-300-AG-LITORAL SUR'!D15/'C-300-AG-LITORAL SUR'!$C$31 -> 1349.357959 | D14: =+'B-300-AG-LITORAL SUR'!E15/'C-300-AG-LITORAL SUR'!$D$31 -> 400.0394166 | E14: =+('B-300-AG-LITORAL SUR'!D38+'B-300-AG-LITORAL SUR'!E38)/'C-300-AG-LITORAL SUR'!$C$31 -> 1368.125048
B16: MATERIALES Y SUMINISTROS | C16: =+'B-300-AG-LITORAL SUR'!D17/'C-300-AG-LITORAL SUR'!$C$31 -> 808.8504964 | D16: =+'B-300-AG-LITORAL SUR'!E17/'C-300-AG-LITORAL SUR'!$D$31 -> 48.57759504 | E16: =+('B-300-AG-LITORAL SUR'!D40+'B-300-AG-LITORAL SUR'!E40)/'C-300-AG-LITORAL SUR'!$C$31 -> 96.70758318
B18: ENERGÍA Y FLUÍDOS | C18: =+'B-300-AG-LITORAL SUR'!D19/'C-300-AG-LITORAL SUR'!$C$31 -> 613.2000594 | D18: =+'B-300-AG-LITORAL SUR'!E19/'C-300-AG-LITORAL SUR'!$D$31 -> 366.7794807 | E18: =+('B-300-AG-LITORAL SUR'!D42+'B-300-AG-LITORAL SUR'!E42)/'C-300-AG-LITORAL SUR'!$C$31 -> 107.9838469
B20: SERVICIOS CONTRATADOS | C20: =+'B-300-AG-LITORAL SUR'!D21/'C-300-AG-LITORAL SUR'!$C$31 -> 1028.567488 | D20: =+'B-300-AG-LITORAL SUR'!E21/'C-300-AG-LITORAL SUR'!$D$31 -> 2678.543576 | E20: =+('B-300-AG-LITORAL SUR'!D44+'B-300-AG-LITORAL SUR'!E44)/'C-300-AG-LITORAL SUR'!$C$31 -> 1740.195352
B22: GASTOS VARIOS | C22: =+'B-300-AG-LITORAL SUR'!D23/'C-300-AG-LITORAL SUR'!$C$31 -> 74.45914271 | D22: =+'B-300-AG-LITORAL SUR'!E23/'C-300-AG-LITORAL SUR'!$D$31 -> -1.565017167 | E22: =+('B-300-AG-LITORAL SUR'!D46+'B-300-AG-LITORAL SUR'!E46)/'C-300-AG-LITORAL SUR'!$C$31 -> 2.655305113
B24: AMORTIZACIÓN | C24: =+'B-300-AG-LITORAL SUR'!D25/'C-300-AG-LITORAL SUR'!$C$31 -> 783.9853602 | D24: =+'B-300-AG-LITORAL SUR'!E25/'C-300-AG-LITORAL SUR'!$D$31 -> 959.7625763 | E24: =+('B-300-AG-LITORAL SUR'!D48+'B-300-AG-LITORAL SUR'!E48)/'C-300-AG-LITORAL SUR'!$C$31 -> 125.4707849
B28: TOTAL | C28: =SUM(C14:C24) -> 4658.420505 | D28: =SUM(D14:D24) -> 4452.137627 | E28: =SUM(E14:E24) -> 3441.137919
B31: 2.CONEXIONES (promedio anual) | C31: 150402 | D31: 67418
B34: 3.COBERTURAS COSTO/INGRESO
B36: 3.1 COSTO DE EXPLOTACIÓN/ INGRESO DE EXPLOT. | C36: =+'A-300-AG-LITORAL SUR'!E29/'A-300-AG-LITORAL SUR'!E12 -> 0.9706783793 | D36: =+'A-300-AG-LITORAL SUR'!F29/'A-300-AG-LITORAL SUR'!F12 -> 1.016098561
B38: 3.3 TOTAL | C38: =(+'A-300-AG-LITORAL SUR'!E29+'A-300-AG-LITORAL SUR'!E33+'A-300-AG-LITORAL SUR'!E37-'A-300-AG-LITORAL SUR'!E39)/('A-300-AG-LITORAL SUR'!E12+'A-300-AG-LITORAL SUR'!E32+'A-300-AG-LITORAL SUR'!E36) -> 1.038331878 | D38: =(+'A-300-AG-LITORAL SUR'!F29+'A-300-AG-LITORAL SUR'!F33+'A-300-AG-LITORAL SUR'!F37-'A-300-AG-LITORAL SUR'!F39)/('A-300-AG-LITORAL SUR'!F12+'A-300-AG-LITORAL SUR'!F32+'A-300-AG-LITORAL SUR'!F36) -> 1.075838502
B41: 4.M3 ELEVADOS | C41: 25847840
B43: 5.M3 FACTURADOS | C43: 15085890
B46: 6. COSTO PROMEDIO
B48: 6.1 COSTO VARIABLE/ M3ELEVADOS | C48: =+'A-300-AG-LITORAL SUR'!E15/'C-300-AG-LITORAL SUR'!C41 -> 9.84339992
B50: 6.2 COSTO VARIABLE / M3FACTURADOS | C50: =+'A-300-AG-LITORAL SUR'!E15/'C-300-AG-LITORAL SUR'!C43 -> 16.86547006
B52: 6.3 COSTO EXPLOTACIÓN/M3FACT | C52: =+'A-300-AG-LITORAL SUR'!E29/'C-300-AG-LITORAL SUR'!C43 -> 99.64169846
B54: 6.4 TOTAL/M3FACT | C54: =(+'A-300-AG-LITORAL SUR'!E29+'A-300-AG-LITORAL SUR'!E33+'A-300-AG-LITORAL SUR'!E37-'A-300-AG-LITORAL SUR'!E39)/'C-300-AG-LITORAL SUR'!C43 -> 111.6632567
B57: 7. INGRESOS PROMEDIO
B59: 7.1 VARIABLE/M3 FACT | C59: =+'A-300-AG-LITORAL SUR'!E7/'C-300-AG-LITORAL SUR'!C43 -> 51.92122117
B61: 7.2 FIJO/CONEXIONES | C61: =(+'A-300-AG-LITORAL SUR'!E8/12)/'C-300-AG-LITORAL SUR'!C31 -> 349.7352058
B63: 7.3 INGRESO EXPLOTACIÓN/M3FACT | C63: =+'A-300-AG-LITORAL SUR'!E12/'C-300-AG-LITORAL SUR'!C43 -> 102.65161
B65: 7.4 TOTAL/M3FACT | C65: =(+'A-300-AG-LITORAL SUR'!E12+'A-300-AG-LITORAL SUR'!E32+'A-300-AG-LITORAL SUR'!E36)/C43 -> 107.5410079

Sheet A-SJ-301
A2: SAN JOSÉ | B2: ESTADO DE RENDIMIENTO ECONÓMICO (a valores históricos) | H2: PERÍODO ENERO-DICIEMBRE-2024
B4: AGUA POTABLE
A5: CONCEPTOS | B5: USINA | C5: PERFORACIÓN | D5: MIXTO | E5: SUB-TOTAL | F5: ALCANTARILLADO | G5: OTROS INGRESOS | H5: TOTAL
A6: INGRESOS
A7: Ingresos Variables | B7: 91966116.2 | C7: 115480730.4 | D7: 6893081.94 | E7: 214339928.6 | H7: 214339928.6
A8: Ingresos Fijos | B8: 77438613.32 | C8: 91364435.29 | D8: 6875433.21 | E8: 175678481.8 | H8: 175678481.8
A9: INGRESOS DE EXPLOTACIÓN | B9: 169404729.5 | C9: 206845165.7 | D9: 13768515.15 | E9: 390018410.4 | H9: 390018410.4
A10: Ingresos Alcantarillado | F10: 141423616.9 | H10: 141423616.9
A11: Otros Ingresos | B11: 15522733.93 | C11: 26786986.84 | D11: 1339175.68 | E11: 43648896.45 | F11: 3412670.25 | H11: 47061566.7
A12: TOTAL ING. DE EXPLOTACIÓN | B12: 184927463.4 | C12: 233632152.6 | D12: 15107690.83 | E12: 433667306.8 | F12: 144836287.2 | H12: 578503594
A13: COSTOS DE EXPLOTACIÓN
A14: OPERATIVO
A15: Costo Operativo Var | B15: 42247687.13 | C15: 16240406.03 | D15: 3454310.32 | E15: 61942403.48 | F15: 15174651.75 | H15: 77117055.23
A16: Costo Operativo Fijo | B16: 52141724.28 | C16: 56094371.69 | D16: 10142422.1 | E16: 118378518.1 | F16: 129520245.6 | H16: 247898763.7
A17: TOTAL OPERATIVO | B17: 94389411.41 | C17: 72334777.72 | D17: 13596732.42 | E17: 180320921.6 | F17: 144694897.3 | H17: 325015818.9
A18: NO OPERATIVO
A19: COMERCIALIZACIÓN
A20: Comercial Propios | B20: 46356811.03 | C20: 63655959.09 | D20: 4423441.23 | E20: 114436211.3 | F20: 27977799.3 | H20: 142414010.7
A21: Comercial Asignados | B21: 17918590.03 | C21: 22637842.34 | D21: 1463863.3 | E21: 42020295.67 | F21: 14033946.12 | H21: 56054241.79
A22: TOTAL COMERCIALIZACIÓN | B22: 64275401.06 | C22: 86293801.43 | D22: 5887304.53 | E22: 156456507 | F22: 42011745.42 | H22: 198468252.4
A23: ADMINISTRACIÓN
A24: Administración Propios | B24: 4590622.81 | C24: 6303723.05 | D24: 438044.56 | E24: 11332390.42 | F24: 2770585.9 | H24: 14102976.32
A25: Administ. Asignados | B25: 19574734.7 | C25: 24730168.86 | D25: 1599162.46 | E25: 45904066.02 | F25: 15331048.59 | H25: 61235114.61
A26: Gastos Fiscales | B26: 8172228.12 | C26: 10324563.01 | D26: 667632.02 | E26: 19164423.15 | F26: 6400537.63 | H26: 25564960.78
A27: TOTAL ADMINISTRACIÓN | B27: 32337585.63 | C27: 41358454.92 | D27: 2704839.04 | E27: 76400879.59 | F27: 24502172.12 | H27: 100903051.7
A28: TOTAL NO OPERATIVO | B28: 96612986.69 | C28: 127652256.3 | D28: 8592143.57 | E28: 232857386.6 | F28: 66513917.54 | H28: 299371304.1
A29: COSTO DE EXPLOTACIÓN | B29: 191002398.1 | C29: 199987034.1 | D29: 22188875.99 | E29: 413178308.2 | F29: 211208814.9 | H29: 624387123
A30: RESULTADO DE EXPLOTACIÓN | B30: -6074934.65 | C30: 33645118.48 | D30: -7081185.16 | E30: 20488998.67 | F30: -66372527.7 | H30: -45883529.03
A31: DIVERSOS Y EXTRAORDINARIOS
A32: Ingresos Div. y Extr | B32: 2346394.78 | C32: 2964369.47 | D32: 191689.36 | E32: 5502453.61 | F32: 2662577.26 | H32: 8165030.87
A33: Gtos. Div. y Extraor | B33: 249879.5 | C33: 315690.81 | D33: 20413.98 | E33: 585984.29 | F33: 195707.13 | H33: 781691.42
A34: RESULTADOS DIV. Y EXTRAORDINARIOS | B34: 2096515.28 | C34: 2648678.66 | D34: 171275.38 | E34: 4916469.32 | F34: 2466870.13 | H34: 7383339.45
A35: FINANCIEROS
A36: Ingresos Financieros | B36: 6461883.49 | C36: 8163761.7 | D36: 527905.03 | E36: 15153550.22 | F36: 5060985.54 | H36: 20214535.76
A37: Gastos Financieros | B37: 27182788.35 | C37: 34341969.74 | D37: 2220704.05 | E37: 63745462.14 | F37: 21289721.37 | H37: 85035183.51
A38: RESULTADO FINANCIERO | B38: -20720904.86 | C38: -26178208.04 | D38: -1692799.02 | E38: -48591911.92 | F38: -16228735.83 | H38: -64820647.75
A39: I.R.A.E. | B39: 5775761.94 | C39: 7296935.06 | D39: 471852.18 | E39: 13544549.18 | F39: 4523611.07 | H39: 18068160.25
A40: RESULTADO NETO | B40: -18923562.29 | C40: 17412524.16 | D40: -8130856.62 | E40: -9641894.75 | F40: -75610782.33 | H40: -85252677.08

Sheet B-SJ-301
B4: S AN J O S É
D6: C O S T O S T O T A L E S
C10: C O N C E P T O | D10: C O S T O S O P E R A T I V O S
D13: AGUA | E13: ALCANTARILLADO | F13: TOTAL
C15: RETRIBUCIONES AL PERSONAL | D15: 42574490.09 | E15: 8981637.665 | F15: 51556127.75
C17: MATERIALES Y SUMINISTROS | D17: 24052987.86 | E17: 602407.1462 | F17: 24655395
C19: ENERGÍA Y FLUÍDOS | D19: 32218426.49 | E19: 12464112.87 | F19: 44682539.37
C21: SERVICIOS CONTRATADOS | D21: 41302963.38 | E21: 99894768.34 | F21: 141197731.7
C23: GASTOS VARIOS | D23: 8668791.046 | E23: -945929.1651 | F23: 7722861.881
C25: AMORTIZACIÓN | D25: 31503262.69 | E25: 23697900.49 | F25: 55201163.18
C28: TOTAL | D28: 180320921.6 | E28: 144694897.3 | F28: 325015818.9 | H28: 0.674960906
C33: C O N C E P T O | D33: C O S T O D E A D M I N I S T R A T I V O - C O M E R C I A L
D36: COMERCIALIZACIÓN | E36: ADMINISTRACIÓN | F36: TOTAL
C38: RETRIBUCIONES AL PERSONAL | D38: 56000555.08 | E38: 7222552.871 | F38: 63223107.96
C40: MATERIALES Y SUMINISTROS | D40: 4638194.987 | E40: 183138.939 | F40: 4821333.926
C42: ENERGÍA Y FLUÍDOS | D42: 264645.7409 | E42: 4166638.032 | F42: 4431283.773
C44: SERVICIOS CONTRATADOS | D44: 74400162.2 | E44: 1696495.845 | F44: 76096658.04
C46: GASTOS VARIOS | D46: 596781.9154 | E46: 72309.77814 | F46: 669091.6935
C48: AMORTIZACIÓN | D48: 6513670.719 | E48: 761840.8547 | F48: 7275511.574
C52: TOTAL | D52: 142414010.6 | E52: 14102976.32 | F52: 156516987 | H52: 0.325039094
B57: C O S T O D E E X P L O T A C I Ó N | H57: 481532805.9

Sheet C-SJ-301
B4: COBERTURAS, COSTOS E INGRESOS PROMEDIO
B6: S A N J O S É
C10: 1. COMPOSICIÓN DEL COSTO PROPIO POR CONEXIÓN | D10: OPERATIVOS | F10: ADMINISTRATIVO-COMERCIAL
D12: AGUA | E12: ALCANTARILLADO
D13: ($/conex.agua) | E13: ($/conex.desagüe) | F13: ($/conex.agua)
C15: RETRIBUCIONES AL PERSONAL | D15: =+'B-SJ-301'!D15/'C-SJ-301'!$D$32 -> 991.9730209 | E15: =+'B-SJ-301'!E15/'C-SJ-301'!$E$32 -> 427.9823532 | F15: =(+'B-SJ-301'!D38+'B-SJ-301'!E38)/'C-SJ-301'!$D$32 -> 1473.079707
C17: MATERIALES Y SUMINISTROS | D17: =+'B-SJ-301'!D17/'C-SJ-301'!$D$32 -> 560.4274996 | E17: =+'B-SJ-301'!E17/'C-SJ-301'!$E$32 -> 28.70519138 | F17: =(+'B-SJ-301'!D40+'B-SJ-301'!E40)/'C-SJ-301'!$D$32 -> 112.3356538
C19: ENERGÍA Y FLUÍDOS | D19: =+'B-SJ-301'!D19/'C-SJ-301'!$D$32 -> 750.6798036 | E19: =+'B-SJ-301'!E19/'C-SJ-301'!$E$32 -> 593.9251346 | F19: =(+'B-SJ-301'!D42+'B-SJ-301'!E42)/'C-SJ-301'!$D$32 -> 103.2476007
C21: SERVICIOS CONTRATADOS | D21: =+'B-SJ-301'!D21/'C-SJ-301'!$D$32 -> 962.3468251 | E21: =+'B-SJ-301'!E21/'C-SJ-301'!$E$32 -> 4760.067108 | F21: =(+'B-SJ-301'!D44+'B-SJ-301'!E44)/'C-SJ-301'!$D$32 -> 1773.029615
C23: GASTOS VARIOS | D23: =+'B-SJ-301'!D23/'C-SJ-301'!$D$32 -> 201.9802662 | E23: =+'B-SJ-301'!E23/'C-SJ-301'!$E$32 -> -45.07429549 | F23: =(+'B-SJ-301'!D46+'B-SJ-301'!E46)/'C-SJ-301'!$D$32 -> 15.58963847
C25: AMORTIZACIÓN | D25: =+'B-SJ-301'!D25/'C-SJ-301'!$D$32 -> 734.0166986 | E25: =+'B-SJ-301'!E25/'C-SJ-301'!$E$32 -> 1129.224268 | F25: =(+'B-SJ-301'!D48+'B-SJ-301'!E48)/'C-SJ-301'!$D$32 -> 169.5172668
C29: TOTAL | D29: =SUM(D15:D25) -> 4201.424114 | E29: =SUM(E15:E25) -> 6894.82976 | F29: =SUM(F15:F25) -> 3646.799482
C32: 2.CONEXIONES (promedio anual) | D32: 42919 | E32: 20986
C35: 3.COBERTURAS COSTO/INGRESO
C37: 3.1 COSTO DE EXPLOTACIÓN/ INGRESO DE EXPLOT. | D37: =+'A-SJ-301'!E29/'A-SJ-301'!E12 -> 0.9527541082 | E37: =+'A-SJ-301'!F29/'A-SJ-301'!F12 -> 1.458258969
C39: 3.3 TOTAL | D39: =(+'A-SJ-301'!E29+'A-SJ-301'!E33+'A-SJ-301'!E37-'A-SJ-301'!E39)/('A-SJ-301'!E12+'A-SJ-301'!E32+'A-SJ-301'!E36) -> 1.02122254 | E39: =(+'A-SJ-301'!F29+'A-SJ-301'!F33+'A-SJ-301'!F37-'A-SJ-301'!F39)/('A-SJ-301'!F12+'A-SJ-301'!F32+'A-SJ-301'!F36) -> 1.495613901
C42: 4.M3 ELEVADOS | D42: 7755210
C44: 5.M3 FACTURADOS | D44: 4291170
C47: 6. COSTO PROMEDIO
C49: 6.1 COSTO VARIABLE/ M3ELEVADOS | D49: =+'A-SJ-301'!E15/'C-SJ-301'!D42 -> 7.987198732
C51: 6.2 COSTO VARIABLE / M3FACTURADOS | D51: =+'A-SJ-301'!E15/'C-SJ-301'!D44 -> 14.43485191
C53: 6.3 COSTO EXPLOTACIÓN/M3FACT | D53: =+'A-SJ-301'!E29/'C-SJ-301'!D44 -> 96.28570021
C55: 6.4 TOTAL/M3FACT | D55: =(+'A-SJ-301'!E29+'A-SJ-301'!E33+'A-SJ-301'!E37-'A-SJ-301'!E39)/'C-SJ-301'!D44 -> 108.12091
C58: 7. INGRESOS PROMEDIO
C60: 7.1 VARIABLE/M3 FACT | D60: =+'A-SJ-301'!E7/'C-SJ-301'!D44 -> 49.94906484
C62: 7.2 FIJO/CONEXIONES | D62: =(+'A-SJ-301'!E8/12)/'C-SJ-301'!D32 -> 341.1047202
C64: 7.3 INGRESO EXPLOTACIÓN/M3FACT | D64: =+'A-SJ-301'!E12/'C-SJ-301'!D44 -> 101.0603884
C66: 7.4 TOTAL/M3FACT | D66: =(+'A-SJ-301'!E12+'A-SJ-301'!E32+'A-SJ-301'!E36)/'C-SJ-301'!D44 -> 105.8739949

Sheet A-COL-302
A2: COLONIA | B2: ESTADO DE RENDIMIENTO ECONÓMICO (a valores históricos) | G2: PERÍODO ENERO-DICIEMBRE-2024
B4: AGUA POTABLE
A5: CONCEPTOS | B5: USINA | C5: PERFORACIÓN | D5: MIXTO | E5: SUB-TOTAL | F5: ALCANTARILLADO | G5: OTROS INGRESOS | H5: TOTAL
A6: INGRESOS
A7: Ingresos Variables | B7: 196749313.7 | C7: 42965358.19 | D7: 82894213.95 | E7: 322608885.9 | H7: 322608885.9
A8: Ingresos Fijos | B8: 148326778.8 | C8: 40224886.97 | D8: 70808618.86 | E8: 259360284.6 | H8: 259360284.6
A9: INGRESOS DE EXPLOTACIÓN | B9: 345076092.5 | C9: 83190245.16 | D9: 153702832.8 | E9: 581969170.4 | H9: 581969170.4
A10: Ingresos Alcantarillado | F10: 149455089.1 | H10: 149455089.1
A11: Otros Ingresos | B11: 28790998.67 | C11: 6977371.29 | D11: 10750376.54 | E11: 46518746.5 | F11: 1610598.79 | H11: 48129345.29
A12: TOTAL ING. DE EXPLOTACIÓN | B12: 373867091.1 | C12: 90167616.45 | D12: 164453209.3 | E12: 628487916.9 | F12: 151065687.9 | H12: 779553604.8
A13: COSTOS DE EXPLOTACIÓN
A14: OPERATIVO
A15: Costo Operativo Var | B15: 67703513.93 | C15: 6778701.48 | D15: 30929670.16 | E15: 105411885.6 | F15: 22552708.79 | H15: 127964594.4
A16: Costo Operativo Fijo | B16: 120276837.9 | C16: 9385783.26 | D16: 57120376.93 | E16: 186782998.1 | F16: 56681123.12 | H16: 243464121.2
A17: TOTAL OPERATIVO | B17: 187980351.8 | C17: 16164484.74 | D17: 88050047.09 | E17: 292194883.7 | F17: 79233831.91 | H17: 371428715.6
A18: NO OPERATIVO
A19: COMERCIALIZACIÓN
A20: Comercial Propios | B20: 79179196.1 | C20: 22792003.25 | D20: 40067337.45 | E20: 142038536.8 | F20: 19107249.62 | H20: 161145786.4
A21: Comercial Asignados | B21: 36225939.7 | C21: 8736812.39 | D21: 15934732.28 | E21: 60897484.37 | F21: 14637545.31 | H21: 75535029.68
A22: TOTAL COMERCIALIZACIÓN | B22: 115405135.8 | C22: 31528815.64 | D22: 56002069.73 | E22: 202936021.2 | F22: 33744794.93 | H22: 236680816.1
A23: ADMINISTRACIÓN
A24: Administración Propios | B24: 9417579.55 | C24: 2710882.61 | D24: 4765612.14 | E24: 16894074.3 | F24: 2272617.64 | H24: 19166691.94
A25: Administ. Asignados | B25: 39574160.66 | C25: 9544321.58 | D25: 17407516.73 | E25: 66525998.97 | F25: 15990435.84 | H25: 82516434.81
A26: Gastos Fiscales | B26: 16521759.96 | C26: 3984645.18 | D26: 7267439.44 | E26: 27773844.58 | F26: 6675824.37 | H26: 34449668.95
A27: TOTAL ADMINISTRACIÓN | B27: 65513500.17 | C27: 16239849.37 | D27: 29440568.31 | E27: 111193917.8 | F27: 24938877.85 | H27: 136132795.7
A28: TOTAL NO OPERATIVO | B28: 180918636 | C28: 47768665.01 | D28: 85442638.04 | E28: 314129939 | F28: 58683672.78 | H28: 372813611.8
A29: COSTO DE EXPLOTACIÓN | B29: 368898987.8 | C29: 63933149.75 | D29: 173492685.1 | E29: 606324822.7 | F29: 137917504.7 | H29: 744242327.4
A30: RESULTADO DE EXPLOTACIÓN | B30: 4968103.32 | C30: 26234466.7 | D30: -9039475.78 | E30: 22163094.24 | F30: 13148183.21 | H30: 35311277.45
A31: DIVERSOS Y EXTRAORDINARIOS
A32: Ingresos Div. y Extr | B32: 4743697.17 | C32: 1144063.49 | D32: 2086613.68 | E32: 7974374.34 | F32: 2777094.44 | H32: 10751468.78
A33: Gtos. Div. y Extraor | B33: 505180.47 | C33: 121837.23 | D33: 222214.13 | E33: 849231.83 | F33: 204124.51 | H33: 1053356.34
A34: RESULTADOS DIV. Y EXTRAORDINARIOS | B34: 4238516.7 | C34: 1022226.26 | D34: 1864399.55 | E34: 7125142.51 | F34: 2572969.93 | H34: 9698112.44
A35: FINANCIEROS
A36: Ingresos Financieros | B36: 13063963.23 | C36: 3150709.01 | D36: 5746455.7 | E36: 21961127.94 | F36: 5278658.22 | H36: 27239786.16
A37: Gastos Financieros | B37: 54955331.33 | C37: 13253884.42 | D37: 24173244.46 | E37: 92382460.21 | F37: 22205391.03 | H37: 114587851.2
A38: RESULTADO FINANCIERO | B38: -41891368.1 | C38: -10103175.41 | D38: -18426788.76 | E38: -70421332.27 | F38: -16926732.81 | H38: -87348065.08
A39: I.R.A.E. | B39: 11676834.14 | C39: 2816167.36 | D39: 5136298.15 | E39: 19629299.65 | F39: 4718171.3 | H39: 24347470.95
A40: RESULTADO NETO | B40: -21007913.94 | C40: 19969684.91 | D40: -20465566.84 | E40: -21503795.87 | F40: 3512591.63 | H40: -17991204.24

Sheet B-COL-302
B4: C O L O N I A
D6: C O S T O S T O T A L E S
C10: C O N C E P T O | D10: C O S T O S O P E R A T I V O S
D13: AGUA | E13: ALCANTARILLADO | F13: TOTAL
C15: RETRIBUCIONES AL PERSONAL | D15: 94677284.95 | E15: 2410217.605 | F15: 97087502.55
C17: MATERIALES Y SUMINISTROS | D17: 50006553.1 | E17: 474004.9902 | F17: 50480558.09
C19: ENERGÍA Y FLUÍDOS | D19: 33522497.37 | E19: 2745681.407 | F19: 36268178.78
C21: SERVICIOS CONTRATADOS | D21: 61784957.41 | E21: 51940198.03 | F21: 113725155.4
C23: GASTOS VARIOS | D23: 764245.1251 | E23: 20224.83829 | F23: 784469.9634
C25: AMORTIZACIÓN | D25: 51439345.52 | E25: 21643505.04 | F25: 73082850.55
C28: TOTAL | D28: 292194883.5 | E28: 79233831.91 | F28: 371428715.4 | H28: 0.6731937358
C33: C O N C E P T O | D33: C O S T O D E A D M I N I S T R A T I V O - C O M E R C I A L
D36: COMERCIALIZACIÓN | E36: ADMINISTRACIÓN | F36: TOTAL
C38: RETRIBUCIONES AL PERSONAL | D38: 50711218.62 | E38: 6718141.088 | F38: 57429359.71
C40: MATERIALES Y SUMINISTROS | D40: 4134579.725 | E40: 129318.0682 | F40: 4263897.793
C42: ENERGÍA Y FLUÍDOS | D42: 211733.7586 | E42: 5424549.324 | F42: 5636283.083
C44: SERVICIOS CONTRATADOS | D44: 99932666.13 | E44: 6017365.641 | F44: 105950031.8
C46: GASTOS VARIOS | D46: 734415.9611 | E46: 176398.4737 | F46: 910814.4348
C48: AMORTIZACIÓN | D48: 5421172.226 | E48: 700919.3445 | F48: 6122091.57
C52: TOTAL | D52: 161145786.4 | E52: 19166691.94 | F52: 180312478.4 | H52: 0.3268062642
B57: C O S T O D E E X P L O T A C I Ó N | H57: 551741193.7

Sheet C-COL-302
B4: COBERTURAS, COSTOS E INGRESOS PROMEDIO
B6: C O L O N I A
C10: 1. COMPOSICIÓN DEL COSTO PROPIO POR CONEXIÓN | D10: OPERATIVOS | F10: ADMINISTRATIVO-COMERCIAL
D12: AGUA | E12: ALCANTARILLADO
D13: ($/conex.agua) | E13: ($/conex.desagüe) | F13: ($/conex.agua)
C15: RETRIBUCIONES AL PERSONAL | D15: =+'B-COL-302'!D15/'C-COL-302'!$D$32 -> 1549.597122 | E15: =+'B-COL-302'!E15/'C-COL-302'!$E$32 -> 146.6247478 | F15: =(+'B-COL-302'!D38+'B-COL-302'!E38)/'C-COL-302'!$D$32 -> 939.9548219
C17: MATERIALES Y SUMINISTROS | D17: =+'B-COL-302'!D17/'C-COL-302'!$D$32 -> 818.4646486 | E17: =+'B-COL-302'!E17/'C-COL-302'!$E$32 -> 28.83592835 | F17: =(+'B-COL-302'!D40+'B-COL-302'!E40)/'C-COL-302'!$D$32 -> 69.78784564
C19: ENERGÍA Y FLUÍDOS | D19: =+'B-COL-302'!D19/'C-COL-302'!$D$32 -> 548.6676712 | E19: =+'B-COL-302'!E19/'C-COL-302'!$E$32 -> 167.0325713 | F19: =(+'B-COL-302'!D42+'B-COL-302'!E42)/'C-COL-302'!$D$32 -> 92.2498786
C21: SERVICIOS CONTRATADOS | D21: =+'B-COL-302'!D21/'C-COL-302'!$D$32 -> 1011.243534 | E21: =+'B-COL-302'!E21/'C-COL-302'!$E$32 -> 3159.763842 | F21: =(+'B-COL-302'!D44+'B-COL-302'!E44)/'C-COL-302'!$D$32 -> 1734.099836
C23: GASTOS VARIOS | D23: =+'B-COL-302'!D23/'C-COL-302'!$D$32 -> 12.50851296 | E23: =+'B-COL-302'!E23/'C-COL-302'!$E$32 -> 1.230370987 | F23: =(+'B-COL-302'!D46+'B-COL-302'!E46)/'C-COL-302'!$D$32 -> 14.90743453
C25: AMORTIZACIÓN | D25: =+'B-COL-302'!D25/'C-COL-302'!$D$32 -> 841.915374 | E25: =+'B-COL-302'!E25/'C-COL-302'!$E$32 -> 1316.675084 | F25: =(+'B-COL-302'!D48+'B-COL-302'!E48)/'C-COL-302'!$D$32 -> 100.201178
C29: TOTAL | D29: =SUM(D15:D25) -> 4782.396862 | E29: =SUM(E15:E25) -> 4820.162545 | F29: =SUM(F15:F25) -> 2951.200994
C32: 2.CONEXIONES (promedio anual) | D32: 61098 | E32: 16438
C35: 3.COBERTURAS COSTO/INGRESO
C37: 3.1 COSTO DE EXPLOTACIÓN/ INGRESO DE EXPLOT. | D37: =+'A-COL-302'!E29/'A-COL-302'!E12 -> 0.9647358467 | E37: =+'A-COL-302'!F29/'A-COL-302'!F12 -> 0.9129638014
C39: 3.3 TOTAL | D39: =(+'A-COL-302'!E29+'A-COL-302'!E33+'A-COL-302'!E37-'A-COL-302'!E39)/('A-COL-302'!E12+'A-COL-302'!E32+'A-COL-302'!E36) -> 1.032659525 | E39: =(+'A-COL-302'!F29+'A-COL-302'!F33+'A-COL-302'!F37-'A-COL-302'!F39)/('A-COL-302'!F12+'A-COL-302'!F32+'A-COL-302'!F36) -> 0.9779250891
C42: 4.M3 ELEVADOS | D42: 9139710
C44: 5.M3 FACTURADOS | D44: 5955030
C47: 6. COSTO PROMEDIO
C49: 6.1 COSTO VARIABLE/ M3ELEVADOS | D49: =+'A-COL-302'!E15/'C-COL-302'!D42 -> 11.533395
C51: 6.2 COSTO VARIABLE / M3FACTURADOS | D51: =+'A-COL-302'!E15/'C-COL-302'!D44 -> 17.70131898
C53: 6.3 COSTO EXPLOTACIÓN/M3FACT | D53: =+'A-COL-302'!E29/'C-COL-302'!D44 -> 101.8172575
C55: 6.4 TOTAL/M3FACT | D55: =(+'A-COL-302'!E29+'A-COL-302'!E33+'A-COL-302'!E37-'A-COL-302'!E39)/D44 -> 114.1769588
C58: 7. INGRESOS PROMEDIO
C60: 7.1 VARIABLE/M3 FACT | D60: =+'A-COL-302'!E7/'C-COL-302'!D44 -> 54.17418315
C62: 7.2 FIJO/CONEXIONES | D62: =+'A-COL-302'!E8/12/'C-COL-302'!D32 -> 353.7490106
C64: 7.3 INGRESO EXPLOTACIÓN/M3FACT | D64: =+'A-COL-302'!E12/'C-COL-302'!D44 -> 105.539001
C66: 7.4 TOTAL/M3FACT | D66: =(+'A-COL-302'!E12+'A-COL-302'!E32+'A-COL-302'!E36)/'C-COL-302'!D44 -> 110.5659282

Sheet A-FLO-303
B2: FLORES | C2: ESTADO DE RENDIMIENTO ECONÓMICO (a valores históricos) | H2: PERÍODO ENERO-DICIEMBRE-2024
C4: AGUA POTABLE
B5: CONCEPTOS | C5: USINA | D5: PERFORACIÓN | E5: MIXTO | F5: SUB-TOTAL | G5: ALCANTARILLADO | H5: OTROS INGRESOS | I5: TOTAL
B6: INGRESOS
B7: Ingresos Variables | C7: 57735626.78 | E7: 3054792.32 | F7: 60790419.1 | I7: 60790419.1
B8: Ingresos Fijos | C8: 46119282.43 | E8: 2937034.47 | F8: 49056316.9 | I8: 49056316.9
B9: INGRESOS DE EXPLOTACIÓN | C9: 103854909.2 | E9: 5991826.79 | F9: 109846736 | I9: 109846736
B10: Ingresos Alcantarillado | G10: 68781422.98 | I10: 68781422.98
B11: Otros Ingresos | C11: 7831361.58 | E11: 316105.83 | F11: 8147467.41 | G11: 1077947.11 | I11: 9225414.52
B12: TOTAL ING. DE EXPLOTACIÓN | C12: 111686270.8 | E12: 6307932.62 | F12: 117994203.4 | G12: 69859370.09 | I12: 187853573.5
B13: COSTOS DE EXPLOTACIÓN
B14: OPERATIVO
B15: Costo Operativo Var | C15: 23518621.44 | E15: 562159.34 | F15: 24080780.78 | G15: 14734353.46 | I15: 38815134.24
B16: Costo Operativo Fijo | C16: 29724425.06 | E16: 8530278.59 | F16: 38254703.65 | G16: 27704401.03 | I16: 65959104.68
B17: TOTAL OPERATIVO | C17: 53243046.5 | E17: 9092437.93 | F17: 62335484.43 | G17: 42438754.49 | I17: 104774238.9
B18: NO OPERATIVO
B19: COMERCIALIZACIÓN
B20: Comercial Propios | C20: 33520196.25 | E20: 2251907.45 | F20: 35772103.7 | G20: 15695671.97 | I20: 51467775.67
B21: Comercial Asignados | C21: 10821867.48 | E21: 611208.68 | F21: 11433076.16 | G21: 6769040.13 | I21: 18202116.29
B22: TOTAL COMERCIALIZACIÓN | C22: 44342063.73 | E22: 2863116.13 | F22: 47205179.86 | G22: 22464712.1 | I22: 69669891.96
B23: ADMINISTRACIÓN
B24: Administración Propios | C24: 7374844.19 | E24: 495446.56 | F24: 7870290.75 | G24: 3453235.64 | I24: 11323526.39
B25: Administ. Asignados | C25: 11822089.96 | E25: 667700.27 | F25: 12489790.23 | G25: 7394675.74 | I25: 19884465.97
B26: Gastos Fiscales | C26: 4935587.54 | E26: 278757.23 | F26: 5214344.77 | G26: 3087192.68 | I26: 8301537.45
B27: TOTAL ADMINISTRACIÓN | C27: 24132521.69 | E27: 1441904.06 | F27: 25574425.75 | G27: 13935104.06 | I27: 39509529.81
B28: TOTAL NO OPERATIVO | C28: 68474585.42 | E28: 4305020.19 | F28: 72779605.61 | G28: 36399816.16 | I28: 109179421.8
B29: COSTO DE EXPLOTACIÓN | C29: 121717631.9 | E29: 13397458.12 | F29: 135115090 | G29: 78838570.65 | I29: 213953660.7
B30: RESULTADO DE EXPLOTACIÓN | C30: -10031361.13 | E30: -7089525.5 | F30: -17120886.63 | G30: -8979200.56 | I30: -26100087.19
B31: DIVERSOS Y EXTRAORDINARIOS
B32: Ingresos Div. y Extr | C32: 1417096.51 | E32: 80036.07 | F32: 1497132.58 | G32: 1284249.85 | I32: 2781382.43
B33: Gtos. Div. y Extraor | C33: 150913.81 | E33: 8523.44 | F33: 159437.25 | G33: 94396.06 | I33: 253833.31
B34: RESULTADOS DIV. Y EXTRAORDINARIOS | C34: 1266182.7 | E34: 71512.63 | F34: 1337695.33 | G34: 1189853.79 | I34: 2527549.12
B35: FINANCIEROS
B36: Ingresos Financieros | C36: 3902631.11 | E36: 220416.84 | F36: 4123047.95 | G36: 2441082.01 | I36: 6564129.96
B37: Gastos Financieros | C37: 16416946.45 | E37: 927213.33 | F37: 17344159.78 | G37: 10268742.34 | I37: 27612902.12
B38: RESULTADO FINANCIERO | C38: -12514315.34 | E38: -706796.49 | F38: -13221111.83 | G38: -7827660.33 | I38: -21048772.16
B39: I.R.A.E. | C39: 3488250.49 | E39: 197013.02 | F39: 3685263.51 | G39: 2181888.42 | I39: 5867151.93
B40: RESULTADO NETO | C40: -17791243.28 | E40: -7527796.34 | F40: -25319039.62 | G40: -13435118.68 | I40: -38754158.3

Sheet B-FLO-303
A3: F L O R E S
C5: C O S T O S T O T A L E S
B9: C O N C E P T O | C9: C O S T O S O P E R A T I V O S
C12: AGUA | D12: ALCANTARILLADO | E12: TOTAL
B14: RETRIBUCIONES AL PERSONAL | C14: 20456297.11 | D14: 11968419.32 | E14: 32424716.43
B16: MATERIALES Y SUMINISTROS | C16: 10264072.37 | D16: 1121975.144 | E16: 11386047.52
B18: ENERGÍA Y FLUÍDOS | C18: 7543419.114 | D18: 6986626.703 | E18: 14530045.82
B20: SERVICIOS CONTRATADOS | C20: 15424579.43 | D20: 13222424.62 | E20: 28647004.05
B22: GASTOS VARIOS | C22: 771940.5295 | D22: 615046.2278 | E22: 1386986.757
B24: AMORTIZACIÓN | C24: 7875175.869 | D24: 8524262.475 | E24: 16399438.34
B27: TOTAL | C27: 62335484.43 | D27: 42438754.49 | E27: 104774238.9 | G27: 0.6252731815
B32: C O N C E P T O | C32: C O S T O D E A D M I N I S T R A T I V O - C O M E R C I A L
C35: COMERCIALIZACIÓN | D35: ADMINISTRACIÓN | E35: TOTAL
B37: RETRIBUCIONES AL PERSONAL | C37: 23834861.77 | D37: 5651253.215 | E37: 29486114.99
B39: MATERIALES Y SUMINISTROS | C39: 1591726.89 | D39: 38931.52217 | E39: 1630658.412
B41: ENERGÍA Y FLUÍDOS | C41: 30454.29137 | D41: 2085322.149 | E41: 2115776.44
B43: SERVICIOS CONTRATADOS | C43: 24546407.84 | D43: 2754596.2 | E43: 27301004.04
B45: GASTOS VARIOS | C45: 318609.2997 | D45: 46013.4368 | E45: 364622.7365
B47: AMORTIZACIÓN | C47: 1145715.572 | D47: 747409.8668 | E47: 1893125.439
B51: TOTAL | C51: 51467775.67 | D51: 11323526.39 | E51: 62791302.06 | G51: 0.3747268185
A56: C O S T O D E E X P L O T A C I Ó N | G56: 167565541

Sheet C-FLO-303
B4: COBERTURAS, COSTOS E INGRESOS PROMEDIO
B6: F L O R E S
C10: 1. COMPOSICIÓN DEL COSTO PROPIO POR CONEXIÓN | D10: OPERATIVOS | F10: ADMINISTRATIVO-COMERCIAL
D12: AGUA | E12: ALCANTARILLADO
D13: ($/conex.agua) | E13: ($/conex.desagüe) | F13: ($/conex.agua)
C15: RETRIBUCIONES AL PERSONAL | D15: =+'B-FLO-303'!C14/'C-FLO-303'!$D$32 -> 1759.227478 | E15: =+'B-FLO-303'!D14/'C-FLO-303'!$E$32 -> 1172.914476 | F15: =(+'B-FLO-303'!C37+'B-FLO-303'!D37)/'C-FLO-303'!$D$32 -> 2535.785603
C17: MATERIALES Y SUMINISTROS | D17: =+'B-FLO-303'!C16/'C-FLO-303'!$D$32 -> 882.7031626 | E17: =+'B-FLO-303'!D16/'C-FLO-303'!$E$32 -> 109.9544438 | F17: =(+'B-FLO-303'!C39+'B-FLO-303'!D39)/'C-FLO-303'!$D$32 -> 140.2355015
C19: ENERGÍA Y FLUÍDOS | D19: =+'B-FLO-303'!C18/'C-FLO-303'!$D$32 -> 648.7288539 | E19: =+'B-FLO-303'!D18/'C-FLO-303'!$E$32 -> 684.6948945 | F19: =(+'B-FLO-303'!C41+'B-FLO-303'!D41)/'C-FLO-303'!$D$32 -> 181.9553182
C21: SERVICIOS CONTRATADOS | D21: =+'B-FLO-303'!C20/'C-FLO-303'!$D$32 -> 1326.503219 | E21: =+'B-FLO-303'!D20/'C-FLO-303'!$E$32 -> 1295.80798 | F21: =(+'B-FLO-303'!C43+'B-FLO-303'!D43)/'C-FLO-303'!$D$32 -> 2347.867565
C23: GASTOS VARIOS | D23: =+'B-FLO-303'!C22/'C-FLO-303'!$D$32 -> 66.38635445 | E23: =+'B-FLO-303'!D22/'C-FLO-303'!$E$32 -> 60.27501253 | F23: =(+'B-FLO-303'!C45+'B-FLO-303'!D45)/'C-FLO-303'!$D$32 -> 31.35730448
C25: AMORTIZACIÓN | D25: =+'B-FLO-303'!C24/'C-FLO-303'!$D$32 -> 677.2597067 | E25: =+'B-FLO-303'!D24/'C-FLO-303'!$E$32 -> 835.3844057 | F25: =(+'B-FLO-303'!C47+'B-FLO-303'!D47)/'C-FLO-303'!$D$32 -> 162.8074853
C29: TOTAL | D29: =SUM(D15:D25) -> 5360.808774 | E29: =SUM(E15:E25) -> 4159.031212 | F29: =SUM(F15:F25) -> 5400.008777
C32: 2.CONEXIONES (promedio anual) | D32: 11628 | E32: 10204
C35: 3.COBERTURAS COSTO/INGRESO
C37: 3.1 COSTO DE EXPLOTACIÓN/ INGRESO DE EXPLOT. | D37: =+'A-FLO-303'!F29/'A-FLO-303'!F12 -> 1.145099387 | E37: =+'A-FLO-303'!G29/'A-FLO-303'!G12 -> 1.128532515
C39: 3.3 TOTAL | D39: =+('A-FLO-303'!F29+'A-FLO-303'!F33+'A-FLO-303'!F37-'A-FLO-303'!F39)/('A-FLO-303'!F12+'A-FLO-303'!F32+'A-FLO-303'!F36) -> 1.204822763 | E39: =+('A-FLO-303'!G29+'A-FLO-303'!G33+'A-FLO-303'!G37-'A-FLO-303'!G39)/('A-FLO-303'!G12+'A-FLO-303'!G32+'A-FLO-303'!G36) -> 1.182580323
C42: 4.M3 ELEVADOS | D42: 1947120
C44: 5.M3 FACTURADOS | D44: 1163620
C47: 6. COSTO PROMEDIO
C49: 6.1 COSTO VARIABLE/ M3ELEVADOS | D49: =+'A-FLO-303'!F15/'C-FLO-303'!D42 -> 12.36738402
C51: 6.2 COSTO VARIABLE / M3FACTURADOS | D51: =+'A-FLO-303'!F15/'C-FLO-303'!D44 -> 20.694712
C53: 6.3 COSTO EXPLOTACIÓN/M3FACT | D53: =+'A-FLO-303'!F29/'C-FLO-303'!D44 -> 116.1161634
C55: 6.4 TOTAL/M3FACT | D55: =(+'A-FLO-303'!F29+'A-FLO-303'!F33+'A-FLO-303'!F37-'A-FLO-303'!F39)/'C-FLO-303'!D44 -> 127.9914608
C58: 7. INGRESOS PROMEDIO
C60: 7.1 VARIABLE/M3 FACT | D60: =+'A-FLO-303'!F7/'C-FLO-303'!D44 -> 52.24250107
C62: 7.2 FIJO/CONEXIONES | D62: =+'A-FLO-303'!F8/12/'C-FLO-303'!D32 -> 351.5674586
C64: 7.3 INGRESO EXPLOTACIÓN/M3FACT | D64: =+'A-FLO-303'!F12/'C-FLO-303'!D44 -> 101.4026945
C66: 7.4 TOTAL/M3FACT | D66: =(+'A-FLO-303'!F12+'A-FLO-303'!F32+'A-FLO-303'!F36)/D44 -> 106.2326051

Sheet A-SOR-304
B2: SORIANO | C2: ESTADO DE RENDIMIENTO ECONÓMICO (a valores históricos) | H2: PERÍODO ENERO-DICIEMBRE-2024
C4: AGUA POTABLE
B5: CONCEPTOS | C5: USINA | D5: PERFORACIÓN | E5: MIXTO | F5: SUB-TOTAL | G5: ALCANTARILLADO | H5: OTROS INGRESOS | I5: TOTAL
B6: INGRESOS
B7: Ingresos Variables | C7: 107833504.3 | D7: 32430140.94 | E7: 45274952.43 | F7: 185538597.7 | I7: 185538597.7
B8: Ingresos Fijos | C8: 79255495.6 | D8: 29035815.35 | E8: 38824098.76 | F8: 147115409.7 | I8: 147115409.7
B9: INGRESOS DE EXPLOTACIÓN | C9: 187088999.9 | D9: 61465956.29 | E9: 84099051.19 | F9: 332654007.4 | I9: 332654007.4
B10: Ingresos Alcantarillado | G10: 149697729.5 | I10: 149697729.5
B11: Otros Ingresos | C11: 21812500.31 | D11: 5401849.59 | E11: 8573112.86 | F11: 35787462.76 | G11: 1423265.94 | I11: 37210728.7
B12: TOTAL ING. DE EXPLOTACIÓN | C12: 208901500.2 | D12: 66867805.88 | E12: 92672164.05 | F12: 368441470.2 | G12: 151120995.4 | I12: 519562465.6
B13: COSTOS DE EXPLOTACIÓN
B14: OPERATIVO
B15: Costo Operativo Var | C15: 44228039.8 | D15: 4985414.39 | E15: 13782102.17 | F15: 62995556.36 | G15: 9354314.39 | I15: 72349870.75
B16: Costo Operativo Fijo | C16: 62953046.99 | D16: 13863227.04 | E16: 25972641.2 | F16: 102788915.2 | G16: 24432416.61 | I16: 127221331.8
B17: TOTAL OPERATIVO | C17: 107181086.8 | D17: 18848641.43 | E17: 39754743.37 | F17: 165784471.6 | G17: 33786731 | I17: 199571202.6
B18: NO OPERATIVO
B19: COMERCIALIZACIÓN
B20: Comercial Propios | C20: 42504870.65 | D20: 15803889.24 | E20: 21646957.44 | F20: 79955717.33 | G20: 22762661.39 | I20: 102718378.7
B21: Comercial Asignados | C21: 20241559.93 | D21: 6479171.97 | E21: 8979491.23 | F21: 35700223.13 | G21: 14642904.25 | I21: 50343127.38
B22: TOTAL COMERCIALIZACIÓN | C22: 62746430.58 | D22: 22283061.21 | E22: 30626448.67 | F22: 115655940.5 | G22: 37405565.64 | I22: 153061506.1
B23: ADMINISTRACIÓN
B24: Administración Propios | C24: 6295917.98 | D24: 2340908.02 | E24: 3206396.58 | F24: 11843222.58 | G24: 3371657.03 | I24: 15214879.61
B25: Administ. Asignados | C25: 22112407.41 | D25: 7078016.18 | E25: 9809429.89 | F25: 38999853.48 | G25: 15996290.16 | I25: 54996143.64
B26: Gastos Fiscales | C26: 9231677.57 | D26: 2954990.85 | E26: 4095325 | F26: 16281993.42 | G26: 6678268.45 | I26: 22960261.87
B27: TOTAL ADMINISTRACIÓN | C27: 37640002.96 | D27: 12373915.05 | E27: 17111151.47 | F27: 67125069.48 | G27: 26046215.64 | I27: 93171285.12
B28: TOTAL NO OPERATIVO | C28: 100386433.5 | D28: 34656976.26 | E28: 47737600.14 | F28: 182781009.9 | G28: 63451781.28 | I28: 246232791.2
B29: COSTO DE EXPLOTACIÓN | C29: 207567520.3 | D29: 53505617.69 | E29: 87492343.51 | F29: 348565481.5 | G29: 97238512.28 | I29: 445803993.8
B30: RESULTADO DE EXPLOTACIÓN | C30: 1333979.9 | D30: 13362188.19 | E30: 5179820.54 | F30: 19875988.63 | G30: 53882483.12 | I30: 73758471.75
B31: DIVERSOS Y EXTRAORDINARIOS
B32: Ingresos Div. y Extr | C32: 2650582.12 | D32: 848431.25 | E32: 1175842.02 | F32: 4674855.39 | G32: 2778111.36 | I32: 7452966.75
B33: Gtos. Div. y Extraor | C33: 282273.95 | D33: 90353.85 | E33: 125221.4 | F33: 497849.2 | G33: 204199.22 | I33: 702048.42
B34: RESULTADOS DIV. Y EXTRAORDINARIOS | C34: 2368308.17 | D34: 758077.4 | E34: 1050620.62 | F34: 4177006.19 | G34: 2573912.14 | I34: 6750918.33
B35: FINANCIEROS
B36: Ingresos Financieros | C36: 7299603.47 | D36: 2336548.42 | E36: 3238224.96 | F36: 12874376.85 | G36: 5280590.8 | I36: 18154967.65
B37: Gastos Financieros | C37: 30706771.03 | D37: 9829007.49 | E37: 13622032 | F37: 54157810.52 | G37: 22213520.68 | I37: 76371331.2
B38: RESULTADO FINANCIERO | C38: -23407167.56 | D38: -7492459.07 | E38: -10383807.04 | F38: -41283433.67 | G38: -16932929.88 | I38: -58216363.55
B39: I.R.A.E. | C39: 6524532.98 | D39: 2088454.16 | E39: 2894390.85 | F39: 11507377.99 | G39: 4719898.68 | I39: 16227276.67
B40: RESULTADO NETO | C40: -13180346.51 | D40: 8716260.68 | E40: -1258975.03 | F40: -5723060.86 | G40: 44243364.06 | I40: 38520303.2

Sheet B-SOR-304
B4: S O R I A N O
D6: C O S T O S T O T A L E S
C10: C O N C E P T O | D10: C O S T O S O P E R A T I V O S
D13: AGUA | E13: ALCANTARILLADO | F13: TOTAL
C15: RETRIBUCIONES AL PERSONAL | D15: 45238063.58 | E15: 3609582.801 | F15: 48847646.38
C17: MATERIALES Y SUMINISTROS | D17: 37329119.03 | E17: 1076617.022 | F17: 38405736.05
C19: ENERGÍA Y FLUÍDOS | D19: 18942172.35 | E19: 2531118.046 | F19: 21473290.39
C21: SERVICIOS CONTRATADOS | D21: 36186106.52 | E21: 15524659.79 | F21: 51710766.32
C23: GASTOS VARIOS | D23: 993827.0807 | E23: 205147.9716 | F23: 1198975.052
C25: AMORTIZACIÓN | D25: 27095182.07 | E25: 10839605.36 | F25: 37934787.44
C28: TOTAL | D28: 165784470.6 | E28: 33786731 | F28: 199571201.6 | H28: 0.6285618843
C33: C O N C E P T O | D33: C O S T O D E A D M I N I S T R A T I V O - C O M E R C I A L
D36: COMERCIALIZACIÓN | E36: ADMINISTRACIÓN | F36: TOTAL
C38: RETRIBUCIONES AL PERSONAL | D38: 46796842.77 | E38: 6591092.121 | F38: 53387934.89
C40: MATERIALES Y SUMINISTROS | D40: 3593239.829 | E40: 238311.0657 | F40: 3831550.895
C42: ENERGÍA Y FLUÍDOS | D42: 303576.4172 | E42: 3754066.833 | F42: 4057643.25
C44: SERVICIOS CONTRATADOS | D44: 48259476.34 | E44: 4121691.079 | F44: 52381167.42
C46: GASTOS VARIOS | D46: 640522.9322 | E46: 54110.52261 | F46: 694633.4548
C48: AMORTIZACIÓN | D48: 3124720.426 | E48: 455607.9888 | F48: 3580328.415
C52: TOTAL | D52: 102718378.7 | E52: 15214879.61 | F52: 117933258.3 | H52: 0.3714381157
B57: C O S T O D E E X P L O T A C I Ó N | H57: 317504460

Sheet C-SOR-304
B4: COBERTURAS, COSTOS E INGRESOS PROMEDIO
B6: S O R I A N O
C10: 1. COMPOSICIÓN DEL COSTO PROPIO POR CONEXIÓN | D10: OPERATIVOS | F10: ADMINISTRATIVO-COMERCIAL
D12: AGUA | E12: ALCANTARILLADO
D13: ($/conex.agua) | E13: ($/conex.desagüe) | F13: ($/conex.agua)
C15: RETRIBUCIONES AL PERSONAL | D15: =+'B-SOR-304'!D15/'C-SOR-304'!$D$32 -> 1301.552596 | E15: =+'B-SOR-304'!E15/'C-SOR-304'!$E$32 -> 182.39428 | F15: =(+'B-SOR-304'!D38+'B-SOR-304'!E38)/$D$32 -> 1536.034033
C17: MATERIALES Y SUMINISTROS | D17: =+'B-SOR-304'!D17/'C-SOR-304'!$D$32 -> 1074.002907 | E17: =+'B-SOR-304'!E17/'C-SOR-304'!$E$32 -> 54.40207285 | F17: =(+'B-SOR-304'!D40+'B-SOR-304'!E40)/$D$32 -> 110.2382511
C19: ENERGÍA Y FLUÍDOS | D19: =+'B-SOR-304'!D19/'C-SOR-304'!$D$32 -> 544.988703 | E19: =+'B-SOR-304'!E19/'C-SOR-304'!$E$32 -> 127.8988401 | F19: =(+'B-SOR-304'!D42+'B-SOR-304'!E42)/$D$32 -> 116.7431956
C21: SERVICIOS CONTRATADOS | D21: =+'B-SOR-304'!D21/'C-SOR-304'!$D$32 -> 1041.117085 | E21: =+'B-SOR-304'!E21/'C-SOR-304'!$E$32 -> 784.4699239 | F21: =(+'B-SOR-304'!D44+'B-SOR-304'!E44)/$D$32 -> 1507.068142
C23: GASTOS VARIOS | D23: =+'B-SOR-304'!D23/'C-SOR-304'!$D$32 -> 28.59358059 | E23: =+'B-SOR-304'!E23/'C-SOR-304'!$E$32 -> 10.36624414 | F23: =(+'B-SOR-304'!D46+'B-SOR-304'!E46)/$D$32 -> 19.98542609
C25: AMORTIZACIÓN | D25: =+'B-SOR-304'!D25/'C-SOR-304'!$D$32 -> 779.560436 | E25: =+'B-SOR-304'!E25/'C-SOR-304'!$E$32 -> 547.7314484 | F25: =(+'B-SOR-304'!D48+'B-SOR-304'!E48)/$D$32 -> 103.0102832
C29: TOTAL | D29: =SUM(D15:D25) -> 4769.815307 | E29: =SUM(E15:E25) -> 1707.262809 | F29: =SUM(F15:F25) -> 3393.079332
C32: 2.CONEXIONES (promedio anual) | D32: 34757 | E32: 19790
C35: 3.COBERTURAS COSTO/INGRESO
C37: 3.1 COSTO DE EXPLOTACIÓN/ INGRESO DE EXPLOT. | D37: =+'A-SOR-304'!F29/'A-SOR-304'!F12 -> 0.9460538776 | E37: =+'A-SOR-304'!G29/'A-SOR-304'!G12 -> 0.6434480664
C39: 3.3 TOTAL | D39: =(+'A-SOR-304'!F29+'A-SOR-304'!F33+'A-SOR-304'!F37-'A-SOR-304'!F39)/('A-SOR-304'!F12+'A-SOR-304'!F32+'A-SOR-304'!F36) -> 1.01482694 | E39: =(+'A-SOR-304'!G29+'A-SOR-304'!G33+'A-SOR-304'!G37-'A-SOR-304'!G39)/('A-SOR-304'!G12+'A-SOR-304'!G32+'A-SOR-304'!G36) -> 0.7220539759
C42: 4.M3 ELEVADOS | D42: 7005800
C44: 5.M3 FACTURADOS | D44: 3676070
C47: 6. COSTO PROMEDIO
C49: 6.1 COSTO VARIABLE/ M3ELEVADOS | D49: =+'A-SOR-304'!F15/'C-SOR-304'!D42 -> 8.991914751
C51: 6.2 COSTO VARIABLE / M3FACTURADOS | D51: =+'A-SOR-304'!F15/'C-SOR-304'!D44 -> 17.13665854
C53: 6.3 COSTO EXPLOTACIÓN/M3FACT | D53: =+'A-SOR-304'!F29/'C-SOR-304'!D44 -> 94.82014258
C55: 6.4 TOTAL/M3FACT | D55: =(+'A-SOR-304'!F29+'A-SOR-304'!F33+'A-SOR-304'!F37-'A-SOR-304'!F39)/D44 -> 106.5577541
C58: 7. INGRESOS PROMEDIO
C60: 7.1 VARIABLE/M3 FACT | D60: =+'A-SOR-304'!F7/'C-SOR-304'!D44 -> 50.471998
C62: 7.2 FIJO/CONEXIONES | D62: =+'A-SOR-304'!F8/12/'C-SOR-304'!D32 -> 352.7236953
C64: 7.3 INGRESO EXPLOTACIÓN/M3FACT | D64: =+'A-SOR-304'!F12/'C-SOR-304'!D44 -> 100.2270006
C66: 7.4 TOTAL/M3FACT | D66: =(+'A-SOR-304'!F12+'A-SOR-304'!F32+'A-SOR-304'!F36)/'C-SOR-304'!D44 -> 105.000912

Sheet A-100-AG-LITORAL NORTE
A2: AMBITO GEOGRÁFICO LITORAL NORTE | B2: ESTADO DE RENDIMIENTO ECONÓMICO (a valores históricos) | G2: PERÍODO ENERO-DICIEMBRE-2024
B4: AGUA POTABLE
A5: CONCEPTOS | B5: USINA | C5: PERFORACIÓN | D5: MIXTO | E5: SUB-TOTAL | F5: ALCANTARILLADO | G5: OTROS INGRESOS | H5: TOTAL
A6: INGRESOS
A7: Ingresos Variables | B7: 281852275.1 | C7: 83485582.06 | D7: 352924680.3 | E7: 718262537.5 | H7: 718262537.5
A8: Ingresos Fijos | B8: 207119061.4 | C8: 66705081.49 | D8: 278086988.7 | E8: 551911131.5 | H8: 551911131.5
A9: INGRESOS DE EXPLOTACIÓN | B9: 488971336.4 | C9: 150190663.6 | D9: 631011669 | E9: 1270173669 | H9: 1270173669
A10: Ingresos Alcantarillado | F10: 740054712.8 | H10: 740054712.8
A11: Otros Ingresos | B11: 50086644.2 | C11: 13924524.01 | D11: 76386482.62 | E11: 140397650.8 | F11: 9230499.04 | H11: 149628149.9
A12: TOTAL ING. DE EXPLOTACIÓN | B12: 539057980.6 | C12: 164115187.6 | D12: 707398151.6 | E12: 1410571320 | F12: 749285211.8 | H12: 2159856532
A13: COSTOS DE EXPLOTACIÓN
A14: OPERATIVO
A15: Costo Operativo Var | B15: 91841700.4 | C15: 18500907.15 | D15: 106646133.1 | E15: 216988740.7 | F15: 35188410.03 | H15: 252177150.7
A16: Costo Operativo Fijo | B16: 127421632.2 | C16: 91183887.91 | D16: 188068783.3 | E16: 406674303.5 | F16: 321161004.2 | H16: 727835307.7
A17: TOTAL OPERATIVO | B17: 219263332.6 | C17: 109684795.1 | D17: 294714916.4 | E17: 623663044.1 | F17: 356349414.3 | H17: 980012458.4
A18: NO OPERATIVO
A19: COMERCIALIZACIÓN
A20: Comercial Propios | B20: 133565260 | C20: 49483073.73 | D20: 185422545.5 | E20: 368470879.2 | F20: 122685225.5 | H20: 491156104.7
A21: Comercial Asignados | B21: 52232150.29 | C21: 15901979.71 | D21: 68543510.11 | E21: 136677640.1 | F21: 72602166.89 | H21: 209279807
A22: TOTAL COMERCIALIZACIÓN | B22: 185797410.2 | C22: 65385053.44 | D22: 253966055.6 | E22: 505148519.3 | F22: 195287392.4 | H22: 700435911.7
A23: ADMINISTRACIÓN
A24: Administración Propios | B24: 19850817.11 | C24: 7738171.56 | D24: 28793721.72 | E24: 56382710.39 | F24: 18652542.52 | H24: 75035252.91
A25: Administ. Asignados | B25: 57059761 | C25: 17371737.23 | D25: 74878716.33 | E25: 149310214.6 | F25: 79312498.72 | H25: 228622713.3
A26: Gastos Fiscales | B26: 23821798.67 | C26: 7252501.78 | D26: 31261008.94 | E26: 62335309.39 | F26: 33112062.3 | H26: 95447371.69
A27: TOTAL ADMINISTRACIÓN | B27: 100732376.8 | C27: 32362410.57 | D27: 134933447 | E27: 268028234.3 | F27: 131077103.5 | H27: 399105337.9
A28: TOTAL NO OPERATIVO | B28: 286529787 | C28: 97747464.01 | D28: 388899502.6 | E28: 773176753.6 | F28: 326364496 | H28: 1099541250
A29: COSTO DE EXPLOTACIÓN | B29: 505793119.7 | C29: 207432259.1 | D29: 683614419 | E29: 1396839798 | F29: 682713910.2 | H29: 2079553708
A30: RESULTADO DE EXPLOTACIÓN | B30: 33264860.98 | C30: -43317071.51 | D30: 23783732.59 | E30: 13731522.06 | F30: 66571301.59 | H30: 80302823.65
A31: DIVERSOS Y EXTRAORDINARIOS
A32: Ingresos Div. y Extr | B32: 6839672.64 | C32: 2082324.17 | D32: 8975603.01 | E32: 17897599.82 | F32: 13774378.55 | H32: 31671978.37
A33: Gtos. Div. y Extraor | B33: 734069.24 | C33: 221757.37 | D33: 955857.71 | E33: 1911684.32 | F33: 1012456.62 | H33: 2924140.94
A34: RESULTADOS DIV. Y EXTRAORDINARIOS | B34: 6105603.4 | C34: 1860566.8 | D34: 8019745.3 | E34: 15985915.5 | F34: 12761921.93 | H34: 28747837.43
A35: FINANCIEROS
A36: Ingresos Financieros | B36: 18836195.58 | C36: 5734644.29 | D36: 24718472.57 | E36: 49289312.44 | F36: 26182123.76 | H36: 75471436.2
A37: Gastos Financieros | B37: 79237008.74 | C37: 24123558.21 | D37: 103981604.1 | E37: 207342171.1 | F37: 110138651.1 | H37: 317480822.2
A38: RESULTADO FINANCIERO | B38: -60400813.16 | C38: -18388913.92 | D38: -79263131.55 | E38: -158052858.6 | F38: -83956527.36 | H38: -242009386
A39: I.R.A.E. | B39: 16836171.96 | C39: 5125740.88 | D39: 22093869.94 | E39: 44055782.78 | F39: 23402110.94 | H39: 67457893.72
A40: RESULTADO NETO | B40: -4194176.82 | C40: -54719677.75 | D40: -25365783.72 | E40: -84279638.29 | F40: 18778807.1 | H40: -65500831.19

Sheet B-100-AG-LITORAL NORTE
B4: AMBITO GEOGRÁFICO LITORAL NORTE
D6: C O S T O S T O T A L E S
C10: C O N C E P T O | D10: C O S T O S O P E R A T I V O S
D13: AGUA | E13: ALCANTARILLADO | F13: TOTAL
C15: RETRIBUCIONES AL PERSONAL | D15: 197514863.9 | E15: 37415368.99 | F15: 234930232.9
C17: MATERIALES Y SUMINISTROS | D17: 113605283.4 | E17: 10380177.21 | F17: 123985460.6
C19: ENERGIA Y FLUÍDOS | D19: 101131321.1 | E19: 19256685.75 | F19: 120388006.8
C21: SERVICIOS CONTRATADOS | D21: 102448732.6 | E21: 196789205.1 | F21: 299237937.6
C23: GASTOS VARIOS | D23: 22228332.52 | E23: -930326.2328 | F23: 21298006.29
C25: AMORTIZACIÓN | D25: 86734510.8 | E25: 93438303.12 | F25: 180172813.9
C28: TOTAL | D28: 623663044.3 | E28: 356349413.9 | F28: 980012458.2 | H28: 0.6338184191
C33: C O N C E P T O | D33: C O S T O D E A D M I N I S T R A T I V O - C O M E R C I A L
D36: COMERCIALIZACIÓN | E36: ADMINISTRACIÓN | F36: TOTAL
C38: RETRIBUCIONES AL PERSONAL | D38: 141598351.9 | E38: 24821553.75 | F38: 166419905.6
C40: MATERIALES Y SUMINISTROS | D40: 14391177.66 | E40: 2585681.281 | F40: 16976858.94
C42: ENERGIA Y FLUÍDOS | D42: 934486.4046 | E42: 17010211.5 | F42: 17944697.91
C44: SERVICIOS CONTRATADOS | D44: 314298789.1 | E44: 26494629.91 | F44: 340793419
C46: GASTOS VARIOS | D46: -214671.0883 | E46: 773797.7287 | F46: 559126.6404
C48: AMORTIZACIÓN | D48: 20147970.74 | E48: 3349378.732 | F48: 23497349.47
C52: TOTAL | D52: 491156104.7 | E52: 75035252.91 | F52: 566191357.6 | H52: 0.3661815809
B57: C O S T O D E E X P L O T A C I Ó N | H57: 1546203816

Sheet C-100-AG-LITORAL NORTE
D4: COBERTURAS, COSTOS E INGRESOS PROMEDIO
D6: A M B I T O G E O G R Á F I C O L I T O R A L N O R T E
C10: 1. COMPOSICIÓN DEL COSTO PROPIO POR CONEXIÓN | D10: OPERATIVOS | F10: ADMINISTRATIVO-COMERCIAL
D12: AGUA | E12: ALCANTARILLADO
D13: ($/conex.agua) | E13: ($/conex.desagüe) | F13: ($/conex.agua)
C15: RETRIBUCIONES AL PERSONAL | D15: =+'B-100-AG-LITORAL NORTE'!D15/'C-100-AG-LITORAL NORTE'!$D$32 -> 1435.490384 | E15: =+'B-100-AG-LITORAL NORTE'!E15/'C-100-AG-LITORAL NORTE'!$E$32 -> 403.1133532 | F15: =+('B-100-AG-LITORAL NORTE'!D38+'B-100-AG-LITORAL NORTE'!E38)/'C-100-AG-LITORAL NORTE'!$D$32 -> 1209.499728
C17: MATERIALES Y SUMINISTROS | D17: =+'B-100-AG-LITORAL NORTE'!D17/'C-100-AG-LITORAL NORTE'!$D$32 -> 825.6557943 | E17: =+'B-100-AG-LITORAL NORTE'!E17/'C-100-AG-LITORAL NORTE'!$E$32 -> 111.8360758 | F17: =+('B-100-AG-LITORAL NORTE'!D40+'B-100-AG-LITORAL NORTE'!E40)/'C-100-AG-LITORAL NORTE'!$D$32 -> 123.3837154
C19: ENERGIA Y FLUÍDOS | D19: =+'B-100-AG-LITORAL NORTE'!D19/'C-100-AG-LITORAL NORTE'!$D$32 -> 734.9980455 | E19: =+'B-100-AG-LITORAL NORTE'!E19/'C-100-AG-LITORAL NORTE'!$E$32 -> 207.4716186 | F19: =+('B-100-AG-LITORAL NORTE'!D42+'B-100-AG-LITORAL NORTE'!E42)/'C-100-AG-LITORAL NORTE'!$D$32 -> 130.4177356
C21: SERVICIOS CONTRATADOS | D21: =+'B-100-AG-LITORAL NORTE'!D21/'C-100-AG-LITORAL NORTE'!$D$32 -> 744.5726746 | E21: =+'B-100-AG-LITORAL NORTE'!E21/'C-100-AG-LITORAL NORTE'!$E$32 -> 2120.207777 | F21: =+('B-100-AG-LITORAL NORTE'!D44+'B-100-AG-LITORAL NORTE'!E44)/'C-100-AG-LITORAL NORTE'!$D$32 -> 2476.804359
C23: GASTOS VARIOS | D23: =+'B-100-AG-LITORAL NORTE'!D23/'C-100-AG-LITORAL NORTE'!$D$32 -> 161.5501586 | E23: =+'B-100-AG-LITORAL NORTE'!E23/'C-100-AG-LITORAL NORTE'!$E$32 -> -10.023339 | F23: =+('B-100-AG-LITORAL NORTE'!D46+'B-100-AG-LITORAL NORTE'!E46)/'C-100-AG-LITORAL NORTE'!$D$32 -> 4.063597543
C25: AMORTIZACIÓN | D25: =+'B-100-AG-LITORAL NORTE'!D25/'C-100-AG-LITORAL NORTE'!$D$32 -> 630.3655014 | E25: =+'B-100-AG-LITORAL NORTE'!E25/'C-100-AG-LITORAL NORTE'!$E$32 -> 1006.704697 | F25: =+('B-100-AG-LITORAL NORTE'!D48+'B-100-AG-LITORAL NORTE'!E48)/'C-100-AG-LITORAL NORTE'!$D$32 -> 170.7730676
C29: TOTAL | D29: =SUM(D15:D25) -> 4532.632559 | E29: =SUM(E15:E25) -> 3839.310182 | F29: =SUM(F15:F25) -> 4114.942204
C32: 2.CONEXIONES (promedio anual) | D32: 137594 | E32: 92816
C35: 3.COBERTURAS COSTO/INGRESO
C37: 3.1 COSTO DE EXPLOTACIÓN/ INGRESO DE EXPLOT. | D37: =+'A-100-AG-LITORAL NORTE'!E29/'A-100-AG-LITORAL NORTE'!E12 -> 0.9902652763 | E37: =+'A-100-AG-LITORAL NORTE'!F29/'A-100-AG-LITORAL NORTE'!F12 -> 0.9111535894
C39: 3.3 TOTAL | D39: =+('A-100-AG-LITORAL NORTE'!E29+'A-100-AG-LITORAL NORTE'!E33+'A-100-AG-LITORAL NORTE'!E37-'A-100-AG-LITORAL NORTE'!E39)/('A-100-AG-LITORAL NORTE'!E12+'A-100-AG-LITORAL NORTE'!E32+'A-100-AG-LITORAL NORTE'!E36) -> 1.057032089 | E39: =+('A-100-AG-LITORAL NORTE'!F29+'A-100-AG-LITORAL NORTE'!F33+'A-100-AG-LITORAL NORTE'!F37-'A-100-AG-LITORAL NORTE'!F39)/('A-100-AG-LITORAL NORTE'!F12+'A-100-AG-LITORAL NORTE'!F32+'A-100-AG-LITORAL NORTE'!F36) -> 0.9762065198
C42: 4.M3 ELEVADOS | D42: 34712870
C44: 5.M3 FACTURADOS | D44: 16413480
C47: 6. COSTO PROMEDIO
C49: 6.1 COSTO VARIABLE/ M3ELEVADOS | D49: =+'A-100-AG-LITORAL NORTE'!E15/'C-100-AG-LITORAL NORTE'!D42 -> 6.25095939
C51: 6.2 COSTO VARIABLE / M3FACTURADOS | D51: =+'A-100-AG-LITORAL NORTE'!E15/'C-100-AG-LITORAL NORTE'!D44 -> 13.22015445
C53: 6.3 COSTO EXPLOTACIÓN/M3FACT | D53: =+'A-100-AG-LITORAL NORTE'!E29/'C-100-AG-LITORAL NORTE'!D44 -> 85.10320772
C55: 6.4 TOTAL/M3FACT | D55: =+('A-100-AG-LITORAL NORTE'!E29+'A-100-AG-LITORAL NORTE'!E33+'A-100-AG-LITORAL NORTE'!E37-'A-100-AG-LITORAL NORTE'!E39)/'C-100-AG-LITORAL NORTE'!D44 -> 95.16798817
C58: 7. INGRESOS PROMEDIO
C60: 7.1 VARIABLE/M3 FACT | D60: =+'A-100-AG-LITORAL NORTE'!E7/'C-100-AG-LITORAL NORTE'!D44 -> 43.76052717
C62: 7.2 FIJO/CONEXIONES | D62: =+('A-100-AG-LITORAL NORTE'!E8/12)/'C-100-AG-LITORAL NORTE'!D32 -> 334.2630805
C64: 7.3 INGRESO EXPLOTACIÓN/M3FACT | D64: =+'A-100-AG-LITORAL NORTE'!E12/'C-100-AG-LITORAL NORTE'!D44 -> 85.939808
C66: 7.4 TOTAL/M3FACT | D66: =+('A-100-AG-LITORAL NORTE'!E12+'A-100-AG-LITORAL NORTE'!E32+'A-100-AG-LITORAL NORTE'!E36)/'C-100-AG-LITORAL NORTE'!D44 -> 90.03320637

Sheet A-PAY-101
B2: PAYSANDÚ | C2: ESTADO DE RENDIMIENTO ECONÓMICO (a valores históricos) | H2: PERÍODO ENERO-DICIEMBRE-2024
C4: AGUA POTABLE
B5: CONCEPTOS | C5: USINA | D5: PERFORACIÓN | E5: MIXTO | F5: SUB-TOTAL | G5: ALCANTARILLADO | H5: OTROS INGRESOS | I5: TOTAL
B6: INGRESOS
B7: Ingresos Variables | C7: 217634662.3 | D7: 25731090.83 | F7: 243365753.1 | I7: 243365753.1
B8: Ingresos Fijos | C8: 161241563 | D8: 21160330.87 | F8: 182401893.9 | I8: 182401893.9
B9: INGRESOS DE EXPLOTACIÓN | C9: 378876225.3 | D9: 46891421.7 | F9: 425767647 | I9: 425767647
B10: Ingresos Alcantarillado | G10: 234292883.9 | I10: 234292883.9
B11: Otros Ingresos | C11: 39604510.28 | D11: 4346027.93 | F11: 43950538.21 | G11: 1540709.22 | I11: 45491247.43
B12: TOTAL ING. DE EXPLOTACIÓN | C12: 418480735.6 | D12: 51237449.63 | F12: 469718185.2 | G12: 235833593.1 | I12: 705551778.3
B13: COSTOS DE EXPLOTACIÓN
B14: OPERATIVO
B15: Costo Operativo Var | C15: 65166439.95 | D15: 7820356.64 | F15: 72986796.59 | G15: 3975411.81 | I15: 76962208.4
B16: Costo Operativo Fijo | C16: 71316700.21 | D16: 31707508.64 | F16: 103024208.8 | G16: 39193182.67 | I16: 142217391.5
B17: TOTAL OPERATIVO | C17: 136483140.2 | D17: 39527865.28 | F17: 176011005.4 | G17: 43168594.48 | I17: 219179599.9
B18: NO OPERATIVO
B19: COMERCIALIZACIÓN
B20: Comercial Propios | C20: 100699053.6 | D20: 16169845.71 | F20: 116868899.3 | G20: 37924014.37 | I20: 154792913.7
B21: Comercial Asignados | C21: 40548789.79 | D21: 4964664.79 | F21: 45513454.58 | G21: 22851151.41 | I21: 68364605.99
B22: TOTAL COMERCIALIZACIÓN | C22: 141247843.4 | D22: 21134510.5 | F22: 162382353.9 | G22: 60775165.78 | I22: 223157519.7
B23: ADMINISTRACIÓN
B24: Administración Propios | C24: 14558007.24 | D24: 2337665.82 | F24: 16895673.06 | G24: 5482654.15 | I24: 22378327.21
B25: Administ. Asignados | C25: 44296553.55 | D25: 5423529.1 | F25: 49720082.65 | G25: 24963193.11 | I25: 74683275.76
B26: Gastos Fiscales | C26: 18493305.34 | D26: 2264261.49 | F26: 20757566.83 | G26: 10421848.05 | I26: 31179414.88
B27: TOTAL ADMINISTRACIÓN | C27: 77347866.13 | D27: 10025456.41 | F27: 87373322.54 | G27: 40867695.31 | I27: 128241017.8
B28: TOTAL NO OPERATIVO | C28: 218595709.6 | D28: 31159966.91 | F28: 249755676.5 | G28: 101642861.1 | I28: 351398537.6
B29: COSTO DE EXPLOTACIÓN | C29: 355078849.7 | D29: 70687832.19 | F29: 425766681.9 | G29: 144811455.6 | I29: 570578137.5
B30: RESULTADO DE EXPLOTACIÓN | C30: 63401885.85 | D30: -19450382.56 | F30: 43951503.29 | G30: 91022137.54 | I30: 134973640.8
B31: DIVERSOS Y EXTRAORDINARIOS
B32: Ingresos Div. y Extr | C32: 5309765.64 | D32: 650110.53 | F32: 5959876.17 | G32: 4335413.79 | I32: 10295289.96
B33: Gtos. Div. y Extraor | C33: 571141.67 | D33: 69233.55 | F33: 640375.22 | G33: 318665.43 | I33: 959040.65
B34: RESULTADOS DIV. Y EXTRAORDINARIOS | C34: 4738623.97 | D34: 580876.98 | F34: 5319500.95 | G34: 4016748.36 | I34: 9336249.31
B35: FINANCIEROS
B36: Ingresos Financieros | C36: 14622888.94 | D36: 1790380 | F36: 16413268.94 | G36: 8240686.21 | I36: 24653955.15
B37: Gastos Financieros | C37: 61513163.55 | D37: 7531476.04 | F37: 69044639.59 | G37: 34665563.14 | I37: 103710202.7
B38: RESULTADO FINANCIERO | C38: -46890274.61 | D38: -5741096.04 | F38: -52631370.65 | G38: -26424876.93 | I38: -79056247.58
B39: I.R.A.E. | C39: 13070233.41 | D39: 1600277.81 | F39: 14670511.22 | G39: 7365691.75 | I39: 22036202.97
B40: RESULTADO NETO | C40: 34320468.62 | D40: -23010323.81 | F40: 11310144.81 | G40: 75979700.72 | I40: 87289845.53

Sheet B-PAY-101
B4: PAYSANDÚ
D6: C O S T O S T O T A L E S
C10: C O N C E P T O | D10: C O S T O S O P E R A T I V O S
D13: AGUA | E13: ALCANTARILLADO | F13: TOTAL
C15: RETRIBUCIONES AL PERSONAL | D15: 48853946.58 | E15: 10518171.27 | F15: 59372117.86
C17: MATERIALES Y SUMINISTROS | D17: 53909427.53 | E17: 942404.5715 | F17: 54851832.1
C19: ENERGIA Y FLUÍDOS | D19: 30639787.08 | E19: 1452619.484 | F19: 32092406.56
C21: SERVICIOS CONTRATADOS | D21: 24288219.47 | E21: 9486006.661 | F21: 33774226.13
C23: GASTOS VARIOS | D23: -5180796.896 | E23: -1174980.55 | F23: -6355777.446
C25: AMORTIZACIÓN | D25: 23500421.81 | E25: 21944372.64 | F25: 45444794.45
C28: TOTAL | D28: 176011005.6 | E28: 43168594.08 | F28: 219179599.7 | H28: 0.5529939064
C33: C O N C E P T O | D33: C O S T O D E A D M I N I S T R A T I V O - C O M E R C I A L
D36: COMERCIALIZACIÓN | E36: ADMINISTRACIÓN | F36: TOTAL
C38: RETRIBUCIONES AL PERSONAL | D38: 47674574.17 | E38: 7538106.952 | F38: 55212681.12
C40: MATERIALES Y SUMINISTROS | D40: 4943789.01 | E40: 356332.7941 | F40: 5300121.804
C42: ENERGIA Y FLUÍDOS | D42: 173357.3961 | E42: 5197483.887 | F42: 5370841.283
C44: SERVICIOS CONTRATADOS | D44: 95417102.41 | E44: 7591671.339 | F44: 103008773.7
C46: GASTOS VARIOS | D46: 577718.0681 | E46: 302635.0697 | F46: 880353.1377
C48: AMORTIZACIÓN | D48: 6006372.665 | E48: 1392097.168 | F48: 7398469.833
C52: TOTAL | D52: 154792913.7 | E52: 22378327.21 | F52: 177171240.9 | H52: 0.4470060936
B57: C O S T O D E E X P L O T A C I Ó N | H57: 396350840.6

Sheet C-PAY-101
D4: COBERTURAS, COSTOS E INGRESOS PROMEDIO
D6: P A Y S A N D Ú
C10: 1. COMPOSICIÓN DEL COSTO PROPIO POR CONEXIÓN | D10: OPERATIVOS | F10: ADMINISTRATIVO-COMERCIAL
D12: AGUA | E12: ALCANTARILLADO
D13: ($/conex.agua) | E13: ($/conex.desagüe) | F13: ($/conex.agua)
C15: RETRIBUCIONES AL PERSONAL | D15: =+'B-PAY-101'!D15/'C-PAY-101'!$D$32 -> 1098.014218 | E15: =+'B-PAY-101'!E15/'C-PAY-101'!$E$32 -> 364.253057 | F15: =+('B-PAY-101'!D38+'B-PAY-101'!E38)/D32 -> 1240.92961
C17: MATERIALES Y SUMINISTROS | D17: =+'B-PAY-101'!D17/'C-PAY-101'!$D$32 -> 1211.638405 | E17: =+'B-PAY-101'!E17/'C-PAY-101'!$E$32 -> 32.6362575 | F17: =+('B-PAY-101'!D40+'B-PAY-101'!E40)/'C-PAY-101'!D32 -> 119.1225991
C19: ENERGIA Y FLUÍDOS | D19: =+'B-PAY-101'!D19/'C-PAY-101'!$D$32 -> 688.6428669 | E19: =+'B-PAY-101'!E19/'C-PAY-101'!$E$32 -> 50.3054261 | F19: =+('B-PAY-101'!D42+'B-PAY-101'!E42)/'C-PAY-101'!D32 -> 120.712051
C21: SERVICIOS CONTRATADOS | D21: =+'B-PAY-101'!D21/'C-PAY-101'!$D$32 -> 545.8885549 | E21: =+'B-PAY-101'!E21/'C-PAY-101'!$E$32 -> 328.5083343 | F21: =+('B-PAY-101'!D44+'B-PAY-101'!E44)/'C-PAY-101'!D32 -> 2315.168088
C23: GASTOS VARIOS | D23: =+'B-PAY-101'!D23/'C-PAY-101'!$D$32 -> -116.4407187 | E23: =+'B-PAY-101'!E23/'C-PAY-101'!$E$32 -> -40.69055791 | F23: =+('B-PAY-101'!D46+'B-PAY-101'!E46)/'C-PAY-101'!D32 -> 19.78632903
C25: AMORTIZACIÓN | D25: =+'B-PAY-101'!D25/'C-PAY-101'!$D$32 -> 528.1824514 | E25: =+'B-PAY-101'!E25/'C-PAY-101'!$E$32 -> 759.9519544 | F25: =+('B-PAY-101'!D48+'B-PAY-101'!E48)/'C-PAY-101'!D32 -> 166.2839061
C29: TOTAL | D29: =SUM(D15:D25) -> 3955.925777 | E29: =SUM(E15:E25) -> 1494.964471 | F29: =SUM(F15:F25) -> 3982.002583
C32: 2.CONEXIONES (promedio anual) | D32: 44493 | E32: 28876
C35: 3.COBERTURAS COSTO/INGRESO
C37: 3.1 COSTO DE EXPLOTACIÓN/ INGRESO DE EXPLOT. | D37: =+'A-PAY-101'!F29/'A-PAY-101'!F12 -> 0.9064300581 | E37: =+'A-PAY-101'!G29/'A-PAY-101'!G12 -> 0.6140408313
C39: 3.3 TOTAL | D39: =+('A-PAY-101'!F29+'A-PAY-101'!F33+'A-PAY-101'!F37-'A-PAY-101'!F39)/('A-PAY-101'!F12+'A-PAY-101'!F32+'A-PAY-101'!F36) -> 0.9770161673 | E39: =+('A-PAY-101'!G29+'A-PAY-101'!G33+'A-PAY-101'!G37-'A-PAY-101'!G39)/('A-PAY-101'!G12+'A-PAY-101'!G32+'A-PAY-101'!G36) -> 0.6941355236
C42: 4.M3 ELEVADOS | D42: 11205710
C44: 5.M3 FACTURADOS | D44: 5370950
C47: 6. COSTO PROMEDIO
C49: 6.1 COSTO VARIABLE/ M3ELEVADOS | D49: =+'A-PAY-101'!F15/'C-PAY-101'!D42 -> 6.513357618
C51: 6.2 COSTO VARIABLE / M3FACTURADOS | D51: =+'A-PAY-101'!F15/'C-PAY-101'!D44 -> 13.58917819
C53: 6.3 COSTO EXPLOTACIÓN/M3FACT | D53: =+'A-PAY-101'!F29/'C-PAY-101'!D44 -> 79.27213657
C55: 6.4 TOTAL/M3FACT | D55: =+('A-PAY-101'!F29+'A-PAY-101'!F33+'A-PAY-101'!F37-'A-PAY-101'!F39)/'C-PAY-101'!D44 -> 89.51511101
C58: 7. INGRESOS PROMEDIO
C60: 7.1 VARIABLE/M3 FACT | D60: =+'A-PAY-101'!F7/'C-PAY-101'!D44 -> 45.3114911
C62: 7.2 FIJO/CONEXIONES | D62: =+('A-PAY-101'!F8/12)/'C-PAY-101'!D32 -> 341.6303199
C64: 7.3 INGRESO EXPLOTACIÓN/M3FACT | D64: =+'A-PAY-101'!F12/'C-PAY-101'!D44 -> 87.45532638
C66: 7.4 TOTAL/M3FACT | D66: =+('A-PAY-101'!F12+'A-PAY-101'!F32+'A-PAY-101'!F36)/'C-PAY-101'!D44 -> 91.6209107

Sheet A-RN-102
B2: RÍO NEGRO | C2: ESTADO DE RENDIMIENTO ECONÓMICO (a valores históricos) | I2: PERÍODO ENERO-DICIEMBRE-2024
C4: AGUA POTABLE
B5: CONCEPTOS | C5: USINA | D5: PERFORACIÓN | E5: MIXTO | F5: SUB-TOTAL | G5: ALCANTARILLADO | H5: OTROS INGRESOS | I5: TOTAL
B6: INGRESOS
B7: Ingresos Variables | C7: 64217612.81 | D7: 46596973.47 | E7: 4961564.41 | F7: 115776150.7 | I7: 115776150.7
B8: Ingresos Fijos | C8: 45877498.35 | D8: 36750252.52 | E8: 4718764.08 | F8: 87346514.95 | I8: 87346514.95
B9: INGRESOS DE EXPLOTACIÓN | C9: 110095111.2 | D9: 83347225.99 | E9: 9680328.49 | F9: 203122665.6 | I9: 203122665.6
B10: Ingresos Alcantarillado | G10: 106291838.5 | I10: 106291838.5
B11: Otros Ingresos | C11: 10482133.92 | D11: 7655410.79 | E11: 545317.3 | F11: 18682862.01 | G11: 1496720.19 | I11: 20179582.2
B12: TOTAL ING. DE EXPLOTACIÓN | C12: 120577245.1 | D12: 91002636.78 | E12: 10225645.79 | F12: 221805527.7 | G12: 107788558.7 | I12: 329594086.4
B13: COSTOS DE EXPLOTACIÓN
B14: OPERATIVO
B15: Costo Operativo Var | C15: 26675260.45 | D15: 7986644.19 | E15: 355757.89 | F15: 35017662.53 | G15: 6420461.8 | I15: 41438124.33
B16: Costo Operativo Fijo | C16: 56104932.03 | D16: 37589824.58 | E16: 1248803.24 | F16: 94943559.85 | G16: 35299896.72 | I16: 130243456.6
B17: TOTAL OPERATIVO | C17: 82780192.48 | D17: 45576468.77 | E17: 1604561.13 | F17: 129961222.4 | G17: 41720358.52 | I17: 171681580.9
B18: NO OPERATIVO
B19: COMERCIALIZACIÓN
B20: Comercial Propios | C20: 32866206.32 | D20: 26250620.66 | E20: 3483260.99 | F20: 62600087.97 | G20: 19872859.75 | I20: 82472947.72
B21: Comercial Asignados | C21: 11683360.5 | D21: 8817721.96 | E21: 990816.3 | F21: 21491898.76 | G21: 10444197.76 | I21: 31936096.52
B22: TOTAL COMERCIALIZACIÓN | C22: 44549566.82 | D22: 35068342.62 | E22: 4474077.29 | F22: 84091986.73 | G22: 30317057.51 | I22: 114409044.2
B23: ADMINISTRACIÓN
B24: Administración Propios | C24: 5292809.87 | D24: 4227428.83 | E24: 560948.18 | F24: 10081186.88 | G24: 3200347.06 | I24: 13281533.94
B25: Administ. Asignados | C25: 12763207.45 | D25: 9632709.24 | E25: 1082393.56 | F25: 23478310.25 | G25: 11409513.81 | I25: 34887824.06
B26: Gastos Fiscales | C26: 5328493.33 | D26: 4021546.04 | E26: 451886.98 | F26: 9801926.35 | G26: 4763341.67 | I26: 14565268.02
B27: TOTAL ADMINISTRACIÓN | C27: 23384510.65 | D27: 17881684.11 | E27: 2095228.72 | F27: 43361423.48 | G27: 19373202.54 | I27: 62734626.02
B28: TOTAL NO OPERATIVO | C28: 67934077.47 | D28: 52950026.73 | E28: 6569306.01 | F28: 127453410.2 | G28: 49690260.05 | I28: 177143670.3
B29: COSTO DE EXPLOTACIÓN | C29: 150714269.9 | D29: 98526495.5 | E29: 8173867.14 | F29: 257414632.6 | G29: 91410618.57 | I29: 348825251.2
B30: RESULTADO DE EXPLOTACIÓN | C30: -30137024.87 | D30: -7523858.72 | E30: 2051778.65 | F30: -35609104.94 | G30: 16377940.17 | I30: -19231164.77
B31: DIVERSOS Y EXTRAORDINARIOS
B32: Ingresos Div. y Extr | C32: 1529907 | D32: 1154658.45 | E32: 129744.81 | F32: 2814310.26 | G32: 1981515.38 | I32: 4795825.64
B33: Gtos. Div. y Extraor | C33: 162927.57 | D33: 122965.52 | E33: 13817.22 | F33: 299710.31 | G33: 145647.1 | I33: 445357.41
B34: RESULTADOS DIV. Y EXTRAORDINARIOS | C34: 1366979.43 | D34: 1031692.93 | E34: 115927.59 | F34: 2514599.95 | G34: 1835868.28 | I34: 4350468.23
B35: FINANCIEROS
B36: Ingresos Financieros | C36: 4213306.64 | D36: 3179887.01 | E36: 357312.7 | F36: 7750506.35 | G36: 3766434.12 | I36: 11516940.47
B37: Gastos Financieros | C37: 17723845.19 | D37: 13376625.54 | E37: 1503084.35 | F37: 32603555.08 | G37: 15844015.47 | I37: 48447570.55
B38: RESULTADO FINANCIERO | C38: -13510538.55 | D38: -10196738.53 | E38: -1145771.65 | F38: -24853048.73 | G38: -12077581.35 | I38: -36930630.08
B39: I.R.A.E. | C39: 3765938.55 | D39: 2842247.21 | E39: 319373.31 | F39: 6927559.07 | G39: 3366514.88 | I39: 10294073.95
B40: RESULTADO NETO | C40: -38514645.44 | D40: -13846657.11 | E40: 1341307.9 | F40: -51019994.65 | G40: 9502741.98 | I40: -41517252.67

Sheet B-RN-102
B4: RÍO NEGRO
D6: C O S T O S T O T A L E S
C10: C O N C E P T O | E10: C O S T O S O P E R A T I V O S
D13: AGUA | E13: ALCANTARILLADO | F13: TOTAL
C15: RETRIBUCIONES AL PERSONAL | D15: 47016905.43 | E15: 9269849.219 | F15: 56286754.65
C17: MATERIALES Y SUMINISTROS | D17: 16249159.58 | E17: 749432.969 | F17: 16998592.55
C19: ENERGIA Y FLUÍDOS | D19: 17141201.13 | E19: 3401801.618 | F19: 20543002.74
C21: SERVICIOS CONTRATADOS | D21: 16900061.81 | E21: 15598506.17 | F21: 32498567.99
C23: GASTOS VARIOS | D23: 8444559.22 | E23: 77194.42935 | F23: 8521753.649
C25: AMORTIZACIÓN | D25: 24209335.21 | E25: 12623574.11 | F25: 36832909.32
C28: TOTAL | D28: 129961222.4 | E28: 41720358.52 | F28: 171681580.9 | H28: 0.6419537412
C33: C O N C E P T O | E33: C O S T O D E A D M I N I S T R A T I V O - C O M E R C I A L
D36: COMERCIALIZACIÓN | E36: ADMINISTRACIÓN | F36: TOTAL
C38: RETRIBUCIONES AL PERSONAL | D38: 25143790.36 | E38: 5855345.896 | F38: 30999136.25
C40: MATERIALES Y SUMINISTROS | D40: 1940941.928 | E40: 305138.0949 | F40: 2246080.023
C42: ENERGIA Y FLUÍDOS | D42: 121608.3195 | E42: 2805662.484 | F42: 2927270.804
C44: SERVICIOS CONTRATADOS | D44: 52071697.89 | E44: 3841202.181 | F44: 55912900.07
C46: GASTOS VARIOS | D46: 419416.4497 | E46: 170741.1281 | F46: 590157.5778
C48: AMORTIZACIÓN | D48: 2775492.768 | E48: 303444.1561 | F48: 3078936.924
C52: TOTAL | D52: 82472947.72 | E52: 13281533.94 | F52: 95754481.66 | H52: 0.3580462588
B57: C O S T O D E E X P L O T A C I Ó N | H57: 267436062.6

Sheet C-RN-102
D4: COBERTURAS, COSTOS E INGRESOS PROMEDIO
D6: R Í O N E G R O
C10: 1. COMPOSICIÓN DEL COSTO PROPIO POR CONEXIÓN | D10: OPERATIVOS | F10: ADMINISTRATIVO-COMERCIAL
D12: AGUA | E12: ALCANTARILLADO
D13: ($/conex.agua) | E13: ($/conex.desagüe) | F13: ($/conex.agua)
C15: RETRIBUCIONES AL PERSONAL | D15: =+'B-RN-102'!D15/'C-RN-102'!$D$32 -> 2178.322157 | E15: =+'B-RN-102'!E15/'C-RN-102'!$E$32 -> 676.4338309 | F15: =+('B-RN-102'!D38+'B-RN-102'!E38)/'C-RN-102'!$D$32 -> 1436.209055
C17: MATERIALES Y SUMINISTROS | D17: =+'B-RN-102'!D17/'C-RN-102'!$D$32 -> 752.8335608 | E17: =+'B-RN-102'!E17/'C-RN-102'!$E$32 -> 54.68716936 | F17: =+('B-RN-102'!D40+'B-RN-102'!E40)/'C-RN-102'!$D$32 -> 104.0622694
C19: ENERGIA Y FLUÍDOS | D19: =+'B-RN-102'!D19/'C-RN-102'!$D$32 -> 794.1623946 | E19: =+'B-RN-102'!E19/'C-RN-102'!$E$32 -> 248.2342103 | F19: =+('B-RN-102'!D42+'B-RN-102'!E42)/'C-RN-102'!$D$32 -> 135.6222574
C21: SERVICIOS CONTRATADOS | D21: =+'B-RN-102'!D21/'C-RN-102'!$D$32 -> 782.990262 | E21: =+'B-RN-102'!E21/'C-RN-102'!$E$32 -> 1138.244759 | F21: =+('B-RN-102'!D44+'B-RN-102'!E44)/'C-RN-102'!$D$32 -> 2590.479062
C23: GASTOS VARIOS | D23: =+'B-RN-102'!D23/'C-RN-102'!$D$32 -> 391.2416243 | E23: =+'B-RN-102'!E23/'C-RN-102'!$E$32 -> 5.632985212 | F23: =+('B-RN-102'!D46+'B-RN-102'!E46)/'C-RN-102'!$D$32 -> 27.34236369
C25: AMORTIZACIÓN | D25: =+'B-RN-102'!D25/'C-RN-102'!$D$32 -> 1121.633396 | E25: =+'B-RN-102'!E25/'C-RN-102'!$E$32 -> 921.1598155 | F25: =+('B-RN-102'!D48+'B-RN-102'!E48)/'C-RN-102'!$D$32 -> 142.6490421
C29: TOTAL | D29: =SUM(D15:D25) -> 6021.183394 | E29: =SUM(E15:E25) -> 3044.39277 | F29: =SUM(F15:F25) -> 4436.36405
C32: 2.CONEXIONES (promedio anual) | D32: 21584 | E32: 13704
C35: 3.COBERTURAS COSTO/INGRESO
C37: 3.1 COSTO DE EXPLOTACIÓN/ INGRESO DE EXPLOT. | D37: =+'A-RN-102'!F29/'A-RN-102'!F12 -> 1.160542009 | E37: =+'A-RN-102'!G29/'A-RN-102'!G12 -> 0.8480549294
C39: 3.3 TOTAL | D39: =+('A-RN-102'!F29+'A-RN-102'!F33+'A-RN-102'!F37-'A-RN-102'!F39)/('A-RN-102'!F12+'A-RN-102'!F32+'A-RN-102'!F36) -> 1.219563279 | E39: =+('A-RN-102'!G29+'A-RN-102'!G33+'A-RN-102'!G37-'A-RN-102'!G39)/('A-RN-102'!G12+'A-RN-102'!G32+'A-RN-102'!G36) -> 0.9163023231
C42: 4.M3 ELEVADOS | D42: 4116630
C44: 5.M3 FACTURADOS | D44: 2425330
C47: 6. COSTO PROMEDIO
C49: 6.1 COSTO VARIABLE/ M3ELEVADOS | D49: =+'A-RN-102'!F15/'C-RN-102'!D42 -> 8.50639055
C51: 6.2 COSTO VARIABLE / M3FACTURADOS | D51: =+'A-RN-102'!F15/'C-RN-102'!D44 -> 14.43830841
C53: 6.3 COSTO EXPLOTACIÓN/M3FACT | D53: =+'A-RN-102'!F29/'C-RN-102'!D44 -> 106.1359207
C55: 6.4 TOTAL/M3FACT | D55: =+('A-RN-102'!F29+'A-RN-102'!F33+'A-RN-102'!F37-'A-RN-102'!F39)/('C-RN-102'!D44) -> 116.8460947
C58: 7. INGRESOS PROMEDIO
C60: 7.1 VARIABLE/M3 FACT | D60: =+'A-RN-102'!F7/'C-RN-102'!D44 -> 47.73624649
C62: 7.2 FIJO/CONEXIONES | D62: =+('A-RN-102'!F8/12)/'C-RN-102'!D32 -> 337.2348149
C64: 7.3 INGRESO EXPLOTACIÓN/M3FACT | D64: =+'A-RN-102'!F12/'C-RN-102'!D44 -> 91.45375172
C66: 7.4 TOTAL/M3FACT | D66: =+('A-RN-102'!F12+'A-RN-102'!F32+'A-RN-102'!F36)/'C-RN-102'!D44 -> 95.80978434

Sheet A-SAL-103
B2: SALTO | C2: ESTADO DE RENDIMIENTO ECONÓMICO (a valores históricos) | I2: PERÍODO ENERO-DICIEMBRE-2024
C4: AGUA POTABLE
B5: CONCEPTOS | C5: USINA | D5: PERFORACIÓN | E5: MIXTO | F5: SUB-TOTAL | G5: ALCANTARILLADO | H5: OTROS INGRESOS | I5: TOTAL
B6: INGRESOS
B7: Ingresos Variables | E7: 218512461.5 | F7: 218512461.5 | I7: 218512461.5
B8: Ingresos Fijos | E8: 170468080.3 | F8: 170468080.3 | I8: 170468080.3
B9: INGRESOS DE EXPLOTACIÓN | E9: 388980541.8 | F9: 388980541.8 | I9: 388980541.8
B10: Ingresos Alcantarillado | G10: 278755600.5 | I10: 278755600.5
B11: Otros Ingresos | E11: 51533340.86 | F11: 51533340.86 | G11: 4927444.45 | I11: 56460785.31
B12: TOTAL ING. DE EXPLOTACIÓN | E12: 440513882.6 | F12: 440513882.6 | G12: 283683044.9 | I12: 724196927.5
B13: COSTOS DE EXPLOTACIÓN
B14: OPERATIVO
B15: Costo Operativo Var | E15: 57413591.07 | F15: 57413591.07 | G15: 10105621.04 | I15: 67519212.11
B16: Costo Operativo Fijo | E16: 93988414.74 | F16: 93988414.74 | G16: 155699834.6 | I16: 249688249.3
B17: TOTAL OPERATIVO | E17: 151402005.8 | F17: 151402005.8 | G17: 165805455.6 | I17: 317207461.4
B18: NO OPERATIVO
B19: COMERCIALIZACIÓN
B20: Comercial Propios | E20: 101854146.3 | F20: 101854146.3 | G20: 41433854.96 | I20: 143288001.3
B21: Comercial Asignados | E21: 42683696.19 | F21: 42683696.19 | G21: 27487535.31 | I21: 70171231.5
B22: TOTAL COMERCIALIZACIÓN | E22: 144537842.5 | F22: 144537842.5 | G22: 68921390.27 | I22: 213459232.8
B23: ADMINISTRACIÓN
B24: Administración Propios | E24: 14930883.45 | F24: 14930883.45 | G24: 6073823.02 | I24: 21004706.47
B25: Administ. Asignados | E25: 46628781.82 | F25: 46628781.82 | G25: 30028099.79 | I25: 76656881.61
B26: Gastos Fiscales | E26: 19466983.89 | F26: 19466983.89 | G26: 12536388.69 | I26: 32003372.58
B27: TOTAL ADMINISTRACIÓN | E27: 81026649.16 | F27: 81026649.16 | G27: 48638311.5 | I27: 129664960.7
B28: TOTAL NO OPERATIVO | E28: 225564491.7 | F28: 225564491.7 | G28: 117559701.8 | I28: 343124193.4
B29: COSTO DE EXPLOTACIÓN | E29: 376966497.5 | F29: 376966497.5 | G29: 283365157.4 | I29: 660331654.9
B30: RESULTADO DE EXPLOTACIÓN | E30: 63547385.14 | F30: 63547385.14 | G30: 317887.55 | I30: 63865272.69
B31: DIVERSOS Y EXTRAORDINARIOS
B32: Ingresos Div. y Extr | E32: 5589324.41 | F32: 5589324.41 | G32: 5215047.27 | I32: 10804371.68
B33: Gtos. Div. y Extraor | E33: 595235.6 | F33: 595235.6 | G33: 383321.03 | I33: 978556.63
B34: RESULTADOS DIV. Y EXTRAORDINARIOS | E34: 4994088.81 | F34: 4994088.81 | G34: 4831726.24 | I34: 9825815.05
B35: FINANCIEROS
B36: Ingresos Financieros | E36: 15392788.78 | F36: 15392788.78 | G36: 9912680.09 | I36: 25305468.87
B37: Gastos Financieros | E37: 64751851.62 | F37: 64751851.62 | G37: 41699031.86 | I37: 106450883.5
B38: RESULTADO FINANCIERO | E38: -49359062.84 | F38: -49359062.84 | G38: -31786351.77 | I38: -81145414.61
B39: I.R.A.E. | E39: 13758385.45 | F39: 13758385.45 | G39: 8860153.63 | I39: 22618539.08
B40: RESULTADO NETO | E40: 32940796.56 | F40: 32940796.56 | G40: -17776584.35 | I40: 15164212.21

Sheet B-SAL-103
B4: SALTO
E6: C O S T O S T O T A L E S
C10: C O N C E P T O | E10: C O S T O S O P E R A T I V O S
D13: AGUA | E13: ALCANTARILLADO | F13: TOTAL
C15: RETRIBUCIONES AL PERSONAL | D15: 40365077.84 | E15: 10278153.31 | F15: 50643231.16
C17: MATERIALES Y SUMINISTROS | D17: 28713470.42 | E17: 7999014.996 | F17: 36712485.42
C19: ENERGIA Y FLUÍDOS | D19: 23622495.58 | E19: 151460.9618 | F19: 23773956.54
C21: SERVICIOS CONTRATADOS | D21: 26247298.2 | E21: 105845129 | F21: 132092427.2
C23: GASTOS VARIOS | D23: 10299687.75 | E23: 821649.5966 | F23: 11121337.35
C25: AMORTIZACIÓN | D25: 22153976.03 | E25: 40710047.75 | F25: 62864023.78
C28: TOTAL | D28: 151402005.8 | E28: 165805455.6 | F28: 317207461.4 | H28: 0.6587899273
C33: C O N C E P T O | E33: C O S T O D E A D M I N I S T R A T I V O - C O M E R C I A L
D36: COMERCIALIZACIÓN | E36: ADMINISTRACIÓN | F36: TOTAL
C38: RETRIBUCIONES AL PERSONAL | D38: 36198960.37 | E38: 6427222.184 | F38: 42626182.56
C40: MATERIALES Y SUMINISTROS | D40: 5163860.209 | E40: 1303073.891 | F40: 6466934.1
C42: ENERGIA Y FLUÍDOS | D42: 160675.356 | E42: 4435998.606 | F42: 4596673.962
C44: SERVICIOS CONTRATADOS | D44: 93128374.78 | E44: 7393404.548 | F44: 100521779.3
C46: GASTOS VARIOS | D46: 463633.4917 | E46: 223485.8885 | F46: 687119.3802
C48: AMORTIZACIÓN | D48: 8172497.06 | E48: 1221521.352 | F48: 9394018.412
C52: TOTAL | D52: 143288001.3 | E52: 21004706.47 | F52: 164292707.7 | H52: 0.3412100727
B57: C O S T O D E E X P L O T A C I Ó N | H57: 481500169.2

Sheet C-SAL-103
D4: COBERTURAS, COSTOS E INGRESOS PROMEDIO
D6: SALTO
C10: 1. COMPOSICIÓN DEL COSTO PROPIO POR CONEXIÓN | D10: OPERATIVOS | F10: ADMINISTRATIVO-COMERCIAL
D12: AGUA | E12: ALCANTARILLADO
D13: ($/conex.agua) | E13: ($/conex.desagüe) | F13: ($/conex.agua)
C15: RETRIBUCIONES AL PERSONAL | D15: =+'B-SAL-103'!D15/'C-SAL-103'!$D$32 -> 946.5815689 | E15: =+'B-SAL-103'!E15/'C-SAL-103'!$E$32 -> 296.2516087 | F15: =+('B-SAL-103'!D38+'B-SAL-103'!E38)/'C-SAL-103'!$D$32 -> 999.6056224
C17: MATERIALES Y SUMINISTROS | D17: =+'B-SAL-103'!D17/'C-SAL-103'!$D$32 -> 673.3454593 | E17: =+'B-SAL-103'!E17/'C-SAL-103'!$E$32 -> 230.5590303 | F17: =+('B-SAL-103'!D40+'B-SAL-103'!E40)/'C-SAL-103'!$D$32 -> 151.6528879
C19: ENERGIA Y FLUÍDOS | D19: =+'B-SAL-103'!D19/'C-SAL-103'!$D$32 -> 553.9595145 | E19: =+'B-SAL-103'!E19/'C-SAL-103'!$E$32 -> 4.365624079 | F19: =+('B-SAL-103'!D42+'B-SAL-103'!E42)/'C-SAL-103'!$D$32 -> 107.7943382
C21: SERVICIOS CONTRATADOS | D21: =+'B-SAL-103'!D21/'C-SAL-103'!$D$32 -> 615.5124686 | E21: =+'B-SAL-103'!E21/'C-SAL-103'!$E$32 -> 3050.819421 | F21: =+('B-SAL-103'!D44+'B-SAL-103'!E44)/'C-SAL-103'!$D$32 -> 2357.286761
C23: GASTOS VARIOS | D23: =+'B-SAL-103'!D23/'C-SAL-103'!$D$32 -> 241.5329069 | E23: =+'B-SAL-103'!E23/'C-SAL-103'!$E$32 -> 23.68275773 | F23: =+('B-SAL-103'!D46+'B-SAL-103'!E46)/'C-SAL-103'!$D$32 -> 16.11329832
C25: AMORTIZACIÓN | D25: =+'B-SAL-103'!D25/'C-SAL-103'!$D$32 -> 519.5219854 | E25: =+'B-SAL-103'!E25/'C-SAL-103'!$E$32 -> 1173.403117 | F25: =+('B-SAL-103'!D48+'B-SAL-103'!E48)/'C-SAL-103'!$D$32 -> 220.2945011
C29: TOTAL | D29: =SUM(D15:D25) -> 3550.453904 | E29: =SUM(E15:E25) -> 4779.081559 | F29: =SUM(F15:F25) -> 3852.747408
C32: 2.CONEXIONES (promedio anual) | D32: 42643 | E32: 34694
C35: 3.COBERTURAS COSTO/INGRESO
C37: 3.1 COSTO DE EXPLOTACIÓN/ INGRESO DE EXPLOT. | D37: =+'A-SAL-103'!F29/'A-SAL-103'!F12 -> 0.8557426051 | E37: =+'A-SAL-103'!G29/'A-SAL-103'!G12 -> 0.998879427
C39: 3.3 TOTAL | D39: =+('A-SAL-103'!F29+'A-SAL-103'!F33+'A-SAL-103'!F37-'A-SAL-103'!F39)/('A-SAL-103'!F12+'A-SAL-103'!F32+'A-SAL-103'!F36) -> 0.9286217067 | E39: =+('A-SAL-103'!G29+'A-SAL-103'!G33+'A-SAL-103'!G37-'A-SAL-103'!G39)/('A-SAL-103'!G12+'A-SAL-103'!G32+'A-SAL-103'!G36) -> 1.059491109
C42: 4.M3 ELEVADOS | D42: 10851420
C44: 5.M3 FACTURADOS | D44: 5156920
C47: 6. COSTO PROMEDIO
C49: 6.1 COSTO VARIABLE/ M3ELEVADOS | D49: =+'A-SAL-103'!F15/'C-SAL-103'!D42 -> 5.290882766
C51: 6.2 COSTO VARIABLE / M3FACTURADOS | D51: =+'A-SAL-103'!F15/'C-SAL-103'!D44 -> 11.1333104
C53: 6.3 COSTO EXPLOTACIÓN/M3FACT | D53: =+'A-SAL-103'!F29/'C-SAL-103'!D44 -> 73.09915559
C55: 6.4 TOTAL/M3FACT | D55: =+('A-SAL-103'!F29+'A-SAL-103'!F33+'A-SAL-103'!F37-'A-SAL-103'!F39)/'C-SAL-103'!D44 -> 83.10293726
C58: 7. INGRESOS PROMEDIO
C60: 7.1 VARIABLE/M3 FACT | D60: =+'A-SAL-103'!F7/'C-SAL-103'!D44 -> 42.37266846
C62: 7.2 FIJO/CONEXIONES | D62: =+('A-SAL-103'!F8/12)/'C-SAL-103'!D32 -> 333.1302525
C64: 7.3 INGRESO EXPLOTACIÓN/M3FACT | D64: =+'A-SAL-103'!F12/'C-SAL-103'!D44 -> 85.42189575
C66: 7.4 TOTAL/M3FACT | D66: =+('A-SAL-103'!F12+'A-SAL-103'!F32+'A-SAL-103'!F36)/('C-SAL-103'!D44) -> 89.49062537

Sheet A-ART-104
B2: ARTIGAS | C2: ESTADO DE RENDIMIENTO ECONÓMICO (a valores históricos) | I2: PERÍODO ENERO-DICIEMBRE-2024
C4: AGUA POTABLE
B5: CONCEPTOS | C5: USINA | D5: PERFORACIÓN | E5: MIXTO | F5: SUB-TOTAL | G5: ALCANTARILLADO | H5: OTROS INGRESOS | I5: TOTAL
B6: INGRESOS
B7: Ingresos Variables | D7: 11157517.76 | E7: 129450654.5 | F7: 140608172.2 | I7: 140608172.2
B8: Ingresos Fijos | D8: 8794498.1 | E8: 102900144.3 | F8: 111694642.4 | I8: 111694642.4
B9: INGRESOS DE EXPLOTACIÓN | D9: 19952015.86 | E9: 232350798.8 | F9: 252302814.6 | I9: 252302814.6
B10: Ingresos Alcantarillado | G10: 120714389.9 | I10: 120714389.9
B11: Otros Ingresos | D11: 1923085.29 | E11: 24307824.46 | F11: 26230909.75 | G11: 1265625.18 | I11: 27496534.93
B12: TOTAL ING. DE EXPLOTACIÓN | D12: 21875101.15 | E12: 256658623.2 | F12: 278533724.4 | G12: 121980015 | I12: 400513739.4
B13: COSTOS DE EXPLOTACIÓN
B14: OPERATIVO
B15: Costo Operativo Var | D15: 2693906.32 | E15: 48876784.17 | F15: 51570690.49 | G15: 14686915.38 | I15: 66257605.87
B16: Costo Operativo Fijo | D16: 21886554.69 | E16: 92831565.33 | F16: 114718120 | G16: 90968090.28 | I16: 205686210.3
B17: TOTAL OPERATIVO | D17: 24580461.01 | E17: 141708349.5 | F17: 166288810.5 | G17: 105655005.7 | I17: 271943816.2
B18: NO OPERATIVO
B19: COMERCIALIZACIÓN
B20: Comercial Propios | D20: 7062607.36 | E20: 80085138.2 | F20: 87147745.56 | G20: 23454496.45 | I20: 110602242
B21: Comercial Asignados | D21: 2119592.96 | E21: 24868997.62 | F21: 26988590.58 | G21: 11819282.41 | I21: 38807872.99
B22: TOTAL COMERCIALIZACIÓN | D22: 9182200.32 | E22: 104954135.8 | F22: 114136336.1 | G22: 35273778.86 | I22: 149410115
B23: ADMINISTRACIÓN
B24: Administración Propios | D24: 1173076.91 | E24: 13301890.09 | F24: 14474967 | G24: 3895718.29 | I24: 18370685.29
B25: Administ. Asignados | D25: 2315498.89 | E25: 27167540.95 | F25: 29483039.84 | G25: 12911692.01 | I25: 42394731.85
B26: Gastos Fiscales | D26: 966694.25 | E26: 11342138.07 | F26: 12308832.32 | G26: 5390483.89 | I26: 17699316.21
B27: TOTAL ADMINISTRACIÓN | D27: 4455270.05 | E27: 51811569.11 | F27: 56266839.16 | G27: 22197894.19 | I27: 78464733.35
B28: TOTAL NO OPERATIVO | D28: 13637470.37 | E28: 156765704.9 | F28: 170403175.3 | G28: 57471673.05 | I28: 227874848.3
B29: COSTO DE EXPLOTACIÓN | D29: 38217931.38 | E29: 298474054.4 | F29: 336691985.8 | G29: 163126678.7 | I29: 499818664.5
B30: RESULTADO DE EXPLOTACIÓN | D30: -16342830.23 | E30: -41815431.2 | F30: -58158261.43 | G30: -41146663.67 | I30: -99304925.1
B31: DIVERSOS Y EXTRAORDINARIOS
B32: Ingresos Div. y Extr | D32: 277555.19 | E32: 3256533.79 | F32: 3534088.98 | G32: 2242402.11 | I32: 5776491.09
B33: Gtos. Div. y Extraor | D33: 29558.3 | E33: 346804.89 | F33: 376363.19 | G33: 164823.06 | I33: 541186.25
B34: RESULTADOS DIV. Y EXTRAORDINARIOS | D34: 247996.89 | E34: 2909728.9 | F34: 3157725.79 | G34: 2077579.05 | I34: 5235304.84
B35: FINANCIEROS
B36: Ingresos Financieros | D36: 764377.28 | E36: 8968371.09 | F36: 9732748.37 | G36: 4262323.34 | I36: 13995071.71
B37: Gastos Financieros | D37: 3215456.63 | E37: 37726668.15 | F37: 40942124.78 | G37: 17930040.65 | I37: 58872165.43
B38: RESULTADO FINANCIERO | D38: -2451079.35 | E38: -28758297.06 | F38: -31209376.41 | G38: -13667717.31 | I38: -44877093.72
B39: I.R.A.E. | D39: 683215.86 | E39: 8016111.18 | F39: 8699327.04 | G39: 3809750.68 | I39: 12509077.72
B40: RESULTADO NETO | D40: -17862696.83 | E40: -59647888.18 | F40: -77510585.01 | G40: -48927051.25 | I40: -126437636.3

Sheet B-ART-104
B4: ARTIGAS
E6: C O S T O S T O T A L E S
C10: C O N C E P T O | E10: C O S T O S O P E R A T I V O S
D13: AGUA | E13: ALCANTARILLADO | F13: TOTAL
C15: RETRIBUCIONES AL PERSONAL | D15: 61278934.08 | E15: 7349195.182 | F15: 68628129.27
C17: MATERIALES Y SUMINISTROS | D17: 14733225.83 | E17: 689324.6722 | F17: 15422550.5
C19: ENERGIA Y FLUÍDOS | D19: 29727837.29 | E19: 14250803.69 | F19: 43978640.97
C21: SERVICIOS CONTRATADOS | D21: 35013153.11 | E21: 65859563.22 | F21: 100872716.3
C23: GASTOS VARIOS | D23: 8664882.45 | E23: -654189.7086 | F23: 8010692.741
C25: AMORTIZACIÓN | D25: 16870777.75 | E25: 18160308.62 | F25: 35031086.37
C28: TOTAL | D28: 166288810.5 | E28: 105655005.7 | F28: 271943816.2 | H28: 0.6783049613
C33: C O N C E P T O | E33: C O S T O D E A D M I N I S T R A T I V O - C O M E R C I A L
D36: COMERCIALIZACIÓN | E36: ADMINISTRACIÓN | F36: TOTAL
C38: RETRIBUCIONES AL PERSONAL | D38: 30445302.01 | E38: 5000878.722 | F38: 35446180.74
C40: MATERIALES Y SUMINISTROS | D40: 2342586.509 | E40: 621136.5006 | F40: 2963723.009
C42: ENERGIA Y FLUÍDOS | D42: 478845.333 | E42: 4571066.524 | F42: 5049911.857
C44: SERVICIOS CONTRATADOS | D44: 73681613.99 | E44: 7668351.846 | F44: 81349965.84
C46: GASTOS VARIOS | D46: 460285.9123 | E46: 76935.64231 | F46: 537221.5546
C48: AMORTIZACIÓN | D48: 3193608.246 | E48: 432316.0552 | F48: 3625924.301
C52: TOTAL | D52: 110602242 | E52: 18370685.29 | F52: 128972927.3 | H52: 0.3216950387
B57: C O S T O D E E X P L O T A C I Ó N | H57: 400916743.5

Sheet C-ART-104
D4: COBERTURAS, COSTOS E INGRESOS PROMEDIO
D6: A R T I G A S
C10: 1. COMPOSICIÓN DEL COSTO PROPIO POR CONEXIÓN | D10: OPERATIVOS | F10: ADMINISTRATIVO-COMERCIAL
D12: AGUA | E12: ALCANTARILLADO
D13: ($/conex.agua) | E13: ($/conex.desagüe) | F13: ($/conex.agua)
C15: RETRIBUCIONES AL PERSONAL | D15: =+'B-ART-104'!D15/'C-ART-104'!$D$32 -> 2122.287667 | E15: =+'B-ART-104'!E15/'C-ART-104'!$E$32 -> 472.8603257 | F15: =+('B-ART-104'!D38+'B-ART-104'!E38)/'C-ART-104'!$D$32 -> 1227.615874
C17: MATERIALES Y SUMINISTROS | D17: =+'B-ART-104'!D17/'C-ART-104'!$D$32 -> 510.2592585 | E17: =+'B-ART-104'!E17/'C-ART-104'!$E$32 -> 44.35237886 | F17: =+('B-ART-104'!D40+'B-ART-104'!E40)/'C-ART-104'!$D$32 -> 102.6433126
C19: ENERGIA Y FLUÍDOS | D19: =+'B-ART-104'!D19/'C-ART-104'!$D$32 -> 1029.571147 | E19: =+'B-ART-104'!E19/'C-ART-104'!$E$32 -> 916.9221262 | F19: =+('B-ART-104'!D42+'B-ART-104'!E42)/'C-ART-104'!$D$32 -> 174.8947793
C21: SERVICIOS CONTRATADOS | D21: =+'B-ART-104'!D21/'C-ART-104'!$D$32 -> 1212.618726 | E21: =+'B-ART-104'!E21/'C-ART-104'!$E$32 -> 4237.521762 | F21: =+('B-ART-104'!D44+'B-ART-104'!E44)/'C-ART-104'!$D$32 -> 2817.412407
C23: GASTOS VARIOS | D23: =+'B-ART-104'!D23/'C-ART-104'!$D$32 -> 300.0929019 | E23: =+'B-ART-104'!E23/'C-ART-104'!$E$32 -> -42.09173263 | F23: =+('B-ART-104'!D46+'B-ART-104'!E46)/'C-ART-104'!$D$32 -> 18.60571984
C25: AMORTIZACIÓN | D25: =+'B-ART-104'!D25/'C-ART-104'!$D$32 -> 584.2895944 | E25: =+'B-ART-104'!E25/'C-ART-104'!$E$32 -> 1168.466646 | F25: =+('B-ART-104'!D48+'B-ART-104'!E48)/'C-ART-104'!$D$32 -> 125.577485
C29: TOTAL | D29: =SUM(D15:D25) -> 5759.119295 | E29: =SUM(E15:E25) -> 6798.031506 | F29: =SUM(F15:F25) -> 4466.749577
C32: 2.CONEXIONES (promedio anual) | D32: 28874 | E32: 15542
C35: 3.COBERTURAS COSTO/INGRESO
C37: 3.1 COSTO DE EXPLOTACIÓN/ INGRESO DE EXPLOT. | D37: =+'A-ART-104'!F29/'A-ART-104'!F12 -> 1.208801507 | E37: =+'A-ART-104'!G29/'A-ART-104'!G12 -> 1.337322992
C39: 3.3 TOTAL | D39: =+('A-ART-104'!F29+'A-ART-104'!F33+'A-ART-104'!F37-'A-ART-104'!F39)/('A-ART-104'!F12+'A-ART-104'!F32+'A-ART-104'!F36) -> 1.265628635 | E39: =+('A-ART-104'!G29+'A-ART-104'!G33+'A-ART-104'!G37-'A-ART-104'!G39)/('A-ART-104'!G12+'A-ART-104'!G32+'A-ART-104'!G36) -> 1.380800483
C42: 4.M3 ELEVADOS | D42: 8539110
C44: 5.M3 FACTURADOS | D44: 3460280
C47: 6. COSTO PROMEDIO
C49: 6.1 COSTO VARIABLE/ M3ELEVADOS | D49: =+'A-ART-104'!F15/'C-ART-104'!D42 -> 6.039351934
C51: 6.2 COSTO VARIABLE / M3FACTURADOS | D51: =+'A-ART-104'!F15/'C-ART-104'!D44 -> 14.90361777
C53: 6.3 COSTO EXPLOTACIÓN/M3FACT | D53: =+'A-ART-104'!F29/'C-ART-104'!D44 -> 97.30194834
C55: 6.4 TOTAL/M3FACT | D55: =+('A-ART-104'!F29+'A-ART-104'!F33+'A-ART-104'!F37-'A-ART-104'!F39)/'C-ART-104'!D44 -> 106.7286886
C58: 7. INGRESOS PROMEDIO
C60: 7.1 VARIABLE/M3 FACT | D60: =+'A-ART-104'!F7/'C-ART-104'!D44 -> 40.63491169
C62: 7.2 FIJO/CONEXIONES | D62: =+('A-ART-104'!F8/12)/'C-ART-104'!D32 -> 322.3622244
C64: 7.3 INGRESO EXPLOTACIÓN/M3FACT | D64: =+'A-ART-104'!F12/'C-ART-104'!D44 -> 80.4945624
C66: 7.4 TOTAL/M3FACT | D66: =+('A-ART-104'!F12+'A-ART-104'!F32+'A-ART-104'!F36)/'C-ART-104'!D44 -> 84.32859819

Sheet A-200-AG-NORESTE
B2: AMBITO GEOGRÁFICO NORESTE | C2: ESTADO DE RENDIMIENTO ECONÓMICO (a valores históricos) | I2: PERÍODO ENERO-DICIEMBRE-2024
C4: AGUA POTABLE
B5: CONCEPTOS | C5: USINA | D5: PERFORACIÓN | E5: MIXTO | F5: SUB-TOTAL | G5: ALCANTARILLADO | H5: OTROS INGRESOS | I5: TOTAL
B6: INGRESOS
B7: Ingresos Variables | C7: 140594809.5 | D7: 21528522.56 | E7: 405748322.6 | F7: 567871654.7 | I7: 567871654.7
B8: Ingresos Fijos | C8: 128169298.7 | D8: 20548347.2 | E8: 325453138.7 | F8: 474170784.6 | I8: 474170784.6
B9: INGRESOS DE EXPLOTACIÓN | C9: 268764108.2 | D9: 42076869.76 | E9: 731201461.3 | F9: 1042042439 | I9: 1042042439
B10: Ingresos Alcantarillado | G10: 430081497.8 | I10: 430081497.8
B11: Otros Ingresos | C11: 30872715.22 | D11: 3741700.08 | E11: 78124390.34 | F11: 112738805.6 | G11: 5456456.42 | I11: 118195262.1
B12: TOTAL ING. DE EXPLOTACIÓN | C12: 299636823.4 | D12: 45818569.84 | E12: 809325851.6 | F12: 1154781245 | G12: 435537954.3 | I12: 1590319199
B13: COSTOS DE EXPLOTACIÓN
B14: OPERATIVO
B15: Costo Operativo Var | C15: 64383728.27 | D15: 6208794.86 | E15: 154987462.7 | F15: 225579985.8 | G15: 54607710.62 | I15: 280187696.5
B16: Costo Operativo Fijo | C16: 140275390.2 | D16: 54393759.15 | E16: 319948724.6 | F16: 514617873.9 | G16: 232732188.7 | I16: 747350062.5
B17: TOTAL OPERATIVO | C17: 204659118.4 | D17: 60602554.01 | E17: 474936187.3 | F17: 740197859.7 | G17: 287339899.3 | I17: 1027537759
B18: NO OPERATIVO
B19: COMERCIALIZACIÓN
B20: Comercial Propios | C20: 112911720.9 | D20: 17895072.64 | E20: 239885111.2 | F20: 370691904.7 | G20: 95117397.59 | I20: 465809302.3
B21: Comercial Asignados | C21: 29033380.43 | D21: 4439601.09 | E21: 78419818.48 | F21: 111892800 | G21: 42201552.24 | I21: 154094352.2
B22: TOTAL COMERCIALIZACIÓN | C22: 141945101.3 | D22: 22334673.73 | E22: 318304929.6 | F22: 482584704.7 | G22: 137318949.8 | I22: 619903654.5
B23: ADMINISTRACIÓN
B24: Administración Propios | C24: 28439313.13 | D24: 3606360.05 | E24: 54608648.86 | F24: 86654322.04 | G24: 22235551.5 | I24: 108889873.5
B25: Administ. Asignados | C25: 31716821.45 | D25: 4849935.88 | E25: 85667853.23 | F25: 122234610.6 | G25: 46102075.5 | I25: 168336686.1
B26: Gastos Fiscales | C26: 13241410.6 | D26: 2024792.87 | E26: 35765350.24 | F26: 51031553.71 | G26: 19247089.92 | I26: 70278643.63
B27: TOTAL ADMINISTRACIÓN | C27: 73397545.18 | D27: 10481088.8 | E27: 176041852.3 | F27: 259920486.3 | G27: 87584716.92 | I27: 347505203.2
B28: TOTAL NO OPERATIVO | C28: 215342646.5 | D28: 32815762.53 | E28: 494346782 | F28: 742505191 | G28: 224903666.8 | I28: 967408857.8
B29: COSTO DE EXPLOTACIÓN | C29: 420001765 | D29: 93418316.54 | E29: 969282969.2 | F29: 1482703051 | G29: 512243566 | I29: 1994946617
B30: RESULTADO DE EXPLOTACIÓN | C30: -120364941.6 | D30: -47599746.7 | E30: -159957117.6 | F30: -327921805.9 | G30: -76705611.78 | I30: -404627417.7
B31: DIVERSOS Y EXTRAORDINARIOS
B32: Ingresos Div. y Extr | C32: 3801849.29 | D32: 581354.63 | E32: 10268881.21 | F32: 14652085.13 | G32: 8006649.97 | I32: 22658735.1
B33: Gtos. Div. y Extraor | C33: 404878.25 | D33: 61911.41 | E33: 1093585.39 | F33: 1560375.05 | G33: 588511.93 | I33: 2148886.98
B34: RESULTADOS DIV. Y EXTRAORDINARIOS | C34: 3396971.04 | D34: 519443.22 | E34: 9175295.82 | F34: 13091710.08 | G34: 7418138.04 | I34: 20509848.12
B35: FINANCIEROS
B36: Ingresos Financieros | C36: 10470149.76 | D36: 1601029.15 | E36: 28280111.9 | F36: 40351290.81 | G36: 15218915.89 | I36: 55570206.7
B37: Gastos Financieros | C37: 44044103.62 | D37: 6734946.08 | E37: 118964122.4 | F37: 169743172.1 | G37: 64020431.74 | I37: 233763603.8
B38: RESULTADO FINANCIERO | C38: -33573953.86 | D38: -5133916.93 | E38: -90684010.51 | F38: -129391881.3 | G38: -48801515.85 | I38: -178193397.2
B39: I.R.A.E. | C39: 9358431.29 | D39: 1431032.2 | E39: 25277335.08 | F39: 36066798.57 | G39: 13602974.35 | I39: 49669772.92
B40: RESULTADO NETO | C40: -141183493.1 | D40: -50783188.21 | E40: -216188497.2 | F40: -408155178.6 | G40: -104486015.2 | I40: -512641193.8

Sheet B-200-AG-NORESTE
B4: AMBITO GEOGRÁFICO NORESTE
D6: C O S T O S T O T A L E S
C10: C O N C E P T O | D10: C O S T O S O P E R A T I V O S
D13: AGUA | E13: ALCANTARILLADO | F13: TOTAL
C15: RETRIBUCIONES AL PERSONAL | D15: 270430667.7 | E15: 79353036.34 | F15: 349783704.1
C17: MATERIALES Y SUMINISTROS | D17: 100704120.1 | E17: 12111978.67 | F17: 112816098.8
C19: ENERGIA Y FLUÍDOS | D19: 111052952.6 | E19: 31104967.88 | F19: 142157920.5
C21: SERVICIOS CONTRATADOS | D21: 141755880.7 | E21: 91645069.88 | F21: 233400950.6
C23: GASTOS VARIOS | D23: 13125539.1 | E23: 4488.848005 | F23: 13130027.94
C25: AMORTIZACIÓN | D25: 103128699.3 | E25: 73120358.07 | F25: 176249057.4
C28: TOTAL | D28: 740197859.6 | E28: 287339899.7 | F28: 1027537759 | H28: 0.6413144876
C33: C O N C E P T O | D33: C O S T O D E A D M I N I S T R A T I V O - C O M E R C I A L
D36: COMERCIALIZACIÓN | E36: ADMINISTRACIÓN | F36: TOTAL
C38: RETRIBUCIONES AL PERSONAL | D38: 207023044.6 | E38: 50861598.5 | F38: 257884643.1
C40: MATERIALES Y SUMINISTROS | D40: 16929191.14 | E40: 4869138.799 | F40: 21798329.94
C42: ENERGIA Y FLUÍDOS | D42: 391842.4201 | E42: 21938813.97 | F42: 22330656.39
C44: SERVICIOS CONTRATADOS | D44: 226654858.9 | E44: 23684528.14 | F44: 250339387.1
C46: GASTOS VARIOS | D46: -1189651.318 | E46: 2537300.442 | F46: 1347649.124
C48: AMORTIZACIÓN | D48: 16000016.88 | E48: 4998493.683 | F48: 20998510.57
C52: TOTAL | D52: 465809302.6 | E52: 108889873.5 | F52: 574699176.2 | H52: 0.3586855124
B57: C O S T O D E E X P L O T A C I Ó N | H57: 1602236935

Sheet C-200-AG-NORESTE
D4: COBERTURAS, COSTOS E INGRESOS PROMEDIO
D6: A M B I T O G E O G R A F I C O N O R E S T E
C10: 1. COMPOSICIÓN DEL COSTO PROPIO POR CONEXIÓN | D10: OPERATIVOS | F10: ADMINISTRATIVO-COMERCIAL
D12: AGUA | E12: ALCANTARILLADO
D13: ($/conex.agua) | E13: ($/conex.desagüe) | F13: ($/conex.agua)
C15: RETRIBUCIONES AL PERSONAL | D15: =+'B-200-AG-NORESTE'!D15/'C-200-AG-NORESTE'!$D$32 -> 2317.83146 | E15: =+'B-200-AG-NORESTE'!E15/'C-200-AG-NORESTE'!$E$32 -> 1327.862054 | F15: =+('B-200-AG-NORESTE'!D38+'B-200-AG-NORESTE'!E38)/'C-200-AG-NORESTE'!$D$32 -> 2210.300865
C17: MATERIALES Y SUMINISTROS | D17: =+'B-200-AG-NORESTE'!D17/'C-200-AG-NORESTE'!$D$32 -> 863.1239186 | E17: =+'B-200-AG-NORESTE'!E17/'C-200-AG-NORESTE'!$E$32 -> 202.6770193 | F17: =+('B-200-AG-NORESTE'!D40+'B-200-AG-NORESTE'!E40)/'C-200-AG-NORESTE'!$D$32 -> 186.8310844
C19: ENERGIA Y FLUÍDOS | D19: =+'B-200-AG-NORESTE'!D19/'C-200-AG-NORESTE'!$D$32 -> 951.8226223 | E19: =+'B-200-AG-NORESTE'!E19/'C-200-AG-NORESTE'!$E$32 -> 520.4981238 | F19: =+('B-200-AG-NORESTE'!D42+'B-200-AG-NORESTE'!E42)/'C-200-AG-NORESTE'!$D$32 -> 191.3935958
C21: SERVICIOS CONTRATADOS | D21: =+'B-200-AG-NORESTE'!D21/'C-200-AG-NORESTE'!$D$32 -> 1214.974036 | E21: =+'B-200-AG-NORESTE'!E21/'C-200-AG-NORESTE'!$E$32 -> 1533.55204 | F21: =+('B-200-AG-NORESTE'!D44+'B-200-AG-NORESTE'!E44)/'C-200-AG-NORESTE'!$D$32 -> 2145.631306
C23: GASTOS VARIOS | D23: =+'B-200-AG-NORESTE'!D23/'C-200-AG-NORESTE'!$D$32 -> 112.4975495 | E23: =+'B-200-AG-NORESTE'!E23/'C-200-AG-NORESTE'!$E$32 -> 0.07511459178 | F23: =+('B-200-AG-NORESTE'!D46+'B-200-AG-NORESTE'!E46)/'C-200-AG-NORESTE'!$D$32 -> 11.55055217
C25: AMORTIZACIÓN | D25: =+'B-200-AG-NORESTE'!D25/'C-200-AG-NORESTE'!$D$32 -> 883.9047203 | E25: =+'B-200-AG-NORESTE'!E25/'C-200-AG-NORESTE'!$E$32 -> 1223.566902 | F25: =+('B-200-AG-NORESTE'!D48+'B-200-AG-NORESTE'!E48)/'C-200-AG-NORESTE'!$D$32 -> 179.9759207
C29: TOTAL | D29: =SUM(D15:D25) -> 6344.154307 | E29: =SUM(E15:E25) -> 4808.231253 | F29: =SUM(F15:F25) -> 4925.683324
C32: 2.CONEXIONES (promedio anual) | D32: 116674 | E32: 59760
C35: 3.COBERTURAS COSTO/INGRESO
C37: 3.1 COSTO DE EXPLOTACION/ INGRESO DE EXPLOT. | D37: =+'A-200-AG-NORESTE'!F29/'A-200-AG-NORESTE'!F12 -> 1.283968767 | E37: =+'A-200-AG-NORESTE'!G29/'A-200-AG-NORESTE'!G12 -> 1.17611694
C39: 3.3 TOTAL | D39: =+('A-200-AG-NORESTE'!E29+'A-200-AG-NORESTE'!F33+'A-200-AG-NORESTE'!F37-'A-200-AG-NORESTE'!F39)/('A-200-AG-NORESTE'!F12+'A-200-AG-NORESTE'!F32+'A-200-AG-NORESTE'!F36) -> 0.9129887245 | E39: =+('A-200-AG-NORESTE'!F29+'A-200-AG-NORESTE'!G33+'A-200-AG-NORESTE'!G37-'A-200-AG-NORESTE'!G39)/('A-200-AG-NORESTE'!G12+'A-200-AG-NORESTE'!G32+'A-200-AG-NORESTE'!G36) -> 3.343136393
C42: 4.M3 ELEVADOS | D42: 25861170
C44: 5.M3 FACTURADOS | D44: 12220800
C47: 6. COSTO PROMEDIO
C49: 6.1 COSTO VARIABLE/ M3ELEVADOS | D49: =+'A-200-AG-NORESTE'!F15/'C-200-AG-NORESTE'!D42 -> 8.722729322
C51: 6.2 COSTO VARIABLE / M3FACTURADOS | D51: =+'A-200-AG-NORESTE'!F15/'C-200-AG-NORESTE'!D44 -> 18.45869222
C53: 6.3 COSTO EXPLOTACION/M3FACT | D53: =+'A-200-AG-NORESTE'!F29/'C-200-AG-NORESTE'!D44 -> 121.3261857
C55: 6.4 TOTAL/M3FACT | D55: =+('A-200-AG-NORESTE'!F29+'A-200-AG-NORESTE'!F33+'A-200-AG-NORESTE'!F37-'A-200-AG-NORESTE'!F39)/'C-200-AG-NORESTE'!D44 -> 132.3922983
C58: 7. INGRESOS PROMEDIO
C60: 7.1 VARIABLE/M3 FACT | D60: =+'A-200-AG-NORESTE'!F7/'C-200-AG-NORESTE'!D44 -> 46.46763343
C62: 7.2 FIJO/CONEXIONES | D62: =+('A-200-AG-NORESTE'!F8/12)/'C-200-AG-NORESTE'!D32 -> 338.6721296
C64: 7.3 INGRESO EXPLOTACION/M3FACT | D64: =+'A-200-AG-NORESTE'!F12/'C-200-AG-NORESTE'!D44 -> 94.49309741
C66: 7.4 TOTAL/M3FACT | D66: =+('A-200-AG-NORESTE'!F12+'A-200-AG-NORESTE'!F32+'A-200-AG-NORESTE'!F36)/'C-200-AG-NORESTE'!D44 -> 98.99389735

Sheet A-RIV-201
B2: RIVERA | C2: ESTADO DE RENDIMIENTO ECONÓMICO (a valores históricos) | I2: PERÍODO ENERO-DICIEMBRE-2024
C4: AGUA POTABLE
B5: CONCEPTOS | C5: USINA | D5: PERFORACIÓN | E5: MIXTO | F5: SUB-TOTAL | G5: ALCANTARILLADO | H5: OTROS INGRESOS | I5: TOTAL
B6: INGRESOS
B7: Ingresos Variables | D7: 11273324.93 | E7: 173752500.3 | F7: 185025825.2 | I7: 185025825.2
B8: Ingresos Fijos | D8: 12295032.06 | E8: 141217220.9 | F8: 153512252.9 | I8: 153512252.9
B9: INGRESOS DE EXPLOTACION | D9: 23568356.99 | E9: 314969721.1 | F9: 338538078.1 | I9: 338538078.1
B10: Ingresos Alcantarillado | G10: 144762939.4 | I10: 144762939.4
B11: Otros Ingresos | D11: 2475382.32 | E11: 34666952.41 | F11: 37142334.73 | G11: 1895511.93 | I11: 39037846.66
B12: TOTAL ING. DE EXPLOTACION | D12: 26043739.31 | E12: 349636673.6 | F12: 375680412.9 | G12: 146658451.3 | I12: 522338864.2
B13: COSTOS DE EXPLOTACION
B14: OPERATIVO
B15: Costo Operativo Var | D15: 3600798.85 | E15: 74512206.23 | F15: 78113005.08 | G15: 18429780.79 | I15: 96542785.87
B16: Costo Operativo Fijo | D16: 31026189.78 | E16: 172693367.1 | F16: 203719556.8 | G16: 85587725.61 | I16: 289307282.5
B17: TOTAL OPERATIVO | D17: 34626988.63 | E17: 247205573.3 | F17: 281832561.9 | G17: 104017506.4 | I17: 385850068.3
B18: NO OPERATIVO
B19: COMERCIALIZACIÓN
B20: Comercial Propios | D20: 9755839.32 | E20: 106107548.8 | F20: 115863388.1 | G20: 29714208.37 | I20: 145577596.4
B21: Comercial Asignados | D21: 2523514.22 | E21: 33878127.61 | F21: 36401641.83 | G21: 14210505.03 | I21: 50612146.86
B22: TOTAL COMERCIALIZACIÓN | D22: 12279353.54 | E22: 139985676.4 | F22: 152265029.9 | G22: 43924713.4 | I22: 196189743.3
B23: ADMINISTRACIÓN
B24: Administración Propios | D24: 1561282.89 | E24: 16980998.82 | F24: 18542281.71 | G24: 4755334.93 | I24: 23297616.64
B25: Administ. Asignados | D25: 2756752.64 | E25: 37009349.44 | F25: 39766102.08 | G25: 15523925.93 | I25: 55290028.01
B26: Gastos Fiscales | D26: 1150912.77 | E26: 15450980.68 | F26: 16601893.45 | G26: 6481061.8 | I26: 23082955.25
B27: TOTAL ADMINISTRACIÓN | D27: 5468948.3 | E27: 69441328.94 | F27: 74910277.24 | G27: 26760322.66 | I27: 101670599.9
B28: TOTAL NO OPERATIVO | D28: 17748301.84 | E28: 209427005.3 | F28: 227175307.2 | G28: 70685036.06 | I28: 297860343.2
B29: COSTO DE EXPLOTACION | D29: 52375290.47 | E29: 456632578.6 | F29: 509007869.1 | G29: 174702542.5 | I29: 683710411.5
B30: RESULTADO DE EXPLOTACION | D30: -26331551.16 | E30: -106995905 | F30: -133327456.2 | G30: -28044091.13 | I30: -161371547.3
B31: DIVERSOS Y EXTRAORDINARIOS
B32: Ingresos Div. y Extr | D32: 330447.99 | E32: 4436256.97 | F32: 4766704.96 | G32: 2696074.78 | I32: 7462779.74
B33: Gtos. Div. y Extraor | D33: 35191.05 | E33: 472439.56 | F33: 507630.61 | G33: 198169.3 | I33: 705799.91
B34: RESULTADOS DIV. Y EXTRAORDINARI | D34: 295256.94 | E34: 3963817.41 | F34: 4259074.35 | G34: 2497905.48 | I34: 6756979.83
B35: FINANCIEROS
B36: Ingresos Financieros | D36: 910041.17 | E36: 12217284.61 | F36: 13127325.78 | G36: 5124657.02 | I36: 18251982.8
B37: Gastos Financieros | D37: 3828211.52 | E37: 51393662.98 | F37: 55221874.5 | G37: 21557564.08 | I37: 76779438.58
B38: RESULTADO FINANCIERO | D38: -2918170.35 | E38: -39176378.37 | F38: -42094548.72 | G38: -16432907.06 | I38: -58527455.78
B39: I.R.A.E. | D39: 813413.19 | E39: 10920055.68 | F39: 11733468.87 | G39: 4580521.92 | I39: 16313990.79
B40: RESULTADO NETO | D40: -28141051.38 | E40: -131288410.3 | F40: -159429461.7 | G40: -37398570.79 | I40: -196828032.5

Sheet B-RIV-201
B4: R I V E R A
D6: C O S T O S T O T A L E S
C10: C O N C E P T O | D10: C O S T O S O P E R A T I V O S
D13: AGUA | E13: ALCANTARILLADO | F13: TOTAL
C15: RETRIBUCIONES AL PERSONAL | D15: 86904384.69 | E15: 23378354.65 | F15: 110282739.3
C17: MATERIALES Y SUMINISTROS | D17: 35283863.97 | E17: 2619900.064 | F17: 37903764.03
C19: ENERGIA Y FLUÍDOS | D19: 52364588.31 | E19: 12035911.17 | F19: 64400499.49
C21: SERVICIOS CONTRATADOS | D21: 75698065.69 | E21: 42366236.26 | F21: 118064301.9
C23: GASTOS VARIOS | D23: -4169364.94 | E23: 188482.584 | F23: -3980882.356
C25: AMORTIZACIÓN | D25: 35751024.05 | E25: 23428621.67 | F25: 59179645.72
C28: TOTAL | D28: 281832561.8 | E28: 104017506.4 | F28: 385850068.2 | H28: 0.6955696472
C33: C O N C E P T O | E33: C O S T O D E A D M I N I S T R A T I V O - C O M E R C I A L
D36: COMERCIALIZACIÓN | E36: ADMINISTRACIÓN | F36: TOTAL
C38: RETRIBUCIONES AL PERSONAL | D38: 58980817.98 | E38: 6851959.235 | F38: 65832777.22
C40: MATERIALES Y SUMINISTROS | D40: 5214311.534 | E40: 444866.2773 | F40: 5659177.811
C42: ENERGIA Y FLUÍDOS | D42: 86988.61521 | E42: 5508040.622 | F42: 5595029.237
C44: SERVICIOS CONTRATADOS | D44: 75271102.54 | E44: 8480242.024 | F44: 83751344.56
C46: GASTOS VARIOS | D46: 681990.4934 | E46: 651758.3388 | F46: 1333748.832
C48: AMORTIZACIÓN | D48: 5342385.285 | E48: 1360750.144 | F48: 6703135.429
C52: TOTAL | D52: 145577596.4 | E52: 23297616.64 | F52: 168875213.1 | H52: 0.3044303528
B57: C O S T O D E E X P L O T A C I Ó N | H57: 554725281.3

Sheet C-RIV-201
D4: COBERTURAS, COSTOS E INGRESOS PROMEDIO
D6: R I V E R A
C10: 1. COMPOSICION DEL COSTO PROPIO POR CONEXIÓN | D10: OPERATIVOS | F10: ADMINISTRATIVO-COMERCIAL
D12: AGUA | E12: ALCANTARILLADO
D13: ($/conex.agua) | E13: ($/conex.desagüe) | F13: ($/conex.agua)
C15: RETRIBUCIONES AL PERSONAL | D15: =+'B-RIV-201'!D15/'C-RIV-201'!$D$32 -> 2326.694993 | E15: =+'B-RIV-201'!E15/'C-RIV-201'!$E$32 -> 1220.292027 | F15: =+('B-RIV-201'!D38+'B-RIV-201'!E38)/'C-RIV-201'!$D$32 -> 1762.5439
C17: MATERIALES Y SUMINISTROS | D17: =+'B-RIV-201'!D17/'C-RIV-201'!$D$32 -> 944.6564741 | E17: =+'B-RIV-201'!E17/'C-RIV-201'!$E$32 -> 136.7522739 | F17: =+('B-RIV-201'!D40+'B-RIV-201'!E40)/'C-RIV-201'!$D$32 -> 151.5134216
C19: ENERGIA Y FLUÍDOS | D19: =+'B-RIV-201'!D19/'C-RIV-201'!$D$32 -> 1401.959474 | E19: =+'B-RIV-201'!E19/'C-RIV-201'!$E$32 -> 628.2446589 | F19: =+('B-RIV-201'!D42+'B-RIV-201'!E42)/'C-RIV-201'!$D$32 -> 149.795969
C21: SERVICIOS CONTRATADOS | D21: =+'B-RIV-201'!D21/'C-RIV-201'!$D$32 -> 2026.667711 | E21: =+'B-RIV-201'!E21/'C-RIV-201'!$E$32 -> 2211.412269 | F21: =+('B-RIV-201'!D44+'B-RIV-201'!E44)/'C-RIV-201'!$D$32 -> 2242.278508
C23: GASTOS VARIOS | D23: =+'B-RIV-201'!D23/'C-RIV-201'!$D$32 -> -111.6265947 | E23: =+'B-RIV-201'!E23/'C-RIV-201'!$E$32 -> 9.838322582 | F23: =+('B-RIV-201'!D46+'B-RIV-201'!E46)/'C-RIV-201'!$D$32 -> 35.70851737
C25: AMORTIZACIÓN | D25: =+'B-RIV-201'!D25/'C-RIV-201'!$D$32 -> 957.163772 | E25: =+'B-RIV-201'!E25/'C-RIV-201'!$E$32 -> 1222.91584 | F25: =+('B-RIV-201'!D48+'B-RIV-201'!E48)/'C-RIV-201'!$D$32 -> 179.4633458
C29: TOTAL | D29: =SUM(D15:D25) -> 7545.51583 | E29: =SUM(E15:E25) -> 5429.455392 | F29: =SUM(F15:F25) -> 4521.303662
C32: 2.CONEXIONES (promedio anual) | D32: 37351 | E32: 19158
C35: 3.COBERTURAS COSTO/INGRESO
C37: 3.1 COSTO DE EXPLOTACION/ INGRESO DE EXPLOT. | D37: =+'A-RIV-201'!F29/'A-RIV-201'!F12 -> 1.354895948 | E37: =+'A-RIV-201'!G29/'A-RIV-201'!G12 -> 1.191220423
C39: 3.3 TOTAL | D39: =(+'A-RIV-201'!F29+'A-RIV-201'!F33+'A-RIV-201'!F37-'A-RIV-201'!F39)/('A-RIV-201'!F12+'A-RIV-201'!F32+'A-RIV-201'!F36) -> 1.405080829 | E39: =(+'A-RIV-201'!G29+'A-RIV-201'!G33+'A-RIV-201'!G37-'A-RIV-201'!G39)/('A-RIV-201'!G12+'A-RIV-201'!G32+'A-RIV-201'!G36) -> 1.242094566
C42: 4.M3 ELEVADOS | D42: 9768670
C44: 5.M3 FACTURADOS | D44: 4062870
C47: 6. COSTO PROMEDIO
C49: 6.1 COSTO VARIABLE/ M3ELEVADOS | D49: =+'A-RIV-201'!F15/'C-RIV-201'!D42 -> 7.996278417
C51: 6.2 COSTO VARIABLE / M3FACTURADOS | D51: =+'A-RIV-201'!F15/'C-RIV-201'!D44 -> 19.22606558
C53: 6.3 COSTO EXPLOTACION/M3FACT | D53: =+'A-RIV-201'!F29/'C-RIV-201'!D44 -> 125.2828343
C55: 6.4 TOTAL/M3FACT | D55: =+('A-RIV-201'!F29+'A-RIV-201'!E33+'A-RIV-201'!E37-'A-RIV-201'!E39)/'C-RIV-201'!D44 -> 135.3609434
C58: 7. INGRESOS PROMEDIO
C60: 7.1 VARIABLE/M3 FACT | D60: =+'A-RIV-201'!F7/'C-RIV-201'!D44 -> 45.5406708
C62: 7.2 FIJO/CONEXIONES | D62: =+('A-RIV-201'!F8/12)/'C-RIV-201'!D32 -> 342.4992034
C64: 7.3 INGRESO EXPLOTACION/M3FACT | D64: =+'A-RIV-201'!F12/'C-RIV-201'!D44 -> 92.46675696
C66: 7.4 TOTAL/M3FACT | D66: =+('A-RIV-201'!F12+'A-RIV-201'!F32+'A-RIV-201'!F36)/'C-RIV-201'!D44 -> 96.87104033

Sheet A-TAC-202
A2: TACUAREMBÓ | B2: ESTADO DE RENDIMIENTO ECONÓMICO (a valores históricos) | H2: PERÍODO ENERO-DICIEMBRE-2024
B4: AGUA POTABLE
A5: CONCEPTOS | B5: USINA | C5: PERFORACIÓN | D5: MIXTO | E5: SUB-TOTAL | F5: ALCANTARILLADO | G5: OTROS INGRESOS | H5: TOTAL
A6: INGRESOS
A7: Ingresos Variables | B7: 5403828.24 | D7: 200838977.6 | E7: 206242805.8 | H7: 206242805.8
A8: Ingresos Fijos | B8: 5840018.18 | D8: 154693380.7 | E8: 160533398.9 | H8: 160533398.9
A9: INGRESOS DE EXPLOTACION | B9: 11243846.42 | D9: 355532358.2 | E9: 366776204.7 | H9: 366776204.7
A10: Ingresos Alcantarillado | F10: 142866204.1 | H10: 142866204.1
A11: Otros Ingresos | B11: 1070983.03 | D11: 38241178.61 | E11: 39312161.64 | F11: 2260908.95 | H11: 41573070.59
A12: TOTAL ING. DE EXPLOTACION | B12: 12314829.45 | D12: 393773536.9 | E12: 406088366.3 | F12: 145127113 | H12: 551215479.3
A13: COSTOS DE EXPLOTACION
A14: OPERATIVO
A15: Costo Operativo Var | B15: 2284851.3 | D15: 68723644.21 | E15: 71008495.51 | F15: 19950075.28 | H15: 90958570.79
A16: Costo Operativo Fijo | B16: 36622775.94 | D16: 113477668.8 | E16: 150100444.8 | F16: 74428761.17 | H16: 224529205.9
A17: TOTAL OPERATIVO | B17: 38907627.24 | D17: 182201313.1 | E17: 221108940.3 | F17: 94378836.45 | H17: 315487776.7
A18: NO OPERATIVO
A19: COMERCIALIZACIÓN
A20: Comercial Propios | B20: 4235246.22 | D20: 104291555.6 | E20: 108526801.8 | F20: 27197357.84 | H20: 135724159.7
A21: Comercial Asignados | B21: 1193248.26 | D21: 38154779.41 | E21: 39348027.67 | F21: 14062125.59 | H21: 53410153.26
A22: TOTAL COMERCIALIZACIÓN | B22: 5428494.48 | D22: 142446335 | E22: 147874829.5 | F22: 41259483.43 | H22: 189134312.9
A23: ADMINISTRACIÓN
A24: Administración Propios | B24: 1216723.63 | D24: 30218947.56 | E24: 31435671.19 | F24: 7880556.88 | H24: 39316228.07
A25: Administ. Asignados | B25: 1303535.57 | D25: 41681275.33 | E25: 42984810.9 | F25: 15361832.57 | H25: 58346643.47
A26: Gastos Fiscales | B26: 544211.17 | D26: 17401456.33 | E26: 17945667.5 | F26: 6413389.61 | H26: 24359057.11
A27: TOTAL ADMINISTRACIÓN | B27: 3064470.37 | D27: 89301679.22 | E27: 92366149.59 | F27: 29655779.06 | H27: 122021928.7
A28: TOTAL NO OPERATIVO | B28: 8492964.85 | D28: 231748014.2 | E28: 240240979.1 | F28: 70915262.49 | H28: 311156241.6
A29: COSTO DE EXPLOTACION | B29: 47400592.09 | D29: 413949327.3 | E29: 461349919.4 | F29: 165294098.9 | H29: 626644018.3
A30: RESULTADO DE EXPLOTACION | B30: -35085762.64 | D30: -20175790.44 | E30: -55261553.08 | F30: -20166985.91 | H30: -75428538.99
A31: DIVERSOS Y EXTRAORDINARIOS
A32: Ingresos Div. y Extr | B32: 156252.83 | D32: 4996274.15 | E32: 5152526.98 | F32: 2667923.62 | H32: 7820450.6
A33: Gtos. Div. y Extraor | B33: 16640.18 | D33: 532078.61 | E33: 548718.79 | F33: 196100.08 | H33: 744818.87
A34: RESULTADOS DIV. Y EXTRAORDINARIOS | B34: 139612.65 | D34: 4464195.54 | E34: 4603808.19 | F34: 2471823.54 | H34: 7075631.73
A35: FINANCIEROS
A36: Ingresos Financieros | B36: 430314.61 | D36: 13759550.19 | E36: 14189864.8 | F36: 5071147.78 | H36: 19261012.58
A37: Gastos Financieros | B37: 1810176.73 | D37: 57881412.21 | E37: 59691588.94 | F37: 21332470.23 | H37: 81024059.17
A38: RESULTADO FINANCIERO | B38: -1379862.12 | D38: -44121862.02 | E38: -45501724.14 | F38: -16261322.45 | H38: -61763046.59
A39: I.R.A.E. | B39: 384623.89 | D39: 12298563.81 | E39: 12683187.7 | F39: 4532694.29 | H39: 17215881.99
A40: RESULTADO NETO | B40: -35941388.22 | D40: -47534893.11 | E40: -83476281.33 | F40: -29423790.53 | H40: -112900071.9

Sheet B-TAC-202
B4: T A C U A R E M B Ó
D6: C O S T O S T O T A L E S
C10: C O N C E P T O | D10: C O S T O S O P E R A T I V O S
D13: AGUA | E13: ALCANTARILLADO | F13: TOTAL
C15: RETRIBUCIONES AL PERSONAL | D15: 78896843.93 | E15: 36486312.86 | F15: 115383156.8
C17: MATERIALES Y SUMINISTROS | D17: 33256863.12 | E17: 5753631.84 | F17: 39010494.96
C19: ENERGIA Y FLUÍDOS | D19: 27964015.87 | E19: 9428705.371 | F19: 37392721.24
C21: SERVICIOS CONTRATADOS | D21: 39827353.37 | E21: 18711247.08 | F21: 58538600.44
C23: GASTOS VARIOS | D23: 8942321.519 | E23: -339361.7358 | F23: 8602959.783
C25: AMORTIZACIÓN | D25: 32221542.48 | E25: 24338301.04 | F25: 56559843.53
C28: TOTAL | D28: 221108940.3 | E28: 94378836.45 | F28: 315487776.7 | H28: 0.6431593527
C33: C O N C E P T O | D33: C O S T O D E A D M I N I S T R A T I V O - C O M E R C I A L
D36: COMERCIALIZACIÓN | E36: ADMINISTRACIÓN | F36: TOTAL
C38: RETRIBUCIONES AL PERSONAL | D38: 63427790.15 | E38: 21090332.54 | F38: 84518122.69
C40: MATERIALES Y SUMINISTROS | D40: 6304888.67 | E40: 2410894.114 | F40: 8715782.784
C42: ENERGIA Y FLUÍDOS | D42: 118305.0448 | E42: 7939173.018 | F42: 8057478.063
C44: SERVICIOS CONTRATADOS | D44: 59509246.54 | E44: 5737291.857 | F44: 65246538.4
C46: GASTOS VARIOS | D46: 800604.6076 | E46: 843007.0274 | F46: 1643611.635
C48: AMORTIZACIÓN | D48: 5563324.665 | E48: 1295529.514 | F48: 6858854.178
C52: TOTAL | D52: 135724159.7 | E52: 39316228.07 | F52: 175040387.8 | H52: 0.3568406473
B57: C O S T O D E E X P L O T A C I Ó N | H57: 490528164.5

Sheet C-TAC-202
D4: COBERTURAS, COSTOS E INGRESOS PROMEDIO
D6: T A C U A R E M B Ó
C10: 1. COMPOSICION DEL COSTO PROPIO POR CONEXIÓN | D10: OPERATIVOS | F10: ADMINISTRATIVO-COMERCIAL
D12: AGUA | E12: ALCANTARILLADO
D13: ($/conex.agua) | E13: ($/conex.desagüe) | F13: ($/conex.agua)
C15: RETRIBUCIONES AL PERSONAL | D15: =+'B-TAC-202'!D15/'C-TAC-202'!$D$32 -> 2009.752246 | E15: =+'B-TAC-202'!E15/'C-TAC-202'!$E$32 -> 1854.356213 | F15: =+('B-TAC-202'!D38+'B-TAC-202'!E38)/'C-TAC-202'!$D$32 -> 2152.944002
C17: MATERIALES Y SUMINISTROS | D17: =+'B-TAC-202'!D17/'C-TAC-202'!$D$32 -> 847.1575291 | E17: =+'B-TAC-202'!E17/'C-TAC-202'!$E$32 -> 292.4187762 | F17: =+('B-TAC-202'!D40+'B-TAC-202'!E40)/'C-TAC-202'!$D$32 -> 222.0185644
C19: ENERGIA Y FLUÍDOS | D19: =+'B-TAC-202'!D19/'C-TAC-202'!$D$32 -> 712.331963 | E19: =+'B-TAC-202'!E19/'C-TAC-202'!$E$32 -> 479.1982807 | F19: =+('B-TAC-202'!D42+'B-TAC-202'!E42)/'C-TAC-202'!$D$32 -> 205.2494603
C21: SERVICIOS CONTRATADOS | D21: =+'B-TAC-202'!D21/'C-TAC-202'!$D$32 -> 1014.528705 | E21: =+'B-TAC-202'!E21/'C-TAC-202'!$E$32 -> 950.9680361 | F21: =+('B-TAC-202'!D44+'B-TAC-202'!E44)/'C-TAC-202'!$D$32 -> 1662.035775
C23: GASTOS VARIOS | D23: =+'B-TAC-202'!D23/'C-TAC-202'!$D$32 -> 227.7892228 | E23: =+'B-TAC-202'!E23/'C-TAC-202'!$E$32 -> -17.24749623 | F23: =+('B-TAC-202'!D46+'B-TAC-202'!E46)/'C-TAC-202'!$D$32 -> 41.86798876
C25: AMORTIZACIÓN | D25: =+'B-TAC-202'!D25/'C-TAC-202'!$D$32 -> 820.7846367 | E25: =+'B-TAC-202'!E25/'C-TAC-202'!$E$32 -> 1236.953702 | F25: =+('B-TAC-202'!D48+'B-TAC-202'!E48)/'C-TAC-202'!$D$32 -> 174.7167175
C29: TOTAL | D29: =SUM(D15:D25) -> 5632.344303 | E29: =SUM(E15:E25) -> 4796.647512 | F29: =SUM(F15:F25) -> 4458.832508
C32: 2.CONEXIONES (promedio anual) | D32: 39257 | E32: 19676
C35: 3.COBERTURAS COSTO/INGRESO
C37: 3.1 COSTO DE EXPLOTACION/ INGRESO DE EXPLOT. | D37: =+'A-TAC-202'!E29/'A-TAC-202'!E12 -> 1.136082581 | E37: =+'A-TAC-202'!F29/'A-TAC-202'!F12 -> 1.138960843
C39: 3.3 TOTAL | D39: =+('A-TAC-202'!E29+'A-TAC-202'!E33+'A-TAC-202'!E37-'A-TAC-202'!E39)/('A-TAC-202'!E12+'A-TAC-202'!E32+'A-TAC-202'!E36) -> 1.196215905 | E39: =+('A-TAC-202'!F29+'A-TAC-202'!F33+'A-TAC-202'!F37-'A-TAC-202'!F39)/('A-TAC-202'!F12+'A-TAC-202'!F32+'A-TAC-202'!F36) -> 1.192480702
C42: 4.M3 ELEVADOS | D42: 8745310
C44: 5.M3 FACTURADOS | D44: 4209040
C47: 6. COSTO PROMEDIO
C49: 6.1 COSTO VARIABLE/ M3ELEVADOS | D49: =+'A-TAC-202'!E15/'C-TAC-202'!D42 -> 8.11960874
C51: 6.2 COSTO VARIABLE / M3FACTURADOS | D51: =+'A-TAC-202'!E15/'C-TAC-202'!D44 -> 16.87047296
C53: 6.3 COSTO EXPLOTACION/M3FACT | D53: =+'A-TAC-202'!E29/'C-TAC-202'!D44 -> 109.6092979
C55: 6.4 TOTAL/M3FACT | D55: =+('A-TAC-202'!E29+'A-TAC-202'!E33+'A-TAC-202'!E37-'A-TAC-202'!E39)/'C-TAC-202'!D44 -> 120.9081024
C58: 7. INGRESOS PROMEDIO
C60: 7.1 VARIABLE/M3 FACT | D60: =+'A-TAC-202'!E7/'C-TAC-202'!D44 -> 48.99996336
C62: 7.2 FIJO/CONEXIONES | D62: =+('A-TAC-202'!E8/12)/'C-TAC-202'!D32 -> 340.7744667
C64: 7.3 INGRESO EXPLOTACION/M3FACT | D64: =+'A-TAC-202'!E12/'C-TAC-202'!D44 -> 96.48004445
C66: 7.4 TOTAL/M3FACT | D66: =+('A-TAC-202'!E12+'A-TAC-202'!E32+'A-TAC-202'!E36)/'C-TAC-202'!D44 -> 101.0754847

Sheet A-CL-204
B2: CERRO LARGO | C2: ESTADO DE RENDIMIENTO ECONÓMICO (a valores históricos) | I2: PERÍODO ENERO-DICIEMBRE-2024
C4: AGUA POTABLE
B5: CONCEPTOS | C5: USINA | D5: PERFORACIÓN | E5: MIXTO | F5: SUB-TOTAL | G5: ALCANTARILLADO | H5: OTROS INGRESOS | I5: TOTAL
B6: INGRESOS
B7: Ingresos Variables | C7: 135190981.3 | D7: 10255197.63 | E7: 31156844.77 | F7: 176603023.7 | I7: 176603023.7
B8: Ingresos Fijos | C8: 122329280.5 | D8: 8253315.14 | E8: 29542537.1 | F8: 160125132.7 | I8: 160125132.7
B9: INGRESOS DE EXPLOTACION | C9: 257520261.8 | D9: 18508512.77 | E9: 60699381.87 | F9: 336728156.4 | I9: 336728156.4
B10: Ingresos Alcantarillado | G10: 142452354.4 | I10: 142452354.4
B11: Otros Ingresos | C11: 29801732.19 | D11: 1266317.76 | E11: 5216259.32 | F11: 36284309.27 | G11: 1300035.54 | I11: 37584344.81
B12: TOTAL ING. DE EXPLOTACION | C12: 287321993.9 | D12: 19774830.53 | E12: 65915641.19 | F12: 373012465.7 | G12: 143752389.9 | I12: 516764855.6
B13: COSTOS DE EXPLOTACION
B14: OPERATIVO
B15: Costo Operativo Var | C15: 62098876.97 | D15: 2607996.01 | E15: 11751612.28 | F15: 76458485.26 | G15: 16227854.55 | I15: 92686339.81
B16: Costo Operativo Fijo | C16: 103652614.2 | D16: 23367569.37 | E16: 33777688.64 | F16: 160797872.2 | G16: 72715701.89 | I16: 233513574.1
B17: TOTAL OPERATIVO | C17: 165751491.2 | D17: 25975565.38 | E17: 45529300.92 | F17: 237256357.5 | G17: 88943556.44 | I17: 326199913.9
B18: NO OPERATIVO
B19: COMERCIALIZACIÓN
B20: Comercial Propios | C20: 108676474.7 | D20: 8139233.32 | E20: 29486006.78 | F20: 146301714.8 | G20: 38205831.38 | I20: 184507546.2
B21: Comercial Asignados | C21: 27840132.17 | D21: 1916086.87 | E21: 6386911.46 | F21: 36143130.5 | G21: 13928921.62 | I21: 50072052.12
B22: TOTAL COMERCIALIZACIÓN | C22: 136516606.9 | D22: 10055320.19 | E22: 35872918.24 | F22: 182444845.3 | G22: 52134753 | I22: 234579598.3
B23: ADMINISTRACIÓN
B24: Administración Propios | C24: 27222589.5 | D24: 2045077.16 | E24: 7408702.48 | F24: 36676369.14 | G24: 9599659.69 | I24: 46276028.83
B25: Administ. Asignados | C25: 30413285.88 | D25: 2093183.24 | E25: 6977228.46 | F25: 39483697.58 | G25: 15216317 | I25: 54700014.58
B26: Gastos Fiscales | C26: 12697199.43 | D26: 873880.1 | E26: 2912913.23 | F26: 16483992.76 | G26: 6352638.51 | I26: 22836631.27
B27: TOTAL ADMINISTRACIÓN | C27: 70333074.81 | D27: 5012140.5 | E27: 17298844.17 | F27: 92644059.48 | G27: 31168615.2 | I27: 123812674.7
B28: TOTAL NO OPERATIVO | C28: 206849681.7 | D28: 15067460.69 | E28: 53171762.41 | F28: 275088904.8 | G28: 83303368.2 | I28: 358392273
B29: COSTO DE EXPLOTACION | C29: 372601172.9 | D29: 41043026.07 | E29: 98701063.33 | F29: 512345262.3 | G29: 172246924.6 | I29: 684592186.9
B30: RESULTADO DE EXPLOTACION | C30: -85279178.93 | D30: -21268195.54 | E30: -32785422.14 | F30: -139332796.6 | G30: -28494534.74 | I30: -167827331.3
B31: DIVERSOS Y EXTRAORDINARIOS
B32: Ingresos Div. y Extr | C32: 3645596.46 | D32: 250906.64 | E32: 836350.09 | F32: 4732853.19 | G32: 2642651.57 | I32: 7375504.76
B33: Gtos. Div. y Extraor | C33: 388238.07 | D33: 26720.36 | E33: 89067.22 | F33: 504025.65 | G33: 194242.55 | I33: 698268.2
B34: RESULTADOS DIV. Y EXTRAORDINARIOS | C34: 3257358.39 | D34: 224186.28 | E34: 747282.87 | F34: 4228827.54 | G34: 2448409.02 | I34: 6677236.56
B35: FINANCIEROS
B36: Ingresos Financieros | C36: 10039835.15 | D36: 690987.98 | E36: 2303277.1 | F36: 13034100.23 | G36: 5023111.09 | I36: 18057211.32
B37: Gastos Financieros | C37: 42233926.89 | D37: 2906734.56 | E37: 9689047.22 | F37: 54829708.67 | G37: 21130397.43 | I37: 75960106.1
B38: RESULTADO FINANCIERO | C38: -32194091.74 | D38: -2215746.58 | E38: -7385770.12 | F38: -41795608.44 | G38: -16107286.34 | I38: -57902894.78
B39: I.R.A.E. | C39: 8973807.4 | D39: 617619.01 | E39: 2058715.59 | F39: 11650142 | G39: 4489758.14 | I39: 16139900.14
B40: RESULTADO NETO | C40: -105242104.9 | D40: -22642136.83 | E40: -37365193.8 | F40: -165249435.5 | G40: -37663653.92 | I40: -202913089.4

Sheet B-CL-204
B4: C E R R O L A R G O
D6: C O S T O S T O T A L E S
C10: C O N C E P T O | D10: C O S T O S O P E R A T I V O S
D13: AGUA | E13: ALCANTARILLADO | F13: TOTAL
C15: RETRIBUCIONES AL PERSONAL | D15: 104629439.1 | E15: 19488368.44 | F15: 124117807.5
C17: MATERIALES Y SUMINISTROS | D17: 32163392.99 | E17: 3738446.77 | F17: 35901839.76
C19: ENERGIA Y FLUÍDOS | D19: 30724348.44 | E19: 9640351.334 | F19: 40364699.78
C21: SERVICIOS CONTRATADOS | D21: 26230461.64 | E21: 30567586.55 | F21: 56798048.19
C23: GASTOS VARIOS | D23: 8352582.517 | E23: 155367.9998 | F23: 8507950.517
C25: AMORTIZACIÓN | D25: 35156132.81 | E25: 25353435.35 | F25: 60509568.16
C28: TOTAL | D28: 237256357.5 | E28: 88943556.44 | F28: 326199913.9 | H28: 0.5856545489
C33: C O N C E P T O | D33: C O S T O D E A D M I N I S T R A T I V O - C O M E R C I A L
D36: COMERCIALIZACIÓN | E36: ADMINISTRACIÓN | F36: TOTAL
C38: RETRIBUCIONES AL PERSONAL | D38: 80951499.61 | E38: 22919306.73 | F38: 103870806.3
C40: MATERIALES Y SUMINISTROS | D40: 5409990.94 | E40: 2013378.408 | F40: 7423369.348
C42: ENERGIA Y FLUÍDOS | D42: 186548.7601 | E42: 8491600.332 | F42: 8678149.093
C44: SERVICIOS CONTRATADOS | D44: 91874509.83 | E44: 9466994.26 | F44: 101341504.1
C46: GASTOS VARIOS | D46: 990690.1011 | E46: 1042535.076 | F46: 2033225.177
C48: AMORTIZACIÓN | D48: 5094306.934 | E48: 2342214.026 | F48: 7436520.96
C52: TOTAL | D52: 184507546.2 | E52: 46276028.83 | F52: 230783575 | H52: 0.4143454511
B57: C O S T O D E E X P L O T A C I Ó N | H57: 556983488.9

Sheet C-CL-204
D4: COBERTURAS,COSTOS E INGRESOS PROMEDIO
D6: C E R R O L A R G O
C10: 1. COMPOSICION DEL COSTO PROPIO POR CONEXIÓN | D10: OPERATIVOS | F10: ADMINISTRATIVO-COMERCIAL
D12: AGUA | E12: ALCANTARILLADO
D13: ($/conex.agua) | E13: ($/conex.desagüe) | F13: ($/conex.agua)
C15: RETRIBUCIONES AL PERSONAL | D15: =+'B-CL-204'!D15/'C-CL-204'!$D$32 -> 2611.427123 | E15: =+'B-CL-204'!E15/'C-CL-204'!$E$32 -> 931.2992658 | F15: =+('B-CL-204'!D38+'B-CL-204'!E38)/'C-CL-204'!$D$32 -> 2592.492546
C17: MATERIALES Y SUMINISTROS | D17: =+'B-CL-204'!D17/'C-CL-204'!$D$32 -> 802.7602704 | E17: =+'B-CL-204'!E17/'C-CL-204'!$E$32 -> 178.6508062 | F17: =+('B-CL-204'!D40+'B-CL-204'!E40)/'C-CL-204'!$D$32 -> 185.2785241
C19: ENERGIA Y FLUÍDOS | D19: =+'B-CL-204'!D19/'C-CL-204'!$D$32 -> 766.8434194 | E19: =+'B-CL-204'!E19/'C-CL-204'!$E$32 -> 460.687725 | F19: =+('B-CL-204'!D42+'B-CL-204'!E42)/'C-CL-204'!$D$32 -> 216.5963433
C21: SERVICIOS CONTRATADOS | D21: =+'B-CL-204'!D21/'C-CL-204'!$D$32 -> 654.6813169 | E21: =+'B-CL-204'!E21/'C-CL-204'!$E$32 -> 1460.746753 | F21: =+('B-CL-204'!D44+'B-CL-204'!E44)/'C-CL-204'!$D$32 -> 2529.364151
C23: GASTOS VARIOS | D23: =+'B-CL-204'!D23/'C-CL-204'!$D$32 -> 208.4705865 | E23: =+'B-CL-204'!E23/'C-CL-204'!$E$32 -> 7.424639196 | F23: =+('B-CL-204'!D46+'B-CL-204'!E46)/'C-CL-204'!$D$32 -> 50.74689704
C25: AMORTIZACIÓN | D25: =+'B-CL-204'!D25/'C-CL-204'!$D$32 -> 877.4555187 | E25: =+'B-CL-204'!E25/'C-CL-204'!$E$32 -> 1211.575808 | F25: =+('B-CL-204'!D48+'B-CL-204'!E48)/'C-CL-204'!$D$32 -> 185.6067728
C29: TOTAL | D29: =SUM(D15:D25) -> 5921.638235 | E29: =SUM(E15:E25) -> 4250.384997 | F29: =SUM(F15:F25) -> 5760.085234
C32: 2.CONEXIONES (promedio anual) | D32: 40066 | E32: 20926
C35: 3.COBERTURAS COSTO/INGRESO
C37: 3.1 COSTO DE EXPLOTACION/ INGRESO DE EXPLOT. | D37: =+'A-CL-204'!F29/'A-CL-204'!F12 -> 1.373533888 | E37: =+'A-CL-204'!G29/'A-CL-204'!G12 -> 1.198219555
C39: 3.3 TOTAL | D39: =+('A-CL-204'!F29+'A-CL-204'!F33+'A-CL-204'!F37-'A-CL-204'!F39)/('A-CL-204'!F12+'A-CL-204'!F32+'A-CL-204'!F36) -> 1.422871388 | E39: =+('A-CL-204'!G29+'A-CL-204'!G33+'A-CL-204'!G37-'A-CL-204'!G39)/('A-CL-204'!G12+'A-CL-204'!G32+'A-CL-204'!G36) -> 1.248739357
C42: 4.M3 ELEVADOS | D42: 7347190
C44: 5.M3 FACTURADOS | D44: 3948890
C47: 6. COSTO PROMEDIO
C49: 6.1 COSTO VARIABLE/ M3ELEVADOS | D49: =+'A-CL-204'!F15/'C-CL-204'!D42 -> 10.40649354
C51: 6.2 COSTO VARIABLE / M3FACTURADOS | D51: =+'A-CL-204'!F15/'C-CL-204'!D44 -> 19.36201952
C53: 6.3 COSTO EXPLOTACION/M3FACT | D53: =+'A-CL-204'!F29/'C-CL-204'!D44 -> 129.7441211
C55: 6.4 TOTAL/M3FACT | D55: =+('A-CL-204'!F29+'A-CL-204'!F33+'A-CL-204'!F37-'A-CL-204'!F39)/'C-CL-204'!D44 -> 140.806367
C58: 7. INGRESOS PROMEDIO
C60: 7.1 VARIABLE/M3 FACT | D60: =+'A-CL-204'!F7/'C-CL-204'!D44 -> 44.72219375
C62: 7.2 FIJO/CONEXIONES | D62: =+('A-CL-204'!F8/12)/'C-CL-204'!D32 -> 333.0445031
C64: 7.3 INGRESO EXPLOTACION/M3FACT | D64: =+'A-CL-204'!F12/'C-CL-204'!D44 -> 94.46008009
C66: 7.4 TOTAL/M3FACT | D66: =+('A-CL-204'!F12+'A-CL-204'!F32+'A-CL-204'!F36)/'C-CL-204'!D44 -> 98.95930732

Sheet A-500-AG-SURESTE
B2: AMBITO GEOGRÁFICO SURESTE | C2: ESTADO DE RENDIMIENTO ECONÓMICO (a valores históricos) | H2: PERÍODO ENERO-DICIEMBRE-2024
C4: AGUA POTABLE
B5: CONCEPTOS | C5: USINA | D5: PERFORACIÓN | E5: MIXTO | F5: SUB-TOTAL | G5: ALCANTARILLADO | H5: OTROS INGRESOS | I5: TOTAL
B6: INGRESOS
B7: Ingresos Variables | C7: 303582630.1 | D7: 96026689.3 | E7: 42602098.34 | F7: 442211417.8 | I7: 442211417.8
B8: Ingresos Fijos | C8: 268404569.8 | D8: 120691666.2 | E8: 49822977.31 | F8: 438919213.3 | I8: 438919213.3
B9: INGRESOS DE EXPLOTACION | C9: 571987199.9 | D9: 216718355.5 | E9: 92425075.65 | F9: 881130631 | I9: 881130631
B10: Ingresos Alcantarillado | G10: 267585617.1 | I10: 267585617.1
B11: Otros Ingresos | C11: 52009069.32 | D11: 19294666.18 | E11: 6862130.28 | F11: 78165865.78 | G11: 4460027.36 | I11: 82625893.14
B12: TOTAL ING. DE EXPLOTACION | C12: 623996269.2 | D12: 236013021.7 | E12: 99287205.93 | F12: 959296496.8 | G12: 272045644.5 | I12: 1231342141
B13: COSTOS DE EXPLOTACION
B14: OPERATIVO
B15: Costo Operativo Var | C15: 102748910.7 | D15: 29239773.88 | E15: 22861039.19 | F15: 154849723.8 | G15: 33980401.79 | I15: 188830125.6
B16: Costo Operativo Fijo | C16: 231092027.1 | D16: 65374273.18 | E16: 76505339.1 | F16: 372971639.4 | G16: 124816718.5 | I16: 497788357.8
B17: TOTAL OPERATIVO | C17: 333840937.8 | D17: 94614047.06 | E17: 99366378.29 | F17: 527821363.2 | G17: 158797120.2 | I17: 686618483.4
B18: NO OPERATIVO
B19: COMERCIALIZACIÓN
B20: Comercial Propios | C20: 147543144.8 | D20: 47732217.9 | E20: 30903124.03 | F20: 226178486.7 | G20: 45037866.83 | I20: 271216353.5
B21: Comercial Asignados | C21: 60462265.36 | D21: 22868537.33 | E21: 9620457.25 | F21: 92951259.94 | G21: 26359925.93 | I21: 119311185.9
B22: TOTAL COMERCIALIZACIÓN | C22: 208005410.1 | D22: 70600755.23 | E22: 40523581.28 | F22: 319129746.6 | G22: 71397792.76 | I22: 390527539.4
B23: ADMINISTRACIÓN
B24: Administración Propios | C24: 51196662.65 | D24: 17900943.74 | E24: 11260507.64 | F24: 80358114.03 | G24: 15646713.65 | I24: 96004827.68
B25: Administ. Asignados | C25: 66050554.05 | D25: 24982185.94 | E25: 10509638.22 | F25: 101542378.2 | G25: 28796270.73 | I25: 130338648.9
B26: Gastos Fiscales | C26: 27575351.91 | D26: 10429777.28 | E26: 4387653.9 | F26: 42392783.09 | G26: 12022114.16 | I26: 54414897.25
B27: TOTAL ADMINISTRACIÓN | C27: 144822568.6 | D27: 53312906.96 | E27: 26157799.76 | F27: 224293275.3 | G27: 56465098.54 | I27: 280758373.9
B28: TOTAL NO OPERATIVO | C28: 352827978.7 | D28: 123913662.2 | E28: 66681381.04 | F28: 543423022 | G28: 127862891.3 | I28: 671285913.2
B29: COSTO DE EXPLOTACION | C29: 686668916.5 | D29: 218527709.2 | E29: 166047759.3 | F29: 1071244385 | G29: 286660011.5 | I29: 1357904397
B30: RESULTADO DE EXPLOTACION | C30: -62672647.31 | D30: 17485312.43 | E30: -66760553.4 | F30: -111947888.3 | G30: -14614367.08 | I30: -126562255.4
B31: DIVERSOS Y EXTRAORDINARIOS
B32: Ingresos Div. y Extr | C32: 7917383.55 | D32: 2994578.27 | E32: 1259774.64 | F32: 12171736.46 | G32: 5001126.54 | I32: 17172863
B33: Gtos. Div. y Extraor | C33: 843162.47 | D33: 318907.9 | E33: 134159.83 | F33: 1296230.2 | G33: 367596.13 | I33: 1663826.33
B34: RESULTADOS DIV. Y EXTRAORDINARIOS | C34: 7074221.08 | D34: 2675670.37 | E34: 1125614.81 | F34: 10875506.26 | G34: 4633530.41 | I34: 15509036.67
B35: FINANCIEROS
B36: Ingresos Financieros | C36: 21804177.3 | D36: 8246956 | E36: 3469373.06 | F36: 33520506.36 | G36: 9506036.75 | I36: 43026543.11
B37: Gastos Financieros | C37: 91722225.93 | D37: 34691937.72 | E37: 14594387.75 | F37: 141008551.4 | G37: 39988431.72 | I37: 180996983.1
B38: RESULTADO FINANCIERO | C38: -69918048.63 | D38: -26444981.72 | E38: -11125014.69 | F38: -107488045 | G38: -30482394.97 | I38: -137970440
B39: I.R.A.E. | C39: 19489013.93 | D39: 7371295.77 | E39: 3100995.68 | F39: 29961305.38 | G39: 8496687.51 | I39: 38457992.89
B40: RESULTADO NETO | C40: -106027460.9 | D40: 1087296.85 | E40: -73658957.6 | F40: -178599121.7 | G40: -31966544.13 | I40: -210565665.8

Sheet B-500-AG-SURESTE
B4: AMBITO GEOGRÁFICO SURESTE
D6: C O S T O S T O T A L E S
C10: C O N C E P T O | D10: C O S T O S O P E R A T I V O S
D13: AGUA | E13: ALCANTARILLADO | F13: TOTAL
C15: RETRIBUCIONES AL PERSONAL | D15: 214066153.9 | E15: 60224873.91 | F15: 274291027.8
C17: MATERIALES Y SUMINISTROS | D17: 65760860.96 | E17: 5078878.875 | F17: 70839739.84
C19: ENERGIA Y FLUÍDOS | D19: 71579591.26 | E19: 21186167.5 | F19: 92765758.76
C21: SERVICIOS CONTRATADOS | D21: 77433051.2 | E21: 21701276.24 | F21: 99134327.44
C23: GASTOS VARIOS | D23: 13035476.2 | E23: 77132.35533 | F23: 13112608.55
C25: AMORTIZACIÓN | D25: 85946230.13 | E25: 50528791.34 | F25: 136475021.5
C28: TOTAL | D28: 527821363.6 | E28: 158797120.2 | F28: 686618483.9 | H28: 0.6515397992
C33: C O N C E P T O | D33: C O S T O D E A D M I N I S T R A T I V O - C O M E R C I A L
D36: COMERCIALIZACIÓN | E36: ADMINISTRACIÓN | F36: TOTAL
C38: RETRIBUCIONES AL PERSONAL | D38: 146397831.5 | E38: 44373979.44 | F38: 190771811
C40: MATERIALES Y SUMINISTROS | D40: 8983770.44 | E40: 2930788.413 | F40: 11914558.85
C42: ENERGIA Y FLUÍDOS | D42: 366693.6261 | E42: 17079509.47 | F42: 17446203.1
C44: SERVICIOS CONTRATADOS | D44: 97403193.29 | E44: 26302693.42 | F44: 123705886.7
C46: GASTOS VARIOS | D46: -139651.3318 | E46: 395320.0321 | F46: 255668.7003
C48: AMORTIZACIÓN | D48: 18204516.08 | E48: 4922536.904 | F48: 23127052.98
C52: TOTAL | D52: 271216353.6 | E52: 96004827.68 | F52: 367221181.3 | H52: 0.3484602008
B57: C O S T O D E E X P L O T A C I Ó N | H57: 1053839665

Sheet C-500-AG-SURESTE
D4: COBERTURAS, COSTOS E INGRESOS PROMEDIO
D6: AMBITO GEOGRÁFICO SURESTE
C10: 1. COMPOSICIÓN DEL COSTO PROPIO POR CONEXIÓN | D10: OPERATIVOS | F10: ADMINISTRATIVO-COMERCIAL
D12: AGUA | E12: ALCANTARILLADO
D13: ($/conex.agua) | E13: ($/conex.desagüe) | F13: ($/conex.agua)
C15: RETRIBUCIONES AL PERSONAL | D15: =+'B-500-AG-SURESTE'!D15/'C-500-AG-SURESTE'!$D$32 -> 2276.355064 | E15: =+'B-500-AG-SURESTE'!E15/'C-500-AG-SURESTE'!$E$32 -> 1605.140563 | F15: =+('B-500-AG-SURESTE'!D38+'B-500-AG-SURESTE'!E38)/'C-500-AG-SURESTE'!$D$32 -> 2028.645679
C17: MATERIALES Y SUMINISTROS | D17: =+'B-500-AG-SURESTE'!D17/'C-500-AG-SURESTE'!$D$32 -> 699.2934949 | E17: =+'B-500-AG-SURESTE'!E17/'C-500-AG-SURESTE'!$E$32 -> 135.3645756 | F17: =+('B-500-AG-SURESTE'!D40+'B-500-AG-SURESTE'!E40)/'C-500-AG-SURESTE'!$D$32 -> 126.6980599
C19: ENERGIA Y FLUÍDOS | D19: =+'B-500-AG-SURESTE'!D19/'C-500-AG-SURESTE'!$D$32 -> 761.1692092 | E19: =+'B-500-AG-SURESTE'!E19/'C-500-AG-SURESTE'!$E$32 -> 564.6633128 | F19: =+('B-500-AG-SURESTE'!D42+'B-500-AG-SURESTE'!E42)/'C-500-AG-SURESTE'!$D$32 -> 185.5209338
C21: SERVICIOS CONTRATADOS | D21: =+'B-500-AG-SURESTE'!D21/'C-500-AG-SURESTE'!$D$32 -> 823.4142346 | E21: =+'B-500-AG-SURESTE'!E21/'C-500-AG-SURESTE'!$E$32 -> 578.3922238 | F21: =+('B-500-AG-SURESTE'!D44+'B-500-AG-SURESTE'!E44)/'C-500-AG-SURESTE'!$D$32 -> 1315.47429
C23: GASTOS VARIOS | D23: =+'B-500-AG-SURESTE'!D23/'C-500-AG-SURESTE'!$D$32 -> 138.6177671 | E23: =+'B-500-AG-SURESTE'!E23/'C-500-AG-SURESTE'!$E$32 -> 2.0557664 | F23: =+('B-500-AG-SURESTE'!D46+'B-500-AG-SURESTE'!E46)/'C-500-AG-SURESTE'!$D$32 -> 2.718751798
C25: AMORTIZACIÓN | D25: =+'B-500-AG-SURESTE'!D25/'C-500-AG-SURESTE'!$D$32 -> 913.9424083 | E25: =+'B-500-AG-SURESTE'!E25/'C-500-AG-SURESTE'!$E$32 -> 1346.716187 | F25: =+('B-500-AG-SURESTE'!D48+'B-500-AG-SURESTE'!E48)/'C-500-AG-SURESTE'!$D$32 -> 245.9304436
C29: TOTAL | D29: =SUM(D15:D25) -> 5612.792178 | E29: =SUM(E15:E25) -> 4232.332628 | F29: =SUM(F15:F25) -> 3904.988157
C32: 2.CONEXIONES (promedio anual) | D32: 94039 | E32: 37520
C35: 3.COBERTURAS COSTO/INGRESO
C37: 3.1 COSTO DE EXPLOTACIÓN/ INGRESO DE EXPLOT. | D37: =+'A-500-AG-SURESTE'!F29/'A-500-AG-SURESTE'!F12 -> 1.116697902 | E37: =+'A-500-AG-SURESTE'!G29/'A-500-AG-SURESTE'!G12 -> 1.053720276
C39: 3.3 TOTAL | D39: =+('A-500-AG-SURESTE'!F29+'A-500-AG-SURESTE'!F33+'A-500-AG-SURESTE'!F37-'A-500-AG-SURESTE'!F39)/('A-500-AG-SURESTE'!F12+'A-500-AG-SURESTE'!F32+'A-500-AG-SURESTE'!F36) -> 1.17771256 | E39: =+('A-500-AG-SURESTE'!G29+'A-500-AG-SURESTE'!G33+'A-500-AG-SURESTE'!G37-'A-500-AG-SURESTE'!G39)/('A-500-AG-SURESTE'!G12+'A-500-AG-SURESTE'!G32+'A-500-AG-SURESTE'!G36) -> 1.111555508
C42: 4.M3 ELEVADOS | D42: 13999370
C44: 5.M3 FACTURADOS | D44: 8473540
C47: 6. COSTO PROMEDIO
C49: 6.1 COSTO VARIABLE/ M3ELEVADOS | D49: =+'A-500-AG-SURESTE'!F15/'C-500-AG-SURESTE'!D42 -> 11.06119231
C51: 6.2 COSTO VARIABLE / M3FACTURADOS | D51: =+'A-500-AG-SURESTE'!F15/'C-500-AG-SURESTE'!D44 -> 18.27450201
C53: 6.3 COSTO EXPLOTACIÓN/M3FACT | D53: =+'A-500-AG-SURESTE'!F29/'C-500-AG-SURESTE'!D44 -> 126.4222964
C55: 6.4 TOTAL/M3FACT | D55: =+('A-500-AG-SURESTE'!F29+'A-500-AG-SURESTE'!F33+'A-500-AG-SURESTE'!F37-'A-500-AG-SURESTE'!F39)/'C-500-AG-SURESTE'!D44 -> 139.6804478
C58: 7. INGRESOS PROMEDIO
C60: 7.1 VARIABLE/M3 FACT | D60: =+'A-500-AG-SURESTE'!F7/'C-500-AG-SURESTE'!D44 -> 52.18732876
C62: 7.2 FIJO/CONEXIONES | D62: =+('A-500-AG-SURESTE'!F8/12)/'C-500-AG-SURESTE'!D32 -> 388.9514043
C64: 7.3 INGRESO EXPLOTACIÓN/M3FACT | D64: =+'A-500-AG-SURESTE'!F12/'C-500-AG-SURESTE'!D44 -> 113.21083
C66: 7.4 TOTAL/M3FACT | D66: =+('A-500-AG-SURESTE'!F12+'A-500-AG-SURESTE'!F32+'A-500-AG-SURESTE'!F36)/'C-500-AG-SURESTE'!D44 -> 118.6031741

Sheet A-ROC-502
B2: ROCHA | C2: ESTADO DE RENDIMIENTO ECONÓMICO (a valores históricos) | H2: PERÍODO ENERO-DICIEMBRE-2024
C4: AGUA POTABLE
B5: CONCEPTOS | C5: USINA | D5: PERFORACIÓN | E5: MIXTO | F5: SUB-TOTAL | G5: ALCANTARILLADO | H5: OTROS INGRESOS | I5: TOTAL
B6: INGRESOS
B7: Ingresos Variables | C7: 95172254.43 | D7: 89761300.62 | E7: 22281444.78 | F7: 207214999.8 | I7: 207214999.8
B8: Ingresos Fijos | C8: 88395805.03 | D8: 114452803.1 | E8: 32506163.61 | F8: 235354771.8 | I8: 235354771.8
B9: INGRESOS DE EXPLOTACIÓN | C9: 183568059.5 | D9: 204214103.7 | E9: 54787608.39 | F9: 442569771.6 | I9: 442569771.6
B10: Ingresos Alcantarillado | G10: 86263416.87 | I10: 86263416.87
B11: Otros Ingresos | C11: 19650615.19 | D11: 18195321.32 | E11: 4259445.96 | F11: 42105382.47 | G11: 1954389.94 | I11: 44059772.41
B12: TOTAL ING. DE EXPLOTACIÓN | C12: 203218674.7 | D12: 222409425.1 | E12: 59047054.35 | F12: 484675154.1 | G12: 88217806.81 | I12: 572892960.9
B13: COSTOS DE EXPLOTACIÓN
B14: OPERATIVO
B15: Costo Operativo Var | C15: 32587689.97 | D15: 27928508.34 | E15: 11856769.66 | F15: 72372967.97 | G15: 4740347.2 | I15: 77113315.17
B16: Costo Operativo Fijo | C16: 75157942.16 | D16: 57286088.65 | E16: 37707471.52 | F16: 170151502.3 | G16: 35447187.37 | I16: 205598689.7
B17: TOTAL OPERATIVO | C17: 107745632.1 | D17: 85214596.99 | E17: 49564241.18 | F17: 242524470.3 | G17: 40187534.57 | I17: 282712004.9
B18: NO OPERATIVO
B19: COMERCIALIZACIÓN
B20: Comercial Propios | C20: 41068127.13 | D20: 43562384.45 | E20: 20958922.66 | F20: 105589434.2 | G20: 13449895.26 | I20: 119039329.5
B21: Comercial Asignados | C21: 19690921.35 | D21: 21550413.52 | E21: 5721378.15 | F21: 46962713.02 | G21: 8547885.08 | I21: 55510598.1
B22: TOTAL COMERCIALIZACIÓN | C22: 60759048.48 | D22: 65112797.97 | E22: 26680300.81 | F22: 152552147.3 | G22: 21997780.34 | I22: 174549927.6
B23: ADMINISTRACIÓN
B24: Administración Propios | C24: 15534709.76 | D24: 16478204.58 | E24: 7928064.98 | F24: 39940979.32 | G24: 5087648.99 | I24: 45028628.31
B25: Administ. Asignados | C25: 21510875.52 | D25: 23542233.26 | E25: 6250182.94 | F25: 51303291.72 | G25: 9337932.59 | I25: 60641224.31
B26: Gastos Fiscales | C26: 8980544.83 | D26: 9828613.47 | E26: 2609379.86 | F26: 21418538.16 | G26: 3898480.15 | I26: 25317018.31
B27: TOTAL ADMINISTRACIÓN | C27: 46026130.11 | D27: 49849051.31 | E27: 16787627.78 | F27: 112662809.2 | G27: 18324061.73 | I27: 130986870.9
B28: TOTAL NO OPERATIVO | C28: 106785178.6 | D28: 114961849.3 | E28: 43467928.59 | F28: 265214956.5 | G28: 40321842.07 | I28: 305536798.5
B29: COSTO DE EXPLOTACIÓN | C29: 214530810.7 | D29: 200176446.3 | E29: 93032169.77 | F29: 507739426.8 | G29: 80509376.64 | I29: 588248803.4
B30: RESULTADO DE EXPLOTACIÓN | C30: -11312136.07 | D30: 22232978.79 | E30: -33985115.42 | F30: -23064272.7 | G30: 7708430.17 | I30: -15355842.53
B31: DIVERSOS Y EXTRAORDINARIOS
B32: Ingresos Div. y Extr | C32: 2578477.22 | D32: 2821973.41 | E32: 749200.16 | F32: 6149650.79 | G32: 1621739.26 | I32: 7771390.05
B33: Gtos. Div. y Extraor | C33: 274595.19 | D33: 300526.28 | E33: 79786.18 | F33: 654907.65 | G33: 119202.55 | I33: 774110.2
B34: RESULTADOS DIV. Y EXTRAORDINARIOS | C34: 2303882.03 | D34: 2521447.13 | E34: 669413.98 | F34: 5494743.14 | G34: 1502536.71 | I34: 6997279.85
B35: FINANCIEROS
B36: Ingresos Financieros | C36: 7101029.66 | D36: 7771608.2 | E36: 2063269.45 | F36: 16935907.31 | G36: 3082577.26 | I36: 20018484.57
B37: Gastos Financieros | C37: 29871443.36 | D37: 32692322.88 | E37: 8679422.39 | F37: 71243188.63 | G37: 12967278.81 | I37: 84210467.44
B38: RESULTADO FINANCIERO | C38: -22770413.7 | D38: -24920714.68 | E38: -6616152.94 | F38: -54307281.32 | G38: -9884701.55 | I38: -64191982.87
B39: I.R.A.E. | C39: 6347043.69 | D39: 6946420.33 | E39: 1844191.88 | F39: 15137655.9 | G39: 2755269.78 | I39: 17892925.68
B40: RESULTADO NETO | C40: -25431624.05 | D40: 6780131.57 | E40: -38087662.5 | F40: -56739154.98 | G40: 2081535.11 | I40: -54657619.87

Sheet B-ROC-502
B3: R O C H A
D5: C O S T O S T O T A L E S
C9: C O N C E P T O | D9: C O S T O S O P E R A T I V O S
D12: AGUA | E12: ALCANTARILLADO | F12: TOTAL
C14: RETRIBUCIONES AL PERSONAL | D14: 104034881.7 | E14: 15896640.68 | F14: 119931522.3
C16: MATERIALES Y SUMINISTROS | D16: 25878116.57 | E16: 713406.1993 | F16: 26591522.77
C18: ENERGIA Y FLUÍDOS | D18: 36188960.67 | E18: 3242664.835 | F18: 39431625.5
C20: SERVICIOS CONTRATADOS | D20: 24751138.26 | E20: 3434476.443 | F20: 28185614.71
C22: GASTOS VARIOS | D22: 9552898.165 | E22: 846946.7626 | F22: 10399844.93
C24: AMORTIZACIÓN | D24: 42118474.97 | E24: 16053399.65 | F24: 58171874.61
C27: TOTAL | D27: 242524470.3 | E27: 40187534.57 | F27: 282712004.9 | H27: 0.6327768219
C32: C O N C E P T O | D32: C O S T O D E A D M I N I S T R A T I V O - C O M E R C I A L
D35: COMERCIALIZACIÓN | E35: ADMINISTRACIÓN | F35: TOTAL
C37: RETRIBUCIONES AL PERSONAL | D37: 62555468.3 | E37: 18315092.71 | F37: 80870561.02
C39: MATERIALES Y SUMINISTROS | D39: 3364872.139 | E39: 1840894.086 | F39: 5205766.225
C41: ENERGIA Y FLUÍDOS | D41: 160819.2447 | E41: 9308255.901 | F41: 9469075.146
C43: SERVICIOS CONTRATADOS | D43: 43501079.16 | E43: 13952152.52 | F43: 57453231.68
C45: GASTOS VARIOS | D45: 712148.9847 | E45: 159384.6219 | F45: 871533.6065
C47: AMORTIZACIÓN | D47: 8744941.665 | E47: 1452848.466 | F47: 10197790.13
C51: TOTAL | D51: 119039329.5 | E51: 45028628.31 | F51: 164067957.8 | H51: 0.3672231781
B56: C O S T O D E E X P L O T A C I Ó N | H56: 446779962.7

Sheet C-ROC-502
D4: COBERTURAS, COSTOS E INGRESOS PROMEDIO
D6: R O C H A
C10: 1. COMPOSICIÓN DEL COSTO PROPIO POR CONEXIÓN | D10: OPERATIVOS | F10: ADMINISTRATIVO-COMERCIAL
D12: AGUA | E12: ALCANTARILLADO
D13: ($/conex.agua) | E13: ($/conex.desagüe) | F13: ($/conex.agua)
C15: RETRIBUCIONES AL PERSONAL | D15: =+'B-ROC-502'!D14/'C-ROC-502'!$D$32 -> 2351.708524 | E15: =+'B-ROC-502'!E14/'C-ROC-502'!$E$32 -> 1410.527123 | F15: =+('B-ROC-502'!D37+'B-ROC-502'!E37)/'C-ROC-502'!$D$32 -> 1828.07905
C17: MATERIALES Y SUMINISTROS | D17: =+'B-ROC-502'!D16/'C-ROC-502'!$D$32 -> 584.9748309 | E17: =+'B-ROC-502'!E16/'C-ROC-502'!$E$32 -> 63.30134865 | F17: =+('B-ROC-502'!D39+'B-ROC-502'!E39)/'C-ROC-502'!$D$32 -> 117.6763467
C19: ENERGIA Y FLUÍDOS | D19: =+'B-ROC-502'!D18/'C-ROC-502'!$D$32 -> 818.051464 | E19: =+'B-ROC-502'!E18/'C-ROC-502'!$E$32 -> 287.7253625 | F19: =+('B-ROC-502'!D41+'B-ROC-502'!E41)/'C-ROC-502'!$D$32 -> 214.0484458
C21: SERVICIOS CONTRATADOS | D21: =+'B-ROC-502'!D20/'C-ROC-502'!$D$32 -> 559.4994861 | E21: =+'B-ROC-502'!E20/'C-ROC-502'!$E$32 -> 304.745026 | F21: =+('B-ROC-502'!D43+'B-ROC-502'!E43)/'C-ROC-502'!$D$32 -> 1298.730315
C23: GASTOS VARIOS | D23: =+'B-ROC-502'!D22/'C-ROC-502'!$D$32 -> 215.9432652 | E23: =+'B-ROC-502'!E22/'C-ROC-502'!$E$32 -> 75.15055568 | F23: =+('B-ROC-502'!D45+'B-ROC-502'!E45)/'C-ROC-502'!$D$32 -> 19.70101737
C25: AMORTIZACIÓN | D25: =+'B-ROC-502'!D24/'C-ROC-502'!$D$32 -> 952.0881361 | E25: =+'B-ROC-502'!E24/'C-ROC-502'!$E$32 -> 1424.436526 | F25: =+('B-ROC-502'!D47+'B-ROC-502'!E47)/'C-ROC-502'!$D$32 -> 230.5210482
C29: TOTAL | D29: =SUM(D15:D25) -> 5482.265706 | E29: =SUM(E15:E25) -> 3565.885942 | F29: =SUM(F15:F25) -> 3708.756223
C32: 2.CONEXIONES (promedio anual) | D32: 44238 | E32: 11270
C35: 3.COBERTURAS COSTO/INGRESO
C37: 3.1 COSTO DE EXPLOTACIÓN/ INGRESO DE EXPLOT. | D37: =+'A-ROC-502'!F29/'A-ROC-502'!F12 -> 1.047587075 | E37: =+'A-ROC-502'!G29/'A-ROC-502'!G12 -> 0.9126204737
C39: 3.3 TOTAL | D39: =+('A-ROC-502'!F29+'A-ROC-502'!F33+'A-ROC-502'!F37-'A-ROC-502'!F39)/('A-ROC-502'!F12+'A-ROC-502'!F32+'A-ROC-502'!F36) -> 1.111743886 | E39: =+('A-ROC-502'!G29+'A-ROC-502'!G33+'A-ROC-502'!G37-'A-ROC-502'!G39)/('A-ROC-502'!G12+'A-ROC-502'!G32+'A-ROC-502'!G36) -> 0.9775991439
C42: 4.M3 ELEVADOS | D42: 6704950
C44: 5.M3 FACTURADOS | D44: 3801050
C47: 6. COSTO PROMEDIO
C49: 6.1 COSTO VARIABLE/ M3ELEVADOS | D49: =+'A-ROC-502'!F15/'C-ROC-502'!D42 -> 10.79396088
C51: 6.2 COSTO VARIABLE / M3FACTURADOS | D51: =+'A-ROC-502'!F15/'C-ROC-502'!D44 -> 19.04025676
C53: 6.3 COSTO EXPLOTACIÓN/M3FACT | D53: =+'A-ROC-502'!F29/'C-ROC-502'!D44 -> 133.5787287
C55: 6.4 TOTAL/M3FACT | D55: =+('A-ROC-502'!F29+'A-ROC-502'!F33+'A-ROC-502'!F37-'A-ROC-502'!F39)/'C-ROC-502'!D44 -> 148.5115605
C58: 7. INGRESOS PROMEDIO
C60: 7.1 VARIABLE/M3 FACT | D60: =+'A-ROC-502'!F7/'C-ROC-502'!D44 -> 54.5151997
C62: 7.2 FIJO/CONEXIONES | D62: =+('A-ROC-502'!F8/12)/'C-ROC-502'!D32 -> 443.3495557
C64: 7.3 INGRESO EXPLOTACIÓN/M3FACT | D64: =+'A-ROC-502'!F12/'C-ROC-502'!D44 -> 127.5108599
C66: 7.4 TOTAL/M3FACT | D66: =+('A-ROC-502'!F12+'A-ROC-502'!F32+'A-ROC-502'!F36)/'C-ROC-502'!D44 -> 133.5843286

Sheet A-TT-203
B2: TREINTA Y TRES | C2: ESTADO DE RENDIMIENTO ECONÓMICO (a valores históricos) | H2: PERÍODO ENERO-DICIEMBRE-2024
C4: AGUA POTABLE
B5: CONCEPTOS | C5: USINA | D5: PERFORACIÓN | E5: MIXTO | F5: SUB-TOTAL | G5: ALCANTARILLADO | H5: OTROS INGRESOS | I5: TOTAL
B6: INGRESOS
B7: Ingresos Variables | C7: 98440684.98 | E7: 12528144.52 | F7: 110968829.5 | I7: 110968829.5
B8: Ingresos Fijos | C8: 83802703.14 | E8: 9165440.57 | F8: 92968143.71 | I8: 92968143.71
B9: INGRESOS DE EXPLOTACIÓN | C9: 182243388.1 | E9: 21693585.09 | F9: 203936973.2 | I9: 203936973.2
B10: Ingresos Alcantarillado | G10: 98825018.12 | I10: 98825018.12
B11: Otros Ingresos | C11: 16611681.95 | E11: 1607793.73 | F11: 18219475.68 | G11: 1487307.88 | I11: 19706783.56
B12: TOTAL ING. DE EXPLOTACIÓN | C12: 198855070.1 | E12: 23301378.82 | F12: 222156448.9 | G12: 100312326 | I12: 322468774.9
B13: COSTOS DE EXPLOTACIÓN
B14: OPERATIVO
B15: Costo Operativo Var | C15: 34160023.36 | E15: 3973392 | F15: 38133415.36 | G15: 18026449.55 | I15: 56159864.91
B16: Costo Operativo Fijo | C16: 76322809.72 | E16: 22381293.48 | F16: 98704103.2 | G16: 57347281.95 | I16: 156051385.2
B17: TOTAL OPERATIVO | C17: 110482833.1 | E17: 26354685.48 | F17: 136837518.6 | G17: 75373731.5 | I17: 212211250.1
B18: NO OPERATIVO
B19: COMERCIALIZACIÓN
B20: Comercial Propios | C20: 51204934.46 | E20: 4639667.76 | F20: 55844602.22 | G20: 16771163.36 | I20: 72615765.58
B21: Comercial Asignados | C21: 19268108.77 | E21: 2257792.61 | F21: 21525901.38 | G21: 9719786.45 | I21: 31245687.83
B22: TOTAL COMERCIALIZACIÓN | C22: 70473043.23 | E22: 6897460.37 | F22: 77370503.6 | G22: 26490949.81 | I22: 103861453.4
B23: ADMINISTRACIÓN
B24: Administración Propios | C24: 16803330.34 | E24: 1522546.03 | F24: 18325876.37 | G24: 5503598.41 | I24: 23829474.78
B25: Administ. Asignados | C25: 21048984.03 | E25: 2466471.45 | F25: 23515455.48 | G25: 10618147.87 | I25: 34133603.35
B26: Gastos Fiscales | C26: 8787710.43 | E26: 1029723.68 | F26: 9817434.11 | G26: 4432955.49 | I26: 14250389.6
B27: TOTAL ADMINISTRACIÓN | C27: 46640024.8 | E27: 5018741.16 | F27: 51658765.96 | G27: 20554701.77 | I27: 72213467.73
B28: TOTAL NO OPERATIVO | C28: 117113068 | E28: 11916201.53 | F28: 129029269.6 | G28: 47045651.58 | I28: 176074921.1
B29: COSTO DE EXPLOTACIÓN | C29: 227595901.1 | E29: 38270887.01 | F29: 265866788.1 | G29: 122419383.1 | I29: 388286171.2
B30: RESULTADO DE EXPLOTACIÓN | C30: -28740831.04 | E30: -14969508.19 | F30: -43710339.23 | G30: -22107057.08 | I30: -65817396.31
B31: DIVERSOS Y EXTRAORDINARIOS
B32: Ingresos Div. y Extr | C32: 2523111 | E32: 295652.34 | F32: 2818763.34 | G32: 1844077.16 | I32: 4662840.5
B33: Gtos. Div. y Extraor | C33: 268698.91 | E33: 31485.53 | F33: 300184.44 | G33: 135545.05 | I33: 435729.49
B34: RESULTADOS DIV. Y EXTRAORDINARIOS | C34: 2254412.09 | E34: 264166.81 | F34: 2518578.9 | G34: 1708532.11 | I34: 4227111.01
B35: FINANCIEROS
B36: Ingresos Financieros | C36: 6948553.08 | E36: 814215.44 | F36: 7762768.52 | G36: 3505193.61 | I36: 11267962.13
B37: Gastos Financieros | C37: 29230029.92 | E37: 3425107.57 | F37: 32655137.49 | G37: 14745071.85 | I37: 47400209.34
B38: RESULTADO FINANCIERO | C38: -22281476.84 | E38: -2610892.13 | F38: -24892368.97 | G38: -11239878.24 | I38: -36132247.21
B39: I.R.A.E. | C39: 6210757.04 | E39: 727762.2 | F39: 6938519.24 | G39: 3133012.83 | I39: 10071532.07
B40: RESULTADO NETO | C40: -42557138.75 | E40: -16588471.31 | F40: -59145610.06 | G40: -28505390.38 | I40: -87651000.44

Sheet B-TT-203
B4: T R E I N T A Y T R E S
E6: C O S T O S T O T A L E S
C10: C O N C E P T O | D10: C O S T O S O P E R A T I V O S
D13: AGUA | E13: ALCANTARILLADO | F13: TOTAL
C15: RETRIBUCIONES AL PERSONAL | D15: 58071576.65 | E15: 28573763.8 | F15: 86645340.44
C17: MATERIALES Y SUMINISTROS | D17: 24764105.14 | E17: 1904289.066 | F17: 26668394.21
C19: ENERGIA Y FLUÍDOS | D19: 17724299.19 | E19: 11921609.32 | F19: 29645908.51
C21: SERVICIOS CONTRATADOS | D21: 12946935.12 | E21: 8691073.749 | F21: 21638008.87
C23: GASTOS VARIOS | D23: -1430983.539 | E23: -1992076.465 | F23: -3423060.004
C25: AMORTIZACIÓN | D25: 24761586.49 | E25: 26275072.01 | F25: 51036658.5
C28: TOTAL | D28: 136837519 | E28: 75373731.48 | F28: 212211250.5 | H28: 0.6875321167
C33: C O N C E P T O | D33: C O S T O D E A D M I N I S T R A T I V O - C O M E R C I A L
D36: COMERCIALIZACIÓN | E36: ADMINISTRACIÓN | F36: TOTAL
C38: RETRIBUCIONES AL PERSONAL | D38: 39673607.29 | E38: 12811022.77 | F38: 52484630.06
C40: MATERIALES Y SUMINISTROS | D40: 2164879.817 | E40: 563168.1272 | F40: 2728047.944
C42: ENERGIA Y FLUÍDOS | D42: 102025.3479 | E42: 3372468.808 | F42: 3474494.156
C44: SERVICIOS CONTRATADOS | D44: 26251132.99 | E44: 5505172.004 | F44: 31756304.99
C46: GASTOS VARIOS | D46: 529814.2926 | E46: 107657.0647 | F46: 637471.3573
C48: AMORTIZACIÓN | D48: 3894305.848 | E48: 1469986.005 | F48: 5364291.854
C52: TOTAL | D52: 72615765.58 | E52: 23829474.78 | F52: 96445240.36 | H52: 0.3124678833
B57: C O S T O D E E X P L O T A C I Ó N | H57: 308656490.9

Sheet C-TT-203
D4: COBERTURAS, COSTOS E INGRESOS PROMEDIO
D6: T R E I N T A Y T R E S
C10: 1. COMPOSICIÓN DEL COSTO PROPIO POR CONEXIÓN | D10: OPERATIVOS | F10: ADMINISTRATIVO-COMERCIAL
D12: AGUA | E12: ALCANTARILLADO
D13: ($/conex.agua) | E13: ($/conex.desagüe) | F13: ($/conex.agua)
C15: RETRIBUCIONES AL PERSONAL | D15: =+'B-TT-203'!D15/'C-TT-203'!$D$32 -> 2401.537432 | E15: =+'B-TT-203'!E15/'C-TT-203'!$E$32 -> 1967.348099 | F15: =+('B-TT-203'!D38+'B-TT-203'!E38)/'C-TT-203'!$D$32 -> 2170.49047
C17: MATERIALES Y SUMINISTROS | D17: =+'B-TT-203'!D17/'C-TT-203'!$D$32 -> 1024.114186 | E17: =+'B-TT-203'!E17/'C-TT-203'!$E$32 -> 131.1132654 | F17: =+('B-TT-203'!D40+'B-TT-203'!E40)/'C-TT-203'!$D$32 -> 112.8178299
C19: ENERGIA Y FLUÍDOS | D19: =+'B-TT-203'!D19/'C-TT-203'!$D$32 -> 732.984541 | E19: =+'B-TT-203'!E19/'C-TT-203'!$E$32 -> 820.8213524 | F19: =+('B-TT-203'!D42+'B-TT-203'!E42)/'C-TT-203'!$D$32 -> 143.6869507
C21: SERVICIOS CONTRATADOS | D21: =+'B-TT-203'!D21/'C-TT-203'!$D$32 -> 535.4176883 | E21: =+'B-TT-203'!E21/'C-TT-203'!$E$32 -> 598.3939513 | F21: =+('B-TT-203'!D44+'B-TT-203'!E44)/'C-TT-203'!$D$32 -> 1313.275092
C23: GASTOS VARIOS | D23: =+'B-TT-203'!D23/'C-TT-203'!$D$32 -> -59.17801326 | E23: =+'B-TT-203'!E23/'C-TT-203'!$E$32 -> -137.1575644 | F23: =+('B-TT-203'!D46+'B-TT-203'!E46)/'C-TT-203'!$D$32 -> 26.36248945
C25: AMORTIZACIÓN | D25: =+'B-TT-203'!D25/'C-TT-203'!$D$32 -> 1024.010028 | E25: =+'B-TT-203'!E25/'C-TT-203'!$E$32 -> 1809.079593 | F25: =+('B-TT-203'!D48+'B-TT-203'!E48)/'C-TT-203'!$D$32 -> 221.8391238
C29: TOTAL | D29: =SUM(D15:D25) -> 5658.885862 | E29: =SUM(E15:E25) -> 5189.598697 | F29: =SUM(F15:F25) -> 3988.471956
C32: 2.CONEXIONES (promedio anual) | D32: 24181 | E32: 14524
C35: 3.COBERTURAS COSTO/INGRESO
C37: 3.1 COSTO DE EXPLOTACIÓN/ INGRESO DE EXPLOT. | D37: =+'A-TT-203'!F29/'A-TT-203'!F12 -> 1.196754762 | E37: =+'A-TT-203'!G29/'A-TT-203'!G12 -> 1.22038226
C39: 3.3 TOTAL | D39: =+('A-TT-203'!F29+'A-TT-203'!F33+'A-TT-203'!F37-'A-TT-203'!F39)/('A-TT-203'!F12+'A-TT-203'!F32+'A-TT-203'!F36) -> 1.2541296 | E39: =+('A-TT-203'!G29+'A-TT-203'!G33+'A-TT-203'!G37-'A-TT-203'!G39)/('A-TT-203'!G12+'A-TT-203'!G32+'A-TT-203'!G36) -> 1.269780045
C42: 4.M3 ELEVADOS | D42: 3937750
C44: 5.M3 FACTURADOS | D44: 2277720
C47: 6. COSTO PROMEDIO
C49: 6.1 COSTO VARIABLE/ M3ELEVADOS | D49: =+'A-TT-203'!F15/'C-TT-203'!$D$42 -> 9.684062056
C51: 6.2 COSTO VARIABLE / M3FACTURADOS | D51: =+'A-TT-203'!F15/'C-TT-203'!$D$44 -> 16.7419241
C53: 6.3 COSTO EXPLOTACIÓN/M3FACT | D53: =+'A-TT-203'!F29/'C-TT-203'!D44 -> 116.7249654
C55: 6.4 TOTAL/M3FACT | D55: =+('A-TT-203'!F29+'A-TT-203'!F33+'A-TT-203'!F37-'A-TT-203'!F39)/'C-TT-203'!$D$44 -> 128.147266
C58: 7. INGRESOS PROMEDIO
C60: 7.1 VARIABLE/M3 FACT | D60: =+'A-TT-203'!F7/'C-TT-203'!D44 -> 48.71925851
C62: 7.2 FIJO/CONEXIONES | D62: =+('A-TT-203'!F8/12)/'C-TT-203'!D32 -> 320.3897816
C64: 7.3 INGRESO EXPLOTACIÓN/M3FACT | D64: =+'A-TT-203'!F12/'C-TT-203'!D44 -> 97.53457356
C66: 7.4 TOTAL/M3FACT | D66: =+('A-TT-203'!F12+'A-TT-203'!F32+'A-TT-203'!F36)/'C-TT-203'!D44 -> 102.180242

Sheet A-LAV-503
B2: LAVALLEJA | C2: ESTADO DE RENDIMIENTO ECONÓMICO (a valores históricos) | H2: PERÍODO ENERO-DICIEMBRE-2024
C4: AGUA POTABLE
B5: CONCEPTOS | C5: USINA | D5: PERFORACIÓN | E5: MIXTO | F5: SUB-TOTAL | G5: ALCANTARILLADO | H5: OTROS INGRESOS | I5: TOTAL
B6: INGRESOS
B7: Ingresos Variables | C7: 109969690.7 | D7: 6265388.68 | E7: 7792509.04 | F7: 124027588.5 | I7: 124027588.5
B8: Ingresos Fijos | C8: 96206061.59 | D8: 6238863.08 | E8: 8151373.13 | F8: 110596297.8 | I8: 110596297.8
B9: INGRESOS DE EXPLOTACIÓN | C9: 206175752.3 | D9: 12504251.76 | E9: 15943882.17 | F9: 234623886.2 | I9: 234623886.2
B10: Ingresos Alcantarillado | G10: 82497182.11 | I10: 82497182.11
B11: Otros Ingresos | C11: 15746772.18 | D11: 1099344.86 | E11: 994890.59 | F11: 17841007.63 | G11: 1018329.54 | I11: 18859337.17
B12: TOTAL ING. DE EXPLOTACIÓN | C12: 221922524.5 | D12: 13603596.62 | E12: 16938772.76 | F12: 252464893.9 | G12: 83515511.65 | I12: 335980405.5
B13: COSTOS DE EXPLOTACIÓN
B14: OPERATIVO
B15: Costo Operativo Var | C15: 36001197.39 | D15: 1311265.54 | E15: 7030877.53 | F15: 44343340.46 | G15: 11213605.04 | I15: 55556945.5
B16: Costo Operativo Fijo | C16: 79611275.21 | D16: 8088184.53 | E16: 16416574.1 | F16: 104116033.8 | G16: 32022249.13 | I16: 136138283
B17: TOTAL OPERATIVO | C17: 115612472.6 | D17: 9399450.07 | E17: 23447451.63 | F17: 148459374.3 | G17: 43235854.17 | I17: 191695228.5
B18: NO OPERATIVO
B19: COMERCIALIZACIÓN
B20: Comercial Propios | C20: 55270083.16 | D20: 4169833.45 | E20: 5304533.61 | F20: 64744450.22 | G20: 14816808.21 | I20: 79561258.43
B21: Comercial Asignados | C21: 21503235.24 | D21: 1318123.81 | E21: 1641286.49 | F21: 24462645.54 | G21: 8092254.4 | I21: 32554899.94
B22: TOTAL COMERCIALIZACIÓN | C22: 76773318.4 | D22: 5487957.26 | E22: 6945820.1 | F22: 89207095.76 | G22: 22909062.61 | I22: 112116158.4
B23: ADMINISTRACIÓN
B24: Administración Propios | C24: 18858622.55 | D24: 1422739.16 | E24: 1809896.63 | F24: 22091258.34 | G24: 5055466.25 | I24: 27146724.59
B25: Administ. Asignados | C25: 23490694.5 | D25: 1439952.68 | E25: 1792983.83 | F25: 26723631.01 | G25: 8840190.27 | I25: 35563821.28
B26: Gastos Fiscales | C26: 9807096.65 | D26: 601163.81 | E26: 748550.36 | F26: 11156810.82 | G26: 3690678.52 | I26: 14847489.34
B27: TOTAL ADMINISTRACIÓN | C27: 52156413.7 | D27: 3463855.65 | E27: 4351430.82 | F27: 59971700.17 | G27: 17586335.04 | I27: 77558035.21
B28: TOTAL NO OPERATIVO | C28: 128929732.1 | D28: 8951812.91 | E28: 11297250.92 | F28: 149178795.9 | G28: 40495397.65 | I28: 189674193.6
B29: COSTO DE EXPLOTACIÓN | C29: 244542204.7 | D29: 18351262.98 | E29: 34744702.55 | F29: 297638170.2 | G29: 83731251.82 | I29: 381369422.1
B30: RESULTADO DE EXPLOTACIÓN | C30: -22619680.2 | D30: -4747666.36 | E30: -17805929.79 | F30: -45173276.35 | G30: -215740.17 | I30: -45389016.52
B31: DIVERSOS Y EXTRAORDINARIOS
B32: Ingresos Div. y Extr | C32: 2815795.33 | D32: 172604.86 | E32: 214922.14 | F32: 3203322.33 | G32: 1535310.12 | I32: 4738632.45
B33: Gtos. Div. y Extraor | C33: 299868.37 | D33: 18381.62 | E33: 22888.12 | F33: 341138.11 | G33: 112848.53 | I33: 453986.64
B34: RESULTADOS DIV. Y EXTRAORDINARIOS | C34: 2515926.96 | D34: 154223.24 | E34: 192034.02 | F34: 2862184.22 | G34: 1422461.59 | I34: 4284645.81
B35: FINANCIEROS
B36: Ingresos Financieros | C36: 7754594.56 | D36: 475347.8 | E36: 591888.17 | F36: 8821830.53 | G36: 2918265.88 | I36: 11740096.41
B37: Gastos Financieros | C37: 32620752.65 | D37: 1999614.84 | E37: 2489857.79 | F37: 37110225.28 | G37: 12276081.06 | I37: 49386306.34
B38: RESULTADO FINANCIERO | C38: -24866158.09 | D38: -1524267.04 | E38: -1897969.62 | F38: -28288394.75 | G38: -9357815.18 | I38: -37646209.93
B39: I.R.A.E. | C39: 6931213.2 | D39: 424875.44 | E39: 529041.6 | F39: 7885130.24 | G39: 2608404.9 | I39: 10493535.14
B40: RESULTADO NETO | C40: -38038698.13 | D40: -5692834.72 | E40: -18982823.79 | F40: -62714356.64 | G40: -5542688.86 | I40: -68257045.5

Sheet B-LAV-503
B4: L A V A L L E J A
D6: C O S T O S T O T A L E S
C10: C O N C E P T O | D10: C O S T O S O P E R A T I V O S
D13: AGUA | E13: ALCANTARILLADO | F13: TOTAL
C15: RETRIBUCIONES AL PERSONAL | D15: 51959695.57 | E15: 15754469.43 | F15: 67714165
C17: MATERIALES Y SUMINISTROS | D17: 15118639.25 | E17: 2461183.609 | F17: 17579822.86
C19: ENERGIA Y FLUÍDOS | D19: 17666331.41 | E19: 6021893.338 | F19: 23688224.75
C21: SERVICIOS CONTRATADOS | D21: 39734977.82 | E21: 9575726.045 | F21: 49310703.86
C23: GASTOS VARIOS | D23: 4913561.571 | E23: 1222262.058 | F23: 6135823.629
C25: AMORTIZACIÓN | D25: 19066168.68 | E25: 8200319.682 | F25: 27266488.36
C28: TOTAL | D28: 148459374.3 | E28: 43235854.17 | F28: 191695228.5 | H28: 0.6424033693
C33: C O N C E P T O | D33: C O S T O D E A D M I N I S T R A T I V O - C O M E R C I A L
D36: COMERCIALIZACIÓN | E36: ADMINISTRACIÓN | F36: TOTAL
C38: RETRIBUCIONES AL PERSONAL | D38: 42206775.15 | E38: 13247863.96 | F38: 55454639.1
C40: MATERIALES Y SUMINISTROS | D40: 3454018.484 | E40: 526726.1996 | F40: 3980744.684
C42: ENERGIA Y FLUÍDOS | D42: 103849.0335 | E42: 4398784.763 | F42: 4502633.796
C44: SERVICIOS CONTRATADOS | D44: 27650981.14 | E44: 6845368.893 | F44: 34496350.04
C46: GASTOS VARIOS | D46: 580366.061 | E46: 128278.3456 | F46: 708644.4065
C48: AMORTIZACIÓN | D48: 5565268.566 | E48: 1999702.433 | F48: 7564970.999
C52: TOTAL | D52: 79561258.43 | E52: 27146724.59 | F52: 106707983 | H52: 0.3575966307
B57: C O S T O D E E X P L O T A C I Ó N | H57: 298403211.5

Sheet C-LAV-503
D4: COBERTURAS, COSTOS E INGRESOS PROMEDIO
D6: L A V A L L E J A
C10: 1. COMPOSICIÓN DEL COSTO PROPIO POR CONEXIÓN | D10: OPERATIVOS | F10: ADMINISTRATIVO-COMERCIAL
D12: AGUA | E12: ALCANTARILLADO
D13: ($/conex.agua) | E13: ($/conex.desagüe) | F13: ($/conex.agua)
C15: RETRIBUCIONES AL PERSONAL | D15: =+'B-LAV-503'!D15/'C-LAV-503'!$D$32 -> 2028.091162 | E15: =+'B-LAV-503'!E15/'C-LAV-503'!$E$32 -> 1343.550182 | F15: =+('B-LAV-503'!D38+'B-LAV-503'!E38)/'C-LAV-503'!$D$32 -> 2164.50582
C17: MATERIALES Y SUMINISTROS | D17: =+'B-LAV-503'!D17/'C-LAV-503'!$D$32 -> 590.1108218 | E17: =+'B-LAV-503'!E17/'C-LAV-503'!$E$32 -> 209.8911487 | F17: =+('B-LAV-503'!D40+'B-LAV-503'!E40)/'C-LAV-503'!$D$32 -> 155.3764514
C19: ENERGIA Y FLUÍDOS | D19: =+'B-LAV-503'!D19/'C-LAV-503'!$D$32 -> 689.5523579 | E19: =+'B-LAV-503'!E19/'C-LAV-503'!$E$32 -> 513.5505149 | F19: =+('B-LAV-503'!D42+'B-LAV-503'!E42)/'C-LAV-503'!$D$32 -> 175.7468305
C21: SERVICIOS CONTRATADOS | D21: =+'B-LAV-503'!D21/'C-LAV-503'!$D$32 -> 1550.935902 | E21: =+'B-LAV-503'!E21/'C-LAV-503'!$E$32 -> 816.6234048 | F21: =+('B-LAV-503'!D44+'B-LAV-503'!E44)/'C-LAV-503'!$D$32 -> 1346.46175
C23: GASTOS VARIOS | D23: =+'B-LAV-503'!D23/'C-LAV-503'!$D$32 -> 191.7861659 | E23: =+'B-LAV-503'!E23/'C-LAV-503'!$E$32 -> 104.2352088 | F23: =+('B-LAV-503'!D46+'B-LAV-503'!E46)/'C-LAV-503'!$D$32 -> 27.6598129
C25: AMORTIZACIÓN | D25: =+'B-LAV-503'!D25/'C-LAV-503'!$D$32 -> 744.1908149 | E25: =+'B-LAV-503'!E25/'C-LAV-503'!$E$32 -> 699.327962 | F25: =+('B-LAV-503'!D48+'B-LAV-503'!E48)/'C-LAV-503'!$D$32 -> 295.2759953
C29: TOTAL | D29: =SUM(D15:D25) -> 5794.667225 | E29: =SUM(E15:E25) -> 3687.178421 | F29: =SUM(F15:F25) -> 4165.02666
C32: 2.CONEXIONES (promedio anual) | D32: 25620 | E32: 11726
C35: 3.COBERTURAS COSTO/INGRESO
C37: 3.1 COSTO DE EXPLOTACIÓN/ INGRESO DE EXPLOT. | D37: =+'A-LAV-503'!F29/'A-LAV-503'!F12 -> 1.178928942 | E37: =+'A-LAV-503'!G29/'A-LAV-503'!G12 -> 1.002583235
C39: 3.3 TOTAL | D39: =+('A-LAV-503'!F29+'A-LAV-503'!F33+'A-LAV-503'!F37-'A-LAV-503'!F39)/('A-LAV-503'!F12+'A-LAV-503'!F32+'A-LAV-503'!F36) -> 1.237114241 | E39: =+('A-LAV-503'!G29+'A-LAV-503'!G33+'A-LAV-503'!G37-'A-LAV-503'!G39)/('A-LAV-503'!G12+'A-LAV-503'!G32+'A-LAV-503'!G36) -> 1.063007234
C42: 4.M3 ELEVADOS | D42: 3356670
C44: 5.M3 FACTURADOS | D44: 2394770
C47: 6. COSTO PROMEDIO
C49: 6.1 COSTO VARIABLE/ M3ELEVADOS | D49: =+'A-LAV-503'!F15/'C-LAV-503'!D42 -> 13.21051532
C51: 6.2 COSTO VARIABLE / M3FACTURADOS | D51: =+'A-LAV-503'!F15/'C-LAV-503'!D44 -> 18.51674293
C53: 6.3 COSTO EXPLOTACIÓN/M3FACT | D53: =+'A-LAV-503'!F29/'C-LAV-503'!D44 -> 124.2867458
C55: 6.4 TOTAL/M3FACT | D55: =+('A-LAV-503'!F29+'A-LAV-503'!F33+'A-LAV-503'!F37-'A-LAV-503'!F39)/'C-LAV-503'!D44 -> 136.632914
C58: 7. INGRESOS PROMEDIO
C60: 7.1 VARIABLE/M3 FACT | D60: =+'A-LAV-503'!F7/'C-LAV-503'!D44 -> 51.79102313
C62: 7.2 FIJO/CONEXIONES | D62: =+('A-LAV-503'!F8/12)/'C-LAV-503'!D32 -> 359.7329489
C64: 7.3 INGRESO EXPLOTACIÓN/M3FACT | D64: =+'A-LAV-503'!F12/'C-LAV-503'!D44 -> 105.423441
C66: 7.4 TOTAL/M3FACT | D66: =+('A-LAV-503'!F12+'A-LAV-503'!F32+'A-LAV-503'!F36)/'C-LAV-503'!D44 -> 110.4448639

Sheet A-UGD-501
B2: U.G.D. | C2: ESTADO DE RENDIMIENTO ECONÓMICO (a valores históricos) | H2: PERÍODO ENERO-DICIEMBRE-2024
C4: AGUA POTABLE
B5: CONCEPTOS | C5: USINA | D5: PERFORACIÓN | E5: MIXTO | F5: SUB-TOTAL | G5: ALCANTARILLADO | H5: OTROS INGRESOS | I5: TOTAL
B6: INGRESOS
B7: Ingresos Variables | C7: 1057529323 | F7: 1057529323 | I7: 1057529323
B8: Ingresos Fijos | C8: 857393761.5 | F8: 857393761.5 | I8: 857393761.5
B9: INGRESOS DE EXPLOTACIÓN | C9: 1914923085 | F9: 1914923085 | I9: 1914923085
B10: Ingresos Alcantarillado | G10: 786201178.5 | I10: 786201178.5
B11: Otros Ingresos | C11: 160553632.8 | F11: 160553632.8 | G11: 9960289 | I11: 170513921.8
B12: TOTAL ING. DE EXPLOTACIÓN | C12: 2075476717 | F12: 2075476717 | G12: 796161467.5 | I12: 2871638185
B13: COSTOS DE EXPLOTACIÓN
B14: OPERATIVO
B15: Costo Operativo Var | C15: 219148440.7 | F15: 219148440.7 | G15: 159086737.6 | I15: 378235178.3
B16: Costo Operativo Fijo | C16: 449568975.8 | F16: 449568975.8 | G16: 428096281.4 | I16: 877665257.1
B17: TOTAL OPERATIVO | C17: 668717416.5 | F17: 668717416.5 | G17: 587183018.9 | I17: 1255900435
B18: NO OPERATIVO
B19: COMERCIALIZACIÓN
B20: Comercial Propios | C20: 122972799.3 | F20: 122972799.3 | G20: 30626179.66 | I20: 153598979
B21: Comercial Asignados | C21: 37077166.72 | F21: 37077166.72 | I21: 37077166.72
B22: TOTAL COMERCIALIZACIÓN | C22: 160049966.1 | F22: 160049966.1 | G22: 30626179.66 | I22: 190676145.7
B23: ADMINISTRACIÓN
B24: Administración Propios | C24: 130077933.2 | F24: 130077933.2 | G24: 35507568.59 | I24: 165585501.8
B25: Administ. Asignados | C25: 155110419.1 | F25: 155110419.1 | G25: 8397178.71 | I25: 163507597.8
B26: Gastos Fiscales | C26: 132672103.2 | F26: 132672103.2 | G26: 50893568.39 | I26: 183565671.5
B27: TOTAL ADMINISTRACIÓN | C27: 417860455.4 | F27: 417860455.4 | G27: 94798315.69 | I27: 512658771.1
B28: TOTAL NO OPERATIVO | C28: 577910421.5 | F28: 577910421.5 | G28: 125424495.3 | I28: -703334916.8
B29: COSTO DE EXPLOTACIÓN | C29: 1246627838 | F29: 1246627838 | G29: 712607514.3 | I29: 1959235352
B30: RESULTADO DE EXPLOTACIÓN | C30: 828848879.5 | F30: 828848879.5 | G30: 83553953.19 | I30: 912402832.7
B31: DIVERSOS Y EXTRAORDINARIOS
B32: Ingresos Div. y Extr | C32: 274923454.6 | F32: 274923454.6 | G32: 105951497.6 | I32: 380874952.2
B33: Gtos. Div. y Extraor | C33: 145912.55 | F33: 145912.55 | G33: 55972.66 | I33: 201885.21
B34: RESULTADOS DIV. Y EXTRAORDINARIOS | C34: 274777542 | F34: 274777542 | G34: 105895525 | I34: 380673067
B35: FINANCIEROS
B36: Ingresos Financieros | C36: 59649769.1 | F36: 59649769.1 | G36: 22881898.52 | I36: 82531667.62
B37: Gastos Financieros | C37: 9369439.11 | F37: 9369439.11 | G37: 3594155.66 | I37: 12963594.77
B38: RESULTADO FINANCIERO | C38: 50280329.99 | F38: 50280329.99 | G38: 19287742.86 | I38: 69568072.85
B39: I.R.A.E. | C39: 90699863.42 | F39: 90699863.42 | G39: 15246335.58 | I39: 105946199
B40: RESULTADO NETO | C40: 1244606615 | F40: 1244606615 | G40: 223983556.6 | I40: 1468590172

Sheet B-UGD-501
B4: U . G . D.
D6: C O S T O S T O T A L E S
C10: C O N C E P T O | D10: C O S T O S O P E R A T I V O S
D13: AGUA | E13: ALCANTARILLADO | F13: TOTAL
C15: RETRIBUCIONES AL PERSONAL | D15: 153120236.7 | E15: 59831249.15 | F15: 212951485.8
C17: MATERIALES Y SUMINISTROS | D17: 97120980.86 | E17: 62008617.53 | F17: 159129598.4
C19: ENERGIA Y FLUÍDOS | D19: 83982530.24 | E19: 67555090.39 | F19: 151537620.6
C21: SERVICIOS CONTRATADOS | D21: 87265677.32 | E21: 233919931.8 | F21: 321185609.1
C23: GASTOS VARIOS | D23: 3180082.577 | E23: 2942.348194 | F23: 3183024.925
C25: AMORTIZACIÓN | D25: 244047908.6 | E25: 163865187.7 | F25: 407913096.3
C28: TOTAL | D28: 668717416.3 | E28: 587183018.9 | F28: 1255900435 | H28: 0.7973541125
C33: C O N C E P T O | D33: C O S T O D E A D M I N I S T R A T I V O - C O M E R C I A L
D36: COMERCIALIZACIÓN | E36: ADMINISTRACIÓN | F36: TOTAL
C38: RETRIBUCIONES AL PERSONAL | D38: 48469798.21 | E38: 43823830.5 | F38: 92293628.71
C40: MATERIALES Y SUMINISTROS | D40: 4900115.48 | E40: 3023950.88 | F40: 7924066.36
C42: ENERGIA Y FLUÍDOS | D42: 500767.91 | E42: 10984138.72 | F42: 11484906.63
C44: SERVICIOS CONTRATADOS | D44: 100177914.2 | E44: 60519985.19 | F44: 160697899.4
C46: GASTOS VARIOS | D46: -3313116.98 | E46: 7277087.24 | F46: 3963970.26
C48: AMORTIZACIÓN | D48: 2863500.15 | E48: 39956509.22 | F48: 42820009.37
C52: TOTAL | D52: 153598979 | E52: 165585501.8 | F52: 319184480.7 | H52: 0.2026458875
B57: C O S T O D E E X P L O T A C I Ó N | H57: 1575084916

Sheet C-UGD-501
D4: COBERTURAS, COSTOS E INGRESOS PROMEDIO
D6: U . G . D .
C10: 1.COMPOSICIÓN DEL COSTO PROPIO POR CONEXIÓN | D10: OPERATIVOS | F10: ADMINISTRATIVO-COMERCIAL
D12: AGUA | E12: ALCANTARILLADO
D13: ($/conex.agua) | E13: ($/conex.desagüe) | F13: ($/conex.agua)
C15: RETRIBUCIONES AL PERSONAL | D15: =+'B-UGD-501'!D15/'C-UGD-501'!$D$32 -> 1497.977232 | E15: =+'B-UGD-501'!E15/'C-UGD-501'!$E$32 -> 1072.244608 | F15: =+('B-UGD-501'!D38+'B-UGD-501'!E38)/'C-UGD-501'!$D$32 -> 902.9097489
C17: MATERIALES Y SUMINISTROS | D17: =+'B-UGD-501'!D17/'C-UGD-501'!$D$32 -> 950.1357967 | E17: =+'B-UGD-501'!E17/'C-UGD-501'!$E$32 -> 1111.265547 | F17: =+('B-UGD-501'!D40+'B-UGD-501'!E40)/'C-UGD-501'!$D$32 -> 77.52124244
C19: ENERGIA Y FLUÍDOS | D19: =+'B-UGD-501'!D19/'C-UGD-501'!$D$32 -> 821.6021663 | E19: =+'B-UGD-501'!E19/'C-UGD-501'!$E$32 -> 1210.664702 | F19: =+('B-UGD-501'!D42+'B-UGD-501'!E42)/'C-UGD-501'!$D$32 -> 112.3569883
C21: SERVICIOS CONTRATADOS | D21: =+'B-UGD-501'!D21/'C-UGD-501'!$D$32 -> 853.7212362 | E21: =+'B-UGD-501'!E21/'C-UGD-501'!$E$32 -> 4192.113473 | F21: =+('B-UGD-501'!D44+'B-UGD-501'!E44)/'C-UGD-501'!$D$32 -> 1572.109603
C23: GASTOS VARIOS | D23: =+'B-UGD-501'!D23/'C-UGD-501'!$D$32 -> 31.11078848 | E23: =+'B-UGD-501'!E23/'C-UGD-501'!$E$32 -> 0.05273025437 | F23: =+('B-UGD-501'!D46+'B-UGD-501'!E46)/'C-UGD-501'!$D$32 -> 38.7795717
C25: AMORTIZACIÓN | D25: =+'B-UGD-501'!D25/'C-UGD-501'!$D$32 -> 2387.523808 | E25: =+'B-UGD-501'!E25/'C-UGD-501'!$E$32 -> 2936.652109 | F25: =+('B-UGD-501'!D48+'B-UGD-501'!E48)/'C-UGD-501'!$D$32 -> 418.9086988
C29: TOTAL | D29: =SUM(D15:D25) -> 6542.071027 | E29: =SUM(E15:E25) -> 10522.99317 | F29: =SUM(F15:F25) -> 3122.585853
C32: 2.CONEXIONES (promedio anual) | D32: 102218 | E32: 55800
C35: 3.COBERTURAS COSTO/INGRESO
C37: 3.1 COSTO DE EXPLOTACIÓN/ INGRESO DE EXPLOT. | D37: =+'A-UGD-501'!F29/'A-UGD-501'!F12 -> 0.6006465057 | E37: =+'A-UGD-501'!G29/'A-UGD-501'!G12 -> 0.8950540103
C39: 3.3 TOTAL | D39: =+('A-UGD-501'!F29-'A-UGD-501'!F33+'A-UGD-501'!F37-'A-UGD-501'!F39)/('A-UGD-501'!F12+'A-UGD-501'!F32+'A-UGD-501'!F36) -> 0.4834553348 | E39: =+('A-UGD-501'!G29-'A-UGD-501'!G33+'A-UGD-501'!G37-'A-UGD-501'!G39)/('A-UGD-501'!G12+'A-UGD-501'!G32+'A-UGD-501'!G36) -> 0.7577332472
C42: 4.M3 ELEVADOS | D42: 22687760
C44: 5.M3 FACTURADOS | D44: 15192900
C47: 6. COSTO PROMEDIO
C49: 6.1 COSTO VARIABLE/ M3ELEVADOS | D49: =+'A-UGD-501'!F15/'C-UGD-501'!D42 -> 9.659324708
C51: 6.2 COSTO VARIABLE / M3FACTURADOS | D51: =+'A-UGD-501'!F15/'C-UGD-501'!D44 -> 14.42439829
C53: 6.3 COSTO EXPLOTACIÓN/M3FACT | D53: =+'A-UGD-501'!F28/'C-UGD-501'!D44 -> 38.0381903
C55: 6.4 TOTAL/M3FACT | D55: =+('A-UGD-501'!F28+'A-UGD-501'!F32+'A-UGD-501'!F36+'A-UGD-501'!F39)/'C-UGD-501'!D44 -> 66.02975788
C58: 7. INGRESOS PROMEDIO
C60: 7.1 VARIABLE/M3 FACT | D60: =+'A-UGD-501'!F7/'C-UGD-501'!D44 -> 69.60681129
C62: 7.2 FIJO/CONEXIONES | D62: =+('A-UGD-501'!F8/12)/'C-UGD-501'!D32 -> 698.991177
C64: 7.3 INGRESO EXPLOTACIÓN/M3FACT | D64: =+'A-UGD-501'!F12/'C-UGD-501'!D44 -> 136.6083314
C66: 7.4 TOTAL/M3FACT | D66: =+('A-UGD-501'!F12+'A-UGD-501'!F32+'A-UGD-501'!F36)/'C-UGD-501'!D44 -> 158.6300141
